Workbook

Sheet SolCotizacion
B1: Solicitud de Cotización Acuerdo Marco para el suministro de Consumibles de Impresión 2G
B3: Verisón: 2 | C3: 2021-02-25
B4: Información de la Entidad Compradora
B6: Nombre de la Entidad | E6: Secretaría General de la Alcaldía Mayor de Bogotá D.C | K6: NIT | M6: 899999061
B8: Dirección de la Entidad | E8: Carrera 8 No 10 65 | K8: Correo de contacto | M8: ojasprilla@alcaldiabogota.gov.co
B10: Municipio | E10: Bogotá D.C | K10: Teléfono de contacto | M10: 3813000
B12: Nombre funcionario Comprador | E12: Oscar Javier Asprilla Cruz
B16: Solicitud de Cotización
B18: Segmento | E18: Original | I18: Marca | K18: HP - SAMSUNG | L18: Tiempo estimado de la Orden de compra | M18: 4 meses | N18: Entregas Parciales | O18: No
B20: Productos
A22: *Libros, revistas, cartillas y/o catálogo Segmento 1. | B22: =E18 -> Original
B24: Cantidad de filas:
B25: 5
B27: Item | C27: =IF($E$18="Original","Código del servicio","Marca") -> Código del servicio | D27: Descripción del Consumible | L27: Región | M27: Departamento / Municipio | N27: Detalle lugar de entrega | O27: Cantidad
A28: =D28&L28 -> HP CP3525/CM3530 MFP Black 5k print crtg1 | B28: 1 | C28: =IF($E$18="Remanufacturado",INDEX(Remanufacturado!A:H,MATCH(SolCotizacion!$D28,Remanufacturado!F:F,0),4),INDEX(Original!A:H,MATCH(SolCotizacion!$D28,Original!F:F,0),5)) -> CE250A | D28: HP CP3525/CM3530 MFP Black 5k print crtg | L28: 1 | M28: BOGOTA - BOGOTA, D.C. | N28: Secretaría General de la Alcaldía Mayor de Bogotá D.C Cra 8 No 10-65 | O28: 5
A29: =D29&L29 -> HP CP3525/CM3530 MFP Cyan Print Crtg1 | B29: 2 | C29: =IF($E$18="Remanufacturado",INDEX(Remanufacturado!A:H,MATCH(SolCotizacion!$D29,Remanufacturado!F:F,0),4),INDEX(Original!A:H,MATCH(SolCotizacion!$D29,Original!F:F,0),5)) -> CE251A | D29: HP CP3525/CM3530 MFP Cyan Print Crtg | L29: 1 | M29: BOGOTA - BOGOTA, D.C. | N29: Secretaría General de la Alcaldía Mayor de Bogotá D.C Cra 8 No 10-65 | O29: 5
A30: =D30&L30 -> HP CP3525/CM3530 MFP Yellow Print Crtg1 | B30: 3 | C30: =IF($E$18="Remanufacturado",INDEX(Remanufacturado!A:H,MATCH(SolCotizacion!$D30,Remanufacturado!F:F,0),4),INDEX(Original!A:H,MATCH(SolCotizacion!$D30,Original!F:F,0),5)) -> CE252A | D30: HP CP3525/CM3530 MFP Yellow Print Crtg | L30: 1 | M30: BOGOTA - BOGOTA, D.C. | N30: Secretaría General de la Alcaldía Mayor de Bogotá D.C Cra 8 No 10-65 | O30: 5
A31: =D31&L31 -> HP CP3525/CM3530 MFP Magenta Print Crtg1 | B31: 4 | C31: =IF($E$18="Remanufacturado",INDEX(Remanufacturado!A:H,MATCH(SolCotizacion!$D31,Remanufacturado!F:F,0),4),INDEX(Original!A:H,MATCH(SolCotizacion!$D31,Original!F:F,0),5)) -> CE253A | D31: HP CP3525/CM3530 MFP Magenta Print Crtg | L31: 1 | M31: BOGOTA - BOGOTA, D.C. | N31: Secretaría General de la Alcaldía Mayor de Bogotá D.C Cra 8 No 10-65 | O31: 4
A32: =D32&L32 -> HP 202X Black LaserJet Toner Cartridge1 | B32: 5 | C32: =IF($E$18="Remanufacturado",INDEX(Remanufacturado!A:H,MATCH(SolCotizacion!$D32,Remanufacturado!F:F,0),4),INDEX(Original!A:H,MATCH(SolCotizacion!$D32,Original!F:F,0),5)) -> CF500X | D32: HP 202X Black LaserJet Toner Cartridge | L32: 1 | M32: BOGOTA - BOGOTA, D.C. | N32: Secretaría General de la Alcaldía Mayor de Bogotá D.C Cra 8 No 10-65 | O32: 5
A33: =D33&L33 -> HP 202X Cyan LaserJet Toner Cartridge1 | B33: 6 | C33: =IF($E$18="Remanufacturado",INDEX(Remanufacturado!A:H,MATCH(SolCotizacion!$D33,Remanufacturado!F:F,0),4),INDEX(Original!A:H,MATCH(SolCotizacion!$D33,Original!F:F,0),5)) -> CF501X | D33: HP 202X Cyan LaserJet Toner Cartridge | L33: 1 | M33: BOGOTA - BOGOTA, D.C. | N33: Secretaría General de la Alcaldía Mayor de Bogotá D.C Cra 8 No 10-65 | O33: 5
A34: =D34&L34 -> HP 202X Yellow LaserJet Toner Cartridge1 | B34: 7 | C34: =IF($E$18="Remanufacturado",INDEX(Remanufacturado!A:H,MATCH(SolCotizacion!$D34,Remanufacturado!F:F,0),4),INDEX(Original!A:H,MATCH(SolCotizacion!$D34,Original!F:F,0),5)) -> CF502X | D34: HP 202X Yellow LaserJet Toner Cartridge | L34: 1 | M34: BOGOTA - BOGOTA, D.C. | N34: Secretaría General de la Alcaldía Mayor de Bogotá D.C Cra 8 No 10-65 | O34: 5
A35: =D35&L35 -> HP 202X Magenta LaserJet Toner Cartridge1 | B35: 8 | C35: =IF($E$18="Remanufacturado",INDEX(Remanufacturado!A:H,MATCH(SolCotizacion!$D35,Remanufacturado!F:F,0),4),INDEX(Original!A:H,MATCH(SolCotizacion!$D35,Original!F:F,0),5)) -> CF503X | D35: HP 202X Magenta LaserJet Toner Cartridge | L35: 1 | M35: BOGOTA - BOGOTA, D.C. | N35: Secretaría General de la Alcaldía Mayor de Bogotá D.C Cra 8 No 10-65 | O35: 5
B36: 1. Si requiere agregue o elimine fila | N36: Cantidad Total | O36: =SUM($O$28:$O35) -> 39
B39: Gravámenes adicionales*
B40: Si los hay, indique los gravámenes adicionales a los que está sujeta la Orden de Compra. Son gravámenes adicionales por ejemplo; estampillas y demás impuestos territoriales. Los impuestos como ICA y retención en la fuente NO son gravámenes adicionales.
B41: Gravámenes adicionales (estampillas)
B42: No | C42: Descripción | H42: Porcentaje
B43: 1 | C43: Estampillas Distritales | H43: 0.036
F44: Total porcentaje: | H44: =SUM(H43:H43) -> 0.036
D45: Filas a agregar o eliminar Gravámenes:
D46: 1

Sheet TempCantProduc (hidden)
A1: llave | B1: Descripción del Consumible | C1: Región | D1: Departamento / Municipio | E1: Detalle lugar de entrega
A2: =B2&C2 -> HP CP3525/CM3530 MFP Black 5k print crtg1 | B2: HP CP3525/CM3530 MFP Black 5k print crtg | C2: 1 | D2: BOGOTA - BOGOTA, D.C. | E2: Secretaría General de la Alcaldía Mayor de Bogotá D.C Cra 8 No 10-65
A3: =B3&C3 -> HP CP3525/CM3530 MFP Cyan Print Crtg1 | B3: HP CP3525/CM3530 MFP Cyan Print Crtg | C3: 1 | D3: BOGOTA - BOGOTA, D.C. | E3: Secretaría General de la Alcaldía Mayor de Bogotá D.C Cra 8 No 10-65
A4: HP CP3525/CM3530 MFP Yellow Print Crtg1 | B4: HP CP3525/CM3530 MFP Yellow Print Crtg | C4: 1 | D4: BOGOTA - BOGOTA, D.C. | E4: Secretaría General de la Alcaldía Mayor de Bogotá D.C Cra 8 No 10-65
A5: HP CP3525/CM3530 MFP Magenta Print Crtg1 | B5: HP CP3525/CM3530 MFP Magenta Print Crtg | C5: 1 | D5: BOGOTA - BOGOTA, D.C. | E5: Secretaría General de la Alcaldía Mayor de Bogotá D.C Cra 8 No 10-65
A6: HP 202X Black LaserJet Toner Cartridge1 | B6: HP 202X Black LaserJet Toner Cartridge | C6: 1 | D6: BOGOTA - BOGOTA, D.C. | E6: Secretaría General de la Alcaldía Mayor de Bogotá D.C Cra 8 No 10-65
A7: HP 202X Cyan LaserJet Toner Cartridge1 | B7: HP 202X Cyan LaserJet Toner Cartridge | C7: 1 | D7: BOGOTA - BOGOTA, D.C. | E7: Secretaría General de la Alcaldía Mayor de Bogotá D.C Cra 8 No 10-65
A8: HP 202X Yellow LaserJet Toner Cartridge1 | B8: HP 202X Yellow LaserJet Toner Cartridge | C8: 1 | D8: BOGOTA - BOGOTA, D.C. | E8: Secretaría General de la Alcaldía Mayor de Bogotá D.C Cra 8 No 10-65
A9: HP 202X Magenta LaserJet Toner Cartridge1 | B9: HP 202X Magenta LaserJet Toner Cartridge | C9: 1 | D9: BOGOTA - BOGOTA, D.C. | E9: Secretaría General de la Alcaldía Mayor de Bogotá D.C Cra 8 No 10-65

Sheet ResumenCotizacion
B1: Solicitud de Cotización Acuerdo Marco para el suministro de Consumibles de Impresión 2G
B3: =SolCotizacion!B3 -> Verisón: 2 | C3: =SolCotizacion!C3 -> 2021-02-25
B4: Información de la Entidad Compradora
B6: Nombre de la Entidad | E6: Secretaría General de la Alcaldía Mayor de Bogotá D.C | K6: NIT | M6: 899999061
B8: Dirección de la Entidad | E8: Carrera 8 No 10 65 | K8: Correo de contacto | M8: ojasprilla@alcaldiabogota.gov.co
B10: Municipio | E10: Bogotá D.C | K10: Teléfono de contacto | M10: 3813000
B12: Nombre funcionario Comprador | E12: Oscar Javier Asprilla Cruz
B16: Solicitud de Cotización
B18: Segmento | E18: Original | I18: Marca | K18: HP - SAMSUNG | L18: Tiempo estimado de la Orden de compra | M18: 4 meses | N18: Entregas Parciales | O18: No
B20: Productos
A22: *Libros, revistas, cartillas y/o catálogo Segmento 1. | B22: =E18 -> Original
B24: Cantidad de filas:
B25: 1
B27: Item | C27: =IF($E$18="Original","Código del servicio","Marca") -> Código del servicio | D27: Descripción del Consumible | L27: Región | M27: Departamento / Municipio | N27: Detalle lugar de entrega | O27: Cantidad | Q27: Precio Unitario | R27: Precio Unitario + Gravamen | S27: Precio Total
A28: HP CP3525/CM3530 MFP Black 5k print crtg1 | B28: 1 | C28: CE250A | D28: HP CP3525/CM3530 MFP Black 5k print crtg | L28: 1 | M28: BOGOTA - BOGOTA, D.C. | N28: Secretaría General de la Alcaldía Mayor de Bogotá D.C Cra 8 No 10-65 | O28: 5 | Q28: =VLOOKUP("DISTRIBUIDORA Y PAPELERIA VENEPLAST LTDA"&$D28&$L28,temp!$A:$J,7,0) -> 550000 | R28: =ROUND(Q28/(1-(VLOOKUP("Total porcentaje:",$F:$H,3))),2) -> 570539.42 | S28: =O28*R28 -> 2852697.1
A29: HP CP3525/CM3530 MFP Cyan Print Crtg1 | B29: 2 | C29: CE251A | D29: HP CP3525/CM3530 MFP Cyan Print Crtg | L29: 1 | M29: BOGOTA - BOGOTA, D.C. | N29: Secretaría General de la Alcaldía Mayor de Bogotá D.C Cra 8 No 10-65 | O29: 5 | Q29: =VLOOKUP("DISTRIBUIDORA Y PAPELERIA VENEPLAST LTDA"&$D29&$L29,temp!$A:$J,7,0) -> 1077000 | R29: =ROUND(Q29/(1-(VLOOKUP("Total porcentaje:",$F:$H,3))),2) -> 1117219.92 | S29: =O29*R29 -> 5586099.6
A30: HP CP3525/CM3530 MFP Yellow Print Crtg1 | B30: 3 | C30: CE252A | D30: HP CP3525/CM3530 MFP Yellow Print Crtg | L30: 1 | M30: BOGOTA - BOGOTA, D.C. | N30: Secretaría General de la Alcaldía Mayor de Bogotá D.C Cra 8 No 10-65 | O30: 5 | Q30: =VLOOKUP("DISTRIBUIDORA Y PAPELERIA VENEPLAST LTDA"&$D30&$L30,temp!$A:$J,7,0) -> 1080000 | R30: 1120331.95 | S30: 5601659.75
A31: HP CP3525/CM3530 MFP Magenta Print Crtg1 | B31: 4 | C31: CE253A | D31: HP CP3525/CM3530 MFP Magenta Print Crtg | L31: 1 | M31: BOGOTA - BOGOTA, D.C. | N31: Secretaría General de la Alcaldía Mayor de Bogotá D.C Cra 8 No 10-65 | O31: 4 | Q31: =VLOOKUP("DISTRIBUIDORA Y PAPELERIA VENEPLAST LTDA"&$D31&$L31,temp!$A:$J,7,0) -> 1050000 | R31: 1089211.62 | S31: 4356846.48
A32: HP 202X Black LaserJet Toner Cartridge1 | B32: 5 | C32: CF500X | D32: HP 202X Black LaserJet Toner Cartridge | L32: 1 | M32: BOGOTA - BOGOTA, D.C. | N32: Secretaría General de la Alcaldía Mayor de Bogotá D.C Cra 8 No 10-65 | O32: 5 | Q32: =VLOOKUP("DISTRIBUIDORA Y PAPELERIA VENEPLAST LTDA"&$D32&$L32,temp!$A:$J,7,0) -> 374000 | R32: 387966.8 | S32: 1939834
A33: HP 202X Cyan LaserJet Toner Cartridge1 | B33: 6 | C33: CF501X | D33: HP 202X Cyan LaserJet Toner Cartridge | L33: 1 | M33: BOGOTA - BOGOTA, D.C. | N33: Secretaría General de la Alcaldía Mayor de Bogotá D.C Cra 8 No 10-65 | O33: 5 | Q33: =VLOOKUP("DISTRIBUIDORA Y PAPELERIA VENEPLAST LTDA"&$D33&$L33,temp!$A:$J,7,0) -> 394000 | R33: 408713.69 | S33: 2043568.45
A34: HP 202X Yellow LaserJet Toner Cartridge1 | B34: 7 | C34: CF502X | D34: HP 202X Yellow LaserJet Toner Cartridge | L34: 1 | M34: BOGOTA - BOGOTA, D.C. | N34: Secretaría General de la Alcaldía Mayor de Bogotá D.C Cra 8 No 10-65 | O34: 5 | Q34: =VLOOKUP("DISTRIBUIDORA Y PAPELERIA VENEPLAST LTDA"&$D34&$L34,temp!$A:$J,7,0) -> 394000 | R34: 408713.69 | S34: 2043568.45
A35: HP 202X Magenta LaserJet Toner Cartridge1 | B35: 8 | C35: CF503X | D35: HP 202X Magenta LaserJet Toner Cartridge | L35: 1 | M35: BOGOTA - BOGOTA, D.C. | N35: Secretaría General de la Alcaldía Mayor de Bogotá D.C Cra 8 No 10-65 | O35: 5 | Q35: =VLOOKUP("DISTRIBUIDORA Y PAPELERIA VENEPLAST LTDA"&$D35&$L35,temp!$A:$J,7,0) -> 394000 | R35: 408713.69 | S35: 2043568.45
B36: 1. Si requiere agregue o elimine fila | N36: Cantidad Total | O36: 39 | R36: Sub Total | S36: =ROUND(SUM($S$28:$S$35),2) -> 26467842.28
R37: IVA | S37: =ROUND(S36*19%,2) -> 5028890.03
R38: Valor Total | S38: =ROUND(SUM(S36:S37),2) -> 31496732.31
B39: Gravámenes adicionales*
B40: Si los hay, indique los gravámenes adicionales a los que está sujeta la Orden de Compra. Son gravámenes adicionales por ejemplo; estampillas y demás impuestos territoriales. Los impuestos como ICA y retención en la fuente NO son gravámenes adicionales.
B41: Gravámenes adicionales (estampillas)
B42: No | C42: Descripción | H42: Porcentaje
B43: 1 | C43: Estampillas Distritales | H43: 0.036
F44: Total porcentaje: | H44: =SUM(H43:H43) -> 0.036
D45: Filas a agregar o eliminar Gravámenes:
D46: 1

Sheet Cotizacion
B1: Solicitud de Cotización Acuerdo Marco para el suministro de Consumibles de Impresión 2G
B3: =SolCotizacion!B3 -> Verisón: 2 | C3: =SolCotizacion!C3 -> 2021-02-25
B4: Información de la Entidad Compradora
B6: Nombre de la Entidad | E6: Secretaría General de la Alcaldía Mayor de Bogotá D.C | K6: NIT | M6: 899999061
B8: Dirección de la Entidad | E8: Carrera 8 No 10 65 | K8: Correo de contacto | M8: ojasprilla@alcaldiabogota.gov.co
B10: Municipio | E10: Bogotá D.C | K10: Teléfono de contacto | M10: 3813000
B12: Nombre funcionario Comprador | E12: Oscar Javier Asprilla Cruz
B16: Solicitud de Cotización
B18: Segmento | E18: Original | I18: Marca | K18: HP - SAMSUNG | L18: Tiempo estimado de la Orden de compra | M18: 4 meses | N18: Entregas Parciales | O18: No
B20: Productos
A22: *Libros, revistas, cartillas y/o catálogo Segmento 1. | B22: =E18 -> Original
B24: Cantidad de filas:
B25: 1 | L25: Proveedor
B27: Item | C27: =IF($E$18="Original","Código del servicio","Marca") -> Código del servicio | D27: Descripción del Consumible | L27: Región | M27: Departamento / Municipio | N27: Detalle lugar de entrega | O27: Cantidad | Q27: Precio Unitario | R27: Precio Unitario + Gravamen | S27: Descuento adicional | T27: Precio con Descuento | U27: Precio Total
A28: HP CP3525/CM3530 MFP Black 5k print crtg1 | B28: 1 | C28: CE250A | D28: HP CP3525/CM3530 MFP Black 5k print crtg | L28: 1 | M28: BOGOTA - BOGOTA, D.C. | N28: Secretaría General de la Alcaldía Mayor de Bogotá D.C Cra 8 No 10-65 | O28: 5 | Q28: =VLOOKUP($N$25&$D28&$L28,temp!$A:$J,7,0) ->  | R28: =ROUND(Q28/(1-(VLOOKUP("Total porcentaje:",$F:$H,3))),2) ->  | T28: =ROUND(R28*(1-S28),2) ->  | U28: =O28*T28 -> 
A29: HP CP3525/CM3530 MFP Cyan Print Crtg1 | B29: 2 | C29: CE251A | D29: HP CP3525/CM3530 MFP Cyan Print Crtg | L29: 1 | M29: BOGOTA - BOGOTA, D.C. | N29: Secretaría General de la Alcaldía Mayor de Bogotá D.C Cra 8 No 10-65 | O29: 5 | Q29: =VLOOKUP($N$25&$D29&$L29,temp!$A:$J,7,0) ->  | R29: =ROUND(Q29/(1-(VLOOKUP("Total porcentaje:",$F:$H,3))),2) ->  | T29: =ROUND(R29*(1-S29),2) ->  | U29: =O29*T29 -> 
A30: HP CP3525/CM3530 MFP Yellow Print Crtg1 | B30: 3 | C30: CE252A | D30: HP CP3525/CM3530 MFP Yellow Print Crtg | L30: 1 | M30: BOGOTA - BOGOTA, D.C. | N30: Secretaría General de la Alcaldía Mayor de Bogotá D.C Cra 8 No 10-65 | O30: 5 | Q30: =VLOOKUP($N$25&$D30&$L30,temp!$A:$J,7,0) -> 
A31: HP CP3525/CM3530 MFP Magenta Print Crtg1 | B31: 4 | C31: CE253A | D31: HP CP3525/CM3530 MFP Magenta Print Crtg | L31: 1 | M31: BOGOTA - BOGOTA, D.C. | N31: Secretaría General de la Alcaldía Mayor de Bogotá D.C Cra 8 No 10-65 | O31: 4 | Q31: =VLOOKUP($N$25&$D31&$L31,temp!$A:$J,7,0) -> 
A32: HP 202X Black LaserJet Toner Cartridge1 | B32: 5 | C32: CF500X | D32: HP 202X Black LaserJet Toner Cartridge | L32: 1 | M32: BOGOTA - BOGOTA, D.C. | N32: Secretaría General de la Alcaldía Mayor de Bogotá D.C Cra 8 No 10-65 | O32: 5 | Q32: =VLOOKUP($N$25&$D32&$L32,temp!$A:$J,7,0) -> 
A33: HP 202X Cyan LaserJet Toner Cartridge1 | B33: 6 | C33: CF501X | D33: HP 202X Cyan LaserJet Toner Cartridge | L33: 1 | M33: BOGOTA - BOGOTA, D.C. | N33: Secretaría General de la Alcaldía Mayor de Bogotá D.C Cra 8 No 10-65 | O33: 5 | Q33: =VLOOKUP($N$25&$D33&$L33,temp!$A:$J,7,0) -> 
A34: HP 202X Yellow LaserJet Toner Cartridge1 | B34: 7 | C34: CF502X | D34: HP 202X Yellow LaserJet Toner Cartridge | L34: 1 | M34: BOGOTA - BOGOTA, D.C. | N34: Secretaría General de la Alcaldía Mayor de Bogotá D.C Cra 8 No 10-65 | O34: 5 | Q34: =VLOOKUP($N$25&$D34&$L34,temp!$A:$J,7,0) -> 
A35: HP 202X Magenta LaserJet Toner Cartridge1 | B35: 8 | C35: CF503X | D35: HP 202X Magenta LaserJet Toner Cartridge | L35: 1 | M35: BOGOTA - BOGOTA, D.C. | N35: Secretaría General de la Alcaldía Mayor de Bogotá D.C Cra 8 No 10-65 | O35: 5 | Q35: =VLOOKUP($N$25&$D35&$L35,temp!$A:$J,7,0) -> 
B36: 1. Si requiere agregue o elimine fila | N36: Cantidad Total | O36: 39 | T36: Sub Total | U36: =ROUND(SUM($U$28:$U$35),2) -> 
T37: IVA | U37: =ROUND(U36*19%,2) -> 
T38: Valor Total | U38: =ROUND(SUM(U36:U37),2) -> 
B39: Gravámenes adicionales*
B40: Si los hay, indique los gravámenes adicionales a los que está sujeta la Orden de Compra. Son gravámenes adicionales por ejemplo; estampillas y demás impuestos territoriales. Los impuestos como ICA y retención en la fuente NO son gravámenes adicionales.
B41: Gravámenes adicionales (estampillas)
B42: No | C42: Descripción | H42: Porcentaje
B43: 1 | C43: Estampillas Distritales | H43: 0.036
F44: Total porcentaje: | H44: =SUM(H43:H43) -> 0.036
D45: Filas a agregar o eliminar Gravámenes:
D46: 1

Sheet ResumenProveedores
B3: Proveedor que Aplican | C3: Total Precios Techo antes de IVA
B4: COMERCIALIZADORA SERLE.COM SAS | C4: 32798187.62
B5: DISTRIBUIDORA Y PAPELERIA VENEPLAST LTDA | C5: 26467842.28
B6: GRAN IMAGEN S.A.S. | C6: 28294402.9
B7: HARDWARE ASESORIAS SOFTWARE LTDA | C7: 32188377.71
B8: KEY MARKET SAS | C8: 27233721.05
B9: MICRONET SAS | C9: 29307780.07
B10: PROSUTEC SAS | C10: 28006653.51
B11: UNIPLES S.A | C11: 27695446.1
B12: UT OFIBEST-FORMACON | C12: 31538648.33

Sheet DepartaMuni (hidden)
A1: Region | B1: Departamento | C1: Municipio | D1: Departamento - Municipio
A2: 1 | B2: ANTIOQUIA | C2: MEDELLIN | D2: ANTIOQUIA - MEDELLIN
A3: 1 | B3: ANTIOQUIA | C3: ARMENIA | D3: ANTIOQUIA - ARMENIA
A4: 1 | B4: ANTIOQUIA | C4: BELLO | D4: ANTIOQUIA - BELLO
A5: 1 | B5: ANTIOQUIA | C5: ENVIGADO | D5: ANTIOQUIA - ENVIGADO
A6: 1 | B6: ANTIOQUIA | C6: ITAGUI | D6: ANTIOQUIA - ITAGUI
A7: 1 | B7: ATLANTICO | C7: BARRANQUILLA | D7: ATLANTICO - BARRANQUILLA
A8: 1 | B8: ATLANTICO | C8: MALAMBO | D8: ATLANTICO - MALAMBO
A9: 1 | B9: ATLANTICO | C9: SOLEDAD | D9: ATLANTICO - SOLEDAD
A10: 1 | B10: BOGOTA | C10: BOGOTA, D.C. | D10: BOGOTA - BOGOTA, D.C.
A11: 1 | B11: BOLIVAR | C11: CARTAGENA | D11: BOLIVAR - CARTAGENA
A12: 1 | B12: BOYACA | C12: TUNJA | D12: BOYACA - TUNJA
A13: 1 | B13: CALDAS | C13: MANIZALES | D13: CALDAS - MANIZALES
A14: 1 | B14: CASANARE | C14: YOPAL | D14: CASANARE - YOPAL
A15: 1 | B15: CAUCA | C15: POPAYAN | D15: CAUCA - POPAYAN
A16: 1 | B16: CESAR | C16: VALLEDUPAR | D16: CESAR - VALLEDUPAR
A17: 1 | B17: CORDOBA | C17: MONTERIA | D17: CORDOBA - MONTERIA
A18: 1 | B18: CUNDINAMARCA | C18: CAJICA | D18: CUNDINAMARCA - CAJICA
A19: 1 | B19: CUNDINAMARCA | C19: CHIA | D19: CUNDINAMARCA - CHIA
A20: 1 | B20: CUNDINAMARCA | C20: COTA | D20: CUNDINAMARCA - COTA
A21: 1 | B21: CUNDINAMARCA | C21: FACATATIVA | D21: CUNDINAMARCA - FACATATIVA
A22: 1 | B22: CUNDINAMARCA | C22: FUNZA | D22: CUNDINAMARCA - FUNZA
A23: 1 | B23: CUNDINAMARCA | C23: LA CALERA | D23: CUNDINAMARCA - LA CALERA
A24: 1 | B24: CUNDINAMARCA | C24: MADRID | D24: CUNDINAMARCA - MADRID
A25: 1 | B25: CUNDINAMARCA | C25: MOSQUERA | D25: CUNDINAMARCA - MOSQUERA
A26: 1 | B26: CUNDINAMARCA | C26: SIBATE | D26: CUNDINAMARCA - SIBATE
A27: 1 | B27: CUNDINAMARCA | C27: SOACHA | D27: CUNDINAMARCA - SOACHA
A28: 1 | B28: CUNDINAMARCA | C28: SOPO | D28: CUNDINAMARCA - SOPO
A29: 1 | B29: CUNDINAMARCA | C29: TENJO | D29: CUNDINAMARCA - TENJO
A30: 1 | B30: CUNDINAMARCA | C30: TOCANCIPA | D30: CUNDINAMARCA - TOCANCIPA
A31: 1 | B31: CUNDINAMARCA | C31: ZIPAQUIRA | D31: CUNDINAMARCA - ZIPAQUIRA
A32: 1 | B32: HUILA | C32: NEIVA | D32: HUILA - NEIVA
A33: 1 | B33: LA GUAJIRA | C33: RIOHACHA | D33: LA GUAJIRA - RIOHACHA
A34: 1 | B34: MAGDALENA | C34: SANTA MARTA | D34: MAGDALENA - SANTA MARTA
A35: 1 | B35: META | C35: VILLAVICENCIO | D35: META - VILLAVICENCIO
A36: 1 | B36: N. DE SANTANDER | C36: CUCUTA | D36: N. DE SANTANDER - CUCUTA
A37: 1 | B37: NARIÑO | C37: PASTO | D37: NARIÑO - PASTO
A38: 1 | B38: QUINDIO | C38: ARMENIA | D38: QUINDIO - ARMENIA
A39: 1 | B39: RISARALDA | C39: PEREIRA | D39: RISARALDA - PEREIRA
A40: 1 | B40: RISARALDA | C40: DOSQUEBRADAS | D40: RISARALDA - DOSQUEBRADAS
A41: 1 | B41: SANTANDER | C41: BUCARAMANGA | D41: SANTANDER - BUCARAMANGA
A42: 1 | B42: SANTANDER | C42: FLORIDABLANCA | D42: SANTANDER - FLORIDABLANCA
A43: 1 | B43: SANTANDER | C43: GIRON | D43: SANTANDER - GIRON
A44: 1 | B44: SUCRE | C44: SINCELEJO | D44: SUCRE - SINCELEJO
A45: 1 | B45: TOLIMA | C45: IBAGUE | D45: TOLIMA - IBAGUE
A46: 1 | B46: VALLE DEL CAUCA | C46: CALI | D46: VALLE DEL CAUCA - CALI
A47: 2 | B47: ANTIOQUIA | C47: ABEJORRAL | D47: ANTIOQUIA - ABEJORRAL
A48: 2 | B48: ANTIOQUIA | C48: ABRIAQUI | D48: ANTIOQUIA - ABRIAQUI
A49: 2 | B49: ANTIOQUIA | C49: ALEJANDRIA | D49: ANTIOQUIA - ALEJANDRIA
A50: 2 | B50: ANTIOQUIA | C50: AMAGA | D50: ANTIOQUIA - AMAGA
A51: 2 | B51: ANTIOQUIA | C51: AMALFI | D51: ANTIOQUIA - AMALFI
A52: 2 | B52: ANTIOQUIA | C52: ANDES | D52: ANTIOQUIA - ANDES
A53: 2 | B53: ANTIOQUIA | C53: ANGELOPOLIS | D53: ANTIOQUIA - ANGELOPOLIS
A54: 2 | B54: ANTIOQUIA | C54: ANGOSTURA | D54: ANTIOQUIA - ANGOSTURA
A55: 2 | B55: ANTIOQUIA | C55: SANTAFE DE ANTIOQUIA | D55: ANTIOQUIA - SANTAFE DE ANTIOQUIA
A56: 2 | B56: ANTIOQUIA | C56: ANZA | D56: ANTIOQUIA - ANZA
A57: 2 | B57: ANTIOQUIA | C57: APARTADO | D57: ANTIOQUIA - APARTADO
A58: 2 | B58: ANTIOQUIA | C58: ARBOLETES | D58: ANTIOQUIA - ARBOLETES
A59: 2 | B59: ANTIOQUIA | C59: ARGELIA | D59: ANTIOQUIA - ARGELIA
A60: 2 | B60: ANTIOQUIA | C60: BARBOSA | D60: ANTIOQUIA - BARBOSA
A61: 2 | B61: ANTIOQUIA | C61: BELMIRA | D61: ANTIOQUIA - BELMIRA
A62: 2 | B62: ANTIOQUIA | C62: BETANIA | D62: ANTIOQUIA - BETANIA
A63: 2 | B63: ANTIOQUIA | C63: BETULIA | D63: ANTIOQUIA - BETULIA
A64: 2 | B64: ANTIOQUIA | C64: CIUDAD BOLIVAR | D64: ANTIOQUIA - CIUDAD BOLIVAR
A65: 2 | B65: ANTIOQUIA | C65: BURITICA | D65: ANTIOQUIA - BURITICA
A66: 2 | B66: ANTIOQUIA | C66: CACERES | D66: ANTIOQUIA - CACERES
A67: 2 | B67: ANTIOQUIA | C67: CAICEDO | D67: ANTIOQUIA - CAICEDO
A68: 2 | B68: ANTIOQUIA | C68: CALDAS | D68: ANTIOQUIA - CALDAS
A69: 2 | B69: ANTIOQUIA | C69: CAMPAMENTO | D69: ANTIOQUIA - CAMPAMENTO
A70: 2 | B70: ANTIOQUIA | C70: CAÑASGORDAS | D70: ANTIOQUIA - CAÑASGORDAS
A71: 2 | B71: ANTIOQUIA | C71: CARACOLI | D71: ANTIOQUIA - CARACOLI
A72: 2 | B72: ANTIOQUIA | C72: CARAMANTA | D72: ANTIOQUIA - CARAMANTA
A73: 2 | B73: ANTIOQUIA | C73: CAREPA | D73: ANTIOQUIA - CAREPA
A74: 2 | B74: ANTIOQUIA | C74: EL CARMEN DE VIBORAL | D74: ANTIOQUIA - EL CARMEN DE VIBORAL
A75: 2 | B75: ANTIOQUIA | C75: CAROLINA | D75: ANTIOQUIA - CAROLINA
A76: 2 | B76: ANTIOQUIA | C76: CAUCASIA | D76: ANTIOQUIA - CAUCASIA
A77: 2 | B77: ANTIOQUIA | C77: CHIGORODO | D77: ANTIOQUIA - CHIGORODO
A78: 2 | B78: ANTIOQUIA | C78: CISNEROS | D78: ANTIOQUIA - CISNEROS
A79: 2 | B79: ANTIOQUIA | C79: COCORNA | D79: ANTIOQUIA - COCORNA
A80: 2 | B80: ANTIOQUIA | C80: CONCEPCION | D80: ANTIOQUIA - CONCEPCION
A81: 2 | B81: ANTIOQUIA | C81: CONCORDIA | D81: ANTIOQUIA - CONCORDIA
A82: 2 | B82: ANTIOQUIA | C82: COPACABANA | D82: ANTIOQUIA - COPACABANA
A83: 2 | B83: ANTIOQUIA | C83: DABEIBA | D83: ANTIOQUIA - DABEIBA
A84: 2 | B84: ANTIOQUIA | C84: DON MATIAS | D84: ANTIOQUIA - DON MATIAS
A85: 2 | B85: ANTIOQUIA | C85: EBEJICO | D85: ANTIOQUIA - EBEJICO
A86: 2 | B86: ANTIOQUIA | C86: ENTRERRIOS | D86: ANTIOQUIA - ENTRERRIOS
A87: 2 | B87: ANTIOQUIA | C87: FREDONIA | D87: ANTIOQUIA - FREDONIA
A88: 2 | B88: ANTIOQUIA | C88: FRONTINO | D88: ANTIOQUIA - FRONTINO
A89: 2 | B89: ANTIOQUIA | C89: GIRALDO | D89: ANTIOQUIA - GIRALDO
A90: 2 | B90: ANTIOQUIA | C90: GIRARDOTA | D90: ANTIOQUIA - GIRARDOTA
A91: 2 | B91: ANTIOQUIA | C91: GOMEZ PLATA | D91: ANTIOQUIA - GOMEZ PLATA
A92: 2 | B92: ANTIOQUIA | C92: GRANADA | D92: ANTIOQUIA - GRANADA
A93: 2 | B93: ANTIOQUIA | C93: GUADALUPE | D93: ANTIOQUIA - GUADALUPE
A94: 2 | B94: ANTIOQUIA | C94: GUARNE | D94: ANTIOQUIA - GUARNE
A95: 2 | B95: ANTIOQUIA | C95: GUATAPE | D95: ANTIOQUIA - GUATAPE
A96: 2 | B96: ANTIOQUIA | C96: HELICONIA | D96: ANTIOQUIA - HELICONIA
A97: 2 | B97: ANTIOQUIA | C97: HISPANIA | D97: ANTIOQUIA - HISPANIA
A98: 2 | B98: ANTIOQUIA | C98: ITUANGO | D98: ANTIOQUIA - ITUANGO
A99: 2 | B99: ANTIOQUIA | C99: JARDIN | D99: ANTIOQUIA - JARDIN
A100: 2 | B100: ANTIOQUIA | C100: JERICO | D100: ANTIOQUIA - JERICO
A101: 2 | B101: ANTIOQUIA | C101: LA CEJA | D101: ANTIOQUIA - LA CEJA
A102: 2 | B102: ANTIOQUIA | C102: LA ESTRELLA | D102: ANTIOQUIA - LA ESTRELLA
A103: 2 | B103: ANTIOQUIA | C103: LA PINTADA | D103: ANTIOQUIA - LA PINTADA
A104: 2 | B104: ANTIOQUIA | C104: LA UNION | D104: ANTIOQUIA - LA UNION
A105: 2 | B105: ANTIOQUIA | C105: LIBORINA | D105: ANTIOQUIA - LIBORINA
A106: 2 | B106: ANTIOQUIA | C106: MACEO | D106: ANTIOQUIA - MACEO
A107: 2 | B107: ANTIOQUIA | C107: MARINILLA | D107: ANTIOQUIA - MARINILLA
A108: 2 | B108: ANTIOQUIA | C108: MONTEBELLO | D108: ANTIOQUIA - MONTEBELLO
A109: 2 | B109: ANTIOQUIA | C109: MURINDO | D109: ANTIOQUIA - MURINDO
A110: 2 | B110: ANTIOQUIA | C110: NARIÑO | D110: ANTIOQUIA - NARIÑO
A111: 2 | B111: ANTIOQUIA | C111: NECOCLI | D111: ANTIOQUIA - NECOCLI
A112: 2 | B112: ANTIOQUIA | C112: OLAYA | D112: ANTIOQUIA - OLAYA
A113: 2 | B113: ANTIOQUIA | C113: PEÐOL | D113: ANTIOQUIA - PEÐOL
A114: 2 | B114: ANTIOQUIA | C114: PEQUE | D114: ANTIOQUIA - PEQUE
A115: 2 | B115: ANTIOQUIA | C115: PUEBLORRICO | D115: ANTIOQUIA - PUEBLORRICO
A116: 2 | B116: ANTIOQUIA | C116: PUERTO BERRIO | D116: ANTIOQUIA - PUERTO BERRIO
A117: 2 | B117: ANTIOQUIA | C117: PUERTO NARE | D117: ANTIOQUIA - PUERTO NARE
A118: 2 | B118: ANTIOQUIA | C118: PUERTO TRIUNFO | D118: ANTIOQUIA - PUERTO TRIUNFO
A119: 2 | B119: ANTIOQUIA | C119: REMEDIOS | D119: ANTIOQUIA - REMEDIOS
A120: 2 | B120: ANTIOQUIA | C120: RETIRO | D120: ANTIOQUIA - RETIRO
A121: 2 | B121: ANTIOQUIA | C121: RIONEGRO | D121: ANTIOQUIA - RIONEGRO
A122: 2 | B122: ANTIOQUIA | C122: SABANALARGA | D122: ANTIOQUIA - SABANALARGA
A123: 2 | B123: ANTIOQUIA | C123: SABANETA | D123: ANTIOQUIA - SABANETA
A124: 2 | B124: ANTIOQUIA | C124: SALGAR | D124: ANTIOQUIA - SALGAR
A125: 2 | B125: ANTIOQUIA | C125: SAN ANDRES DE CUERQUIA | D125: ANTIOQUIA - SAN ANDRES DE CUERQUIA
A126: 2 | B126: ANTIOQUIA | C126: SAN CARLOS | D126: ANTIOQUIA - SAN CARLOS
A127: 2 | B127: ANTIOQUIA | C127: SAN FRANCISCO | D127: ANTIOQUIA - SAN FRANCISCO
A128: 2 | B128: ANTIOQUIA | C128: SAN JERONIMO | D128: ANTIOQUIA - SAN JERONIMO
A129: 2 | B129: ANTIOQUIA | C129: SAN JOSE DE LA MONTAÑA | D129: ANTIOQUIA - SAN JOSE DE LA MONTAÑA
A130: 2 | B130: ANTIOQUIA | C130: SAN JUAN DE URABA | D130: ANTIOQUIA - SAN JUAN DE URABA
A131: 2 | B131: ANTIOQUIA | C131: SAN LUIS | D131: ANTIOQUIA - SAN LUIS
A132: 2 | B132: ANTIOQUIA | C132: SAN PEDRO | D132: ANTIOQUIA - SAN PEDRO
A133: 2 | B133: ANTIOQUIA | C133: SAN PEDRO DE URABA | D133: ANTIOQUIA - SAN PEDRO DE URABA
A134: 2 | B134: ANTIOQUIA | C134: SAN RAFAEL | D134: ANTIOQUIA - SAN RAFAEL
A135: 2 | B135: ANTIOQUIA | C135: SAN ROQUE | D135: ANTIOQUIA - SAN ROQUE
A136: 2 | B136: ANTIOQUIA | C136: SAN VICENTE | D136: ANTIOQUIA - SAN VICENTE
A137: 2 | B137: ANTIOQUIA | C137: SANTA BARBARA | D137: ANTIOQUIA - SANTA BARBARA
A138: 2 | B138: ANTIOQUIA | C138: SANTA ROSA DE OSOS | D138: ANTIOQUIA - SANTA ROSA DE OSOS
A139: 2 | B139: ANTIOQUIA | C139: SANTO DOMINGO | D139: ANTIOQUIA - SANTO DOMINGO
A140: 2 | B140: ANTIOQUIA | C140: EL SANTUARIO | D140: ANTIOQUIA - EL SANTUARIO
A141: 2 | B141: ANTIOQUIA | C141: SEGOVIA | D141: ANTIOQUIA - SEGOVIA
A142: 2 | B142: ANTIOQUIA | C142: SONSON | D142: ANTIOQUIA - SONSON
A143: 2 | B143: ANTIOQUIA | C143: SOPETRAN | D143: ANTIOQUIA - SOPETRAN
A144: 2 | B144: ANTIOQUIA | C144: TAMESIS | D144: ANTIOQUIA - TAMESIS
A145: 2 | B145: ANTIOQUIA | C145: TARAZA | D145: ANTIOQUIA - TARAZA
A146: 2 | B146: ANTIOQUIA | C146: TARSO | D146: ANTIOQUIA - TARSO
A147: 2 | B147: ANTIOQUIA | C147: TITIRIBI | D147: ANTIOQUIA - TITIRIBI
A148: 2 | B148: ANTIOQUIA | C148: TOLEDO | D148: ANTIOQUIA - TOLEDO
A149: 2 | B149: ANTIOQUIA | C149: TURBO | D149: ANTIOQUIA - TURBO
A150: 2 | B150: ANTIOQUIA | C150: URAMITA | D150: ANTIOQUIA - URAMITA
A151: 2 | B151: ANTIOQUIA | C151: URRAO | D151: ANTIOQUIA - URRAO
A152: 2 | B152: ANTIOQUIA | C152: VALDIVIA | D152: ANTIOQUIA - VALDIVIA
A153: 2 | B153: ANTIOQUIA | C153: VALPARAISO | D153: ANTIOQUIA - VALPARAISO
A154: 2 | B154: ANTIOQUIA | C154: VEGACHI | D154: ANTIOQUIA - VEGACHI
A155: 2 | B155: ANTIOQUIA | C155: VENECIA | D155: ANTIOQUIA - VENECIA
A156: 2 | B156: ANTIOQUIA | C156: VIGIA DEL FUERTE | D156: ANTIOQUIA - VIGIA DEL FUERTE
A157: 2 | B157: ANTIOQUIA | C157: YALI | D157: ANTIOQUIA - YALI
A158: 2 | B158: ANTIOQUIA | C158: YARUMAL | D158: ANTIOQUIA - YARUMAL
A159: 2 | B159: ANTIOQUIA | C159: YOLOMBO | D159: ANTIOQUIA - YOLOMBO
A160: 2 | B160: ANTIOQUIA | C160: YONDO | D160: ANTIOQUIA - YONDO
A161: 2 | B161: ANTIOQUIA | C161: ZARAGOZA | D161: ANTIOQUIA - ZARAGOZA
A162: 2 | B162: ATLANTICO | C162: BARANOA | D162: ATLANTICO - BARANOA
A163: 2 | B163: ATLANTICO | C163: CAMPO DE LA CRUZ | D163: ATLANTICO - CAMPO DE LA CRUZ
A164: 2 | B164: ATLANTICO | C164: CANDELARIA | D164: ATLANTICO - CANDELARIA
A165: 2 | B165: ATLANTICO | C165: GALAPA | D165: ATLANTICO - GALAPA
A166: 2 | B166: ATLANTICO | C166: JUAN DE ACOSTA | D166: ATLANTICO - JUAN DE ACOSTA
A167: 2 | B167: ATLANTICO | C167: LURUACO | D167: ATLANTICO - LURUACO
A168: 2 | B168: ATLANTICO | C168: MANATI | D168: ATLANTICO - MANATI
A169: 2 | B169: ATLANTICO | C169: PALMAR DE VARELA | D169: ATLANTICO - PALMAR DE VARELA
A170: 2 | B170: ATLANTICO | C170: PIOJO | D170: ATLANTICO - PIOJO
A171: 2 | B171: ATLANTICO | C171: POLONUEVO | D171: ATLANTICO - POLONUEVO
A172: 2 | B172: ATLANTICO | C172: PONEDERA | D172: ATLANTICO - PONEDERA
A173: 2 | B173: ATLANTICO | C173: PUERTO COLOMBIA | D173: ATLANTICO - PUERTO COLOMBIA
A174: 2 | B174: ATLANTICO | C174: SABANAGRANDE | D174: ATLANTICO - SABANAGRANDE
A175: 2 | B175: ATLANTICO | C175: SABANALARGA | D175: ATLANTICO - SABANALARGA
A176: 2 | B176: ATLANTICO | C176: SANTA LUCIA | D176: ATLANTICO - SANTA LUCIA
A177: 2 | B177: ATLANTICO | C177: SANTO TOMAS | D177: ATLANTICO - SANTO TOMAS
A178: 2 | B178: ATLANTICO | C178: SUAN | D178: ATLANTICO - SUAN
A179: 2 | B179: ATLANTICO | C179: TUBARA | D179: ATLANTICO - TUBARA
A180: 2 | B180: ATLANTICO | C180: USIACURI | D180: ATLANTICO - USIACURI
A181: 2 | B181: BOLIVAR | C181: ACHI | D181: BOLIVAR - ACHI
A182: 2 | B182: BOLIVAR | C182: ALTOS DEL ROSARIO | D182: BOLIVAR - ALTOS DEL ROSARIO
A183: 2 | B183: BOLIVAR | C183: ARENAL | D183: BOLIVAR - ARENAL
A184: 2 | B184: BOLIVAR | C184: ARROYOHONDO | D184: BOLIVAR - ARROYOHONDO
A185: 2 | B185: BOLIVAR | C185: CALAMAR | D185: BOLIVAR - CALAMAR
A186: 2 | B186: BOLIVAR | C186: CANTAGALLO | D186: BOLIVAR - CANTAGALLO
A187: 2 | B187: BOLIVAR | C187: CORDOBA | D187: BOLIVAR - CORDOBA
A188: 2 | B188: BOLIVAR | C188: CLEMENCIA | D188: BOLIVAR - CLEMENCIA
A189: 2 | B189: BOLIVAR | C189: EL CARMEN DE BOLIVAR | D189: BOLIVAR - EL CARMEN DE BOLIVAR
A190: 2 | B190: BOLIVAR | C190: EL GUAMO | D190: BOLIVAR - EL GUAMO
A191: 2 | B191: BOLIVAR | C191: EL PEÑON | D191: BOLIVAR - EL PEÑON
A192: 2 | B192: BOLIVAR | C192: HATILLO DE LOBA | D192: BOLIVAR - HATILLO DE LOBA
A193: 2 | B193: BOLIVAR | C193: MAGANGUE | D193: BOLIVAR - MAGANGUE
A194: 2 | B194: BOLIVAR | C194: MAHATES | D194: BOLIVAR - MAHATES
A195: 2 | B195: BOLIVAR | C195: MARGARITA | D195: BOLIVAR - MARGARITA
A196: 2 | B196: BOLIVAR | C196: MARIA LA BAJA | D196: BOLIVAR - MARIA LA BAJA
A197: 2 | B197: BOLIVAR | C197: MONTECRISTO | D197: BOLIVAR - MONTECRISTO
A198: 2 | B198: BOLIVAR | C198: MOMPOS | D198: BOLIVAR - MOMPOS
A199: 2 | B199: BOLIVAR | C199: NOROSI | D199: BOLIVAR - NOROSI
A200: 2 | B200: BOLIVAR | C200: MORALES | D200: BOLIVAR - MORALES
... 921 more rows

Sheet ListasAutomaticas (hidden)
A1: 1DepartaMuni | B1: 2DepartaMuni | C1: 3DepartaMuni | D1: 4DepartaMuni
A2: ANTIOQUIA - ARMENIA | B2: ANTIOQUIA - ARMENIA | C2: AMAZONAS - EL ENCANTO | D2: ANTIOQUIA - ABEJORRAL
A3: ANTIOQUIA - BELLO | B3: ANTIOQUIA - BELLO | C3: AMAZONAS - LA CHORRERA | D3: ANTIOQUIA - ABRIAQUI
A4: ANTIOQUIA - ENVIGADO | B4: ANTIOQUIA - ENVIGADO | C4: AMAZONAS - LA PEDRERA | D4: ANTIOQUIA - ALEJANDRIA
A5: ANTIOQUIA - ITAGUI | B5: ANTIOQUIA - ITAGUI | C5: AMAZONAS - LA VICTORIA | D5: ANTIOQUIA - AMAGA
A6: ANTIOQUIA - MEDELLIN | B6: ANTIOQUIA - MEDELLIN | C6: AMAZONAS - LETICIA | D6: ANTIOQUIA - AMALFI
A7: ATLANTICO - BARRANQUILLA | B7: ATLANTICO - BARRANQUILLA | C7: AMAZONAS - MIRITI - PARANA | D7: ANTIOQUIA - ANDES
A8: ATLANTICO - MALAMBO | B8: ATLANTICO - MALAMBO | C8: AMAZONAS - PUERTO ALEGRIA | D8: ANTIOQUIA - ANGELOPOLIS
A9: ATLANTICO - SOLEDAD | B9: ATLANTICO - SOLEDAD | C9: AMAZONAS - PUERTO ARICA | D9: ANTIOQUIA - ANGOSTURA
A10: BOGOTA - BOGOTA, D.C. | B10: BOGOTA - BOGOTA, D.C. | C10: AMAZONAS - PUERTO NARIÑO | D10: ANTIOQUIA - ANZA
A11: BOLIVAR - CARTAGENA | B11: BOLIVAR - CARTAGENA | C11: AMAZONAS - PUERTO SANTANDER | D11: ANTIOQUIA - APARTADO
A12: BOYACA - TUNJA | B12: BOYACA - TUNJA | C12: AMAZONAS - TARAPACA | D12: ANTIOQUIA - ARBOLETES
A13: CALDAS - MANIZALES | B13: CALDAS - MANIZALES | C13: ANTIOQUIA - ANORI | D13: ANTIOQUIA - ARGELIA
A14: CASANARE - YOPAL | B14: CASANARE - YOPAL | C14: ANTIOQUIA - BRICEÑO | D14: ANTIOQUIA - BARBOSA
A15: CAUCA - POPAYAN | B15: CAUCA - POPAYAN | C15: ANTIOQUIA - EL BAGRE | D15: ANTIOQUIA - BELMIRA
A16: CESAR - VALLEDUPAR | B16: CESAR - VALLEDUPAR | C16: ANTIOQUIA - MUTATA | D16: ANTIOQUIA - BETANIA
A17: CORDOBA - MONTERIA | B17: CORDOBA - MONTERIA | C17: ANTIOQUIA - NECHI | D17: ANTIOQUIA - BETULIA
A18: CUNDINAMARCA - CAJICA | B18: CUNDINAMARCA - CAJICA | C18: ARAUCA - ARAUCA | D18: ANTIOQUIA - BURITICA
A19: CUNDINAMARCA - CHIA | B19: CUNDINAMARCA - CHIA | C19: ARAUCA - ARAUQUITA | D19: ANTIOQUIA - CACERES
A20: CUNDINAMARCA - COTA | B20: CUNDINAMARCA - COTA | C20: ARAUCA - CRAVO NORTE | D20: ANTIOQUIA - CAICEDO
A21: CUNDINAMARCA - FACATATIVA | B21: CUNDINAMARCA - FACATATIVA | C21: ARAUCA - FORTUL | D21: ANTIOQUIA - CALDAS
A22: CUNDINAMARCA - FUNZA | B22: CUNDINAMARCA - FUNZA | C22: ARAUCA - PUERTO RONDON | D22: ANTIOQUIA - CAMPAMENTO
A23: CUNDINAMARCA - LA CALERA | B23: CUNDINAMARCA - LA CALERA | C23: ARAUCA - SARAVENA | D23: ANTIOQUIA - CAÑASGORDAS
A24: CUNDINAMARCA - MADRID | B24: CUNDINAMARCA - MADRID | C24: ARAUCA - TAME | D24: ANTIOQUIA - CARACOLI
A25: CUNDINAMARCA - MOSQUERA | B25: CUNDINAMARCA - MOSQUERA | C25: ATLANTICO - REPELON | D25: ANTIOQUIA - CARAMANTA
A26: CUNDINAMARCA - SIBATE | B26: CUNDINAMARCA - SIBATE | C26: BOLIVAR - ARJONA | D26: ANTIOQUIA - CAREPA
A27: CUNDINAMARCA - SOACHA | B27: CUNDINAMARCA - SOACHA | C27: BOLIVAR - BARRANCO DE LOBA | D27: ANTIOQUIA - CAROLINA
A28: CUNDINAMARCA - SOPO | B28: CUNDINAMARCA - SOPO | C28: BOLIVAR - CICUCO | D28: ANTIOQUIA - CAUCASIA
A29: CUNDINAMARCA - TENJO | B29: CUNDINAMARCA - TENJO | C29: BOLIVAR - PINILLOS | D29: ANTIOQUIA - CHIGORODO
A30: CUNDINAMARCA - TOCANCIPA | B30: CUNDINAMARCA - TOCANCIPA | C30: BOLIVAR - SIMITI | D30: ANTIOQUIA - CISNEROS
A31: CUNDINAMARCA - ZIPAQUIRA | B31: CUNDINAMARCA - ZIPAQUIRA | C31: BOLIVAR - TIQUISIO | D31: ANTIOQUIA - CIUDAD BOLIVAR
A32: HUILA - NEIVA | B32: HUILA - NEIVA | C32: BOLIVAR - ZAMBRANO | D32: ANTIOQUIA - COCORNA
A33: LA GUAJIRA - RIOHACHA | B33: LA GUAJIRA - RIOHACHA | C33: BOYACA - EL COCUY | D33: ANTIOQUIA - CONCEPCION
A34: MAGDALENA - SANTA MARTA | B34: MAGDALENA - SANTA MARTA | C34: BOYACA - GsICAN | D34: ANTIOQUIA - CONCORDIA
A35: META - VILLAVICENCIO | B35: META - VILLAVICENCIO | C35: BOYACA - PISBA | D35: ANTIOQUIA - COPACABANA
A36: N. DE SANTANDER - CUCUTA | B36: N. DE SANTANDER - CUCUTA | C36: BOYACA - SAN JOSE DE PARE | D36: ANTIOQUIA - DABEIBA
A37: NARIÑO - PASTO | B37: NARIÑO - PASTO | C37: CAQUETA - LA MONTAÑITA | D37: ANTIOQUIA - DON MATIAS
A38: QUINDIO - ARMENIA | B38: QUINDIO - ARMENIA | C38: CAQUETA - SAN JOSE DEL FRAGUA | D38: ANTIOQUIA - EBEJICO
A39: RISARALDA - DOSQUEBRADAS | B39: RISARALDA - DOSQUEBRADAS | C39: CAQUETA - VALPARAISO | D39: ANTIOQUIA - EL CARMEN DE VIBORAL
A40: RISARALDA - PEREIRA | B40: RISARALDA - PEREIRA | C40: CASANARE - CHAMEZA | D40: ANTIOQUIA - EL SANTUARIO
A41: SANTANDER - BUCARAMANGA | B41: SANTANDER - BUCARAMANGA | C41: CASANARE - LA SALINA | D41: ANTIOQUIA - ENTRERRIOS
A42: SANTANDER - FLORIDABLANCA | B42: SANTANDER - FLORIDABLANCA | C42: CASANARE - MANI | D42: ANTIOQUIA - FREDONIA
A43: SANTANDER - GIRON | B43: SANTANDER - GIRON | C43: CASANARE - NUNCHIA | D43: ANTIOQUIA - FRONTINO
A44: SUCRE - SINCELEJO | B44: SUCRE - SINCELEJO | C44: CASANARE - OROCUE | D44: ANTIOQUIA - GIRALDO
A45: TOLIMA - IBAGUE | B45: TOLIMA - IBAGUE | C45: CASANARE - RECETOR | D45: ANTIOQUIA - GIRARDOTA
A46: VALLE DEL CAUCA - CALI | B46: VALLE DEL CAUCA - CALI | C46: CASANARE - SABANALARGA | D46: ANTIOQUIA - GOMEZ PLATA
C47: CASANARE - SACAMA | D47: ANTIOQUIA - GRANADA
C48: CASANARE - SAN LUIS DE PALENQUE | D48: ANTIOQUIA - GUADALUPE
C49: CASANARE - TAMARA | D49: ANTIOQUIA - GUARNE
C50: CASANARE - TRINIDAD | D50: ANTIOQUIA - GUATAPE
C51: CAUCA - GUAPI | D51: ANTIOQUIA - HELICONIA
C52: CAUCA - MERCADERES | D52: ANTIOQUIA - HISPANIA
C53: CAUCA - TIMBIQUI | D53: ANTIOQUIA - ITUANGO
C54: CHOCO - ACANDI | D54: ANTIOQUIA - JARDIN
C55: CHOCO - ALTO BAUDO | D55: ANTIOQUIA - JERICO
C56: CHOCO - ATRATO | D56: ANTIOQUIA - LA CEJA
C57: CHOCO - BAGADO | D57: ANTIOQUIA - LA ESTRELLA
C58: CHOCO - BAHIA SOLANO | D58: ANTIOQUIA - LA PINTADA
C59: CHOCO - BAJO BAUDO | D59: ANTIOQUIA - LA UNION
C60: CHOCO - BOJAYA | D60: ANTIOQUIA - LIBORINA
C61: CHOCO - CARMEN DEL DARIEN | D61: ANTIOQUIA - MACEO
C62: CHOCO - CERTEGUI | D62: ANTIOQUIA - MARINILLA
C63: CHOCO - CONDOTO | D63: ANTIOQUIA - MONTEBELLO
C64: CHOCO - EL CANTON DEL SAN PABLO | D64: ANTIOQUIA - MURINDO
C65: CHOCO - EL CARMEN DE ATRATO | D65: ANTIOQUIA - NARIÑO
C66: CHOCO - EL LITORAL DEL SAN JUAN | D66: ANTIOQUIA - NECOCLI
C67: CHOCO - ISTMINA | D67: ANTIOQUIA - OLAYA
C68: CHOCO - JURADO | D68: ANTIOQUIA - PEÐOL
C69: CHOCO - LLORO | D69: ANTIOQUIA - PEQUE
C70: CHOCO - MEDIO ATRATO | D70: ANTIOQUIA - PUEBLORRICO
C71: CHOCO - MEDIO BAUDO | D71: ANTIOQUIA - PUERTO BERRIO
C72: CHOCO - MEDIO SAN JUAN | D72: ANTIOQUIA - PUERTO NARE
C73: CHOCO - NOVITA | D73: ANTIOQUIA - PUERTO TRIUNFO
C74: CHOCO - NUQUI | D74: ANTIOQUIA - REMEDIOS
C75: CHOCO - RIO IRO | D75: ANTIOQUIA - RETIRO
C76: CHOCO - RIO QUITO | D76: ANTIOQUIA - RIONEGRO
C77: CHOCO - RIOSUCIO | D77: ANTIOQUIA - SABANALARGA
C78: CHOCO - SAN JOSE DEL PALMAR | D78: ANTIOQUIA - SABANETA
C79: CHOCO - SIPI | D79: ANTIOQUIA - SALGAR
C80: CHOCO - TADO | D80: ANTIOQUIA - SAN ANDRES DE CUERQUIA
C81: CHOCO - UNGUIA | D81: ANTIOQUIA - SAN CARLOS
C82: CHOCO - UNION PANAMERICANA | D82: ANTIOQUIA - SAN FRANCISCO
C83: CORDOBA - MOÑITOS | D83: ANTIOQUIA - SAN JERONIMO
C84: CORDOBA - PUEBLO NUEVO | D84: ANTIOQUIA - SAN JOSE DE LA MONTAÑA
C85: CORDOBA - PUERTO ESCONDIDO | D85: ANTIOQUIA - SAN JUAN DE URABA
C86: GUAINIA - BARRANCO MINAS | D86: ANTIOQUIA - SAN LUIS
C87: GUAINIA - CACAHUAL | D87: ANTIOQUIA - SAN PEDRO
C88: GUAINIA - INIRIDA | D88: ANTIOQUIA - SAN PEDRO DE URABA
C89: GUAINIA - LA GUADALUPE | D89: ANTIOQUIA - SAN RAFAEL
C90: GUAINIA - MAPIRIPANA | D90: ANTIOQUIA - SAN ROQUE
C91: GUAINIA - MORICHAL | D91: ANTIOQUIA - SAN VICENTE
C92: GUAINIA - PANA PANA | D92: ANTIOQUIA - SANTA BARBARA
C93: GUAINIA - PUERTO COLOMBIA | D93: ANTIOQUIA - SANTA ROSA DE OSOS
C94: GUAINIA - SAN FELIPE | D94: ANTIOQUIA - SANTAFE DE ANTIOQUIA
C95: GUAVIARE - CALAMAR | D95: ANTIOQUIA - SANTO DOMINGO
C96: GUAVIARE - EL RETORNO | D96: ANTIOQUIA - SEGOVIA
C97: GUAVIARE - MIRAFLORES | D97: ANTIOQUIA - SONSON
C98: GUAVIARE - SAN JOSE DEL GUAVIARE | D98: ANTIOQUIA - SOPETRAN
C99: LA GUAJIRA - URIBIA | D99: ANTIOQUIA - TAMESIS
C100: MAGDALENA - CHIBOLO | D100: ANTIOQUIA - TARAZA
C101: META - LA MACARENA | D101: ANTIOQUIA - TARSO
C102: META - MAPIRIPAN | D102: ANTIOQUIA - TITIRIBI
C103: META - URIBE | D103: ANTIOQUIA - TOLEDO
C104: N. DE SANTANDER - EL CARMEN | D104: ANTIOQUIA - TURBO
C105: N. DE SANTANDER - EL TARRA | D105: ANTIOQUIA - URAMITA
C106: N. DE SANTANDER - EL ZULIA | D106: ANTIOQUIA - URRAO
C107: N. DE SANTANDER - TEORAMA | D107: ANTIOQUIA - VALDIVIA
C108: NARIÑO - BARBACOAS | D108: ANTIOQUIA - VALPARAISO
C109: NARIÑO - EL CHARCO | D109: ANTIOQUIA - VEGACHI
C110: NARIÑO - FRANCISCO PIZARRO | D110: ANTIOQUIA - VENECIA
C111: NARIÑO - SAN ANDRES DE TUMACO | D111: ANTIOQUIA - VIGIA DEL FUERTE
C112: PUTUMAYO - COLON | D112: ANTIOQUIA - YALI
C113: PUTUMAYO - LEGUIZAMO | D113: ANTIOQUIA - YARUMAL
C114: PUTUMAYO - ORITO | D114: ANTIOQUIA - YOLOMBO
C115: PUTUMAYO - PUERTO ASIS | D115: ANTIOQUIA - YONDO
C116: PUTUMAYO - PUERTO CAICEDO | D116: ANTIOQUIA - ZARAGOZA
C117: PUTUMAYO - PUERTO GUZMAN | D117: ATLANTICO - BARANOA
C118: PUTUMAYO - SAN FRANCISCO | D118: ATLANTICO - CAMPO DE LA CRUZ
C119: PUTUMAYO - SAN MIGUEL | D119: ATLANTICO - CANDELARIA
C120: PUTUMAYO - SANTIAGO | D120: ATLANTICO - GALAPA
C121: PUTUMAYO - SIBUNDOY | D121: ATLANTICO - JUAN DE ACOSTA
C122: PUTUMAYO - VALLE DEL GUAMUEZ | D122: ATLANTICO - LURUACO
C123: SAN ANDRES - PROVIDENCIA | D123: ATLANTICO - MANATI
C124: SAN ANDRES - SAN ANDRES | D124: ATLANTICO - PALMAR DE VARELA
C125: SUCRE - SUCRE | D125: ATLANTICO - PIOJO
C126: TOLIMA - ATACO | D126: ATLANTICO - POLONUEVO
C127: TOLIMA - PLANADAS | D127: ATLANTICO - PONEDERA
C128: TOLIMA - RIOBLANCO | D128: ATLANTICO - PUERTO COLOMBIA
C129: VAUPES - CARURU | D129: ATLANTICO - SABANAGRANDE
C130: VAUPES - MITU | D130: ATLANTICO - SABANALARGA
C131: VAUPES - PACOA | D131: ATLANTICO - SANTA LUCIA
C132: VAUPES - PAPUNAUA | D132: ATLANTICO - SANTO TOMAS
C133: VAUPES - TARAIRA | D133: ATLANTICO - SUAN
C134: VAUPES - YAVARATE | D134: ATLANTICO - TUBARA
C135: VICHADA - CUMARIBO | D135: ATLANTICO - USIACURI
C136: VICHADA - LA PRIMAVERA | D136: BOLIVAR - ACHI
C137: VICHADA - PUERTO CARREÑO | D137: BOLIVAR - ALTOS DEL ROSARIO
C138: VICHADA - SANTA ROSALIA | D138: BOLIVAR - ARENAL
D139: BOLIVAR - ARROYOHONDO
D140: BOLIVAR - CALAMAR
D141: BOLIVAR - CANTAGALLO
D142: BOLIVAR - CLEMENCIA
D143: BOLIVAR - CORDOBA
D144: BOLIVAR - EL CARMEN DE BOLIVAR
D145: BOLIVAR - EL GUAMO
D146: BOLIVAR - EL PEÑON
D147: BOLIVAR - HATILLO DE LOBA
D148: BOLIVAR - MAGANGUE
D149: BOLIVAR - MAHATES
D150: BOLIVAR - MARGARITA
D151: BOLIVAR - MARIA LA BAJA
D152: BOLIVAR - MOMPOS
D153: BOLIVAR - MONTECRISTO
D154: BOLIVAR - MORALES
D155: BOLIVAR - NOROSI
D156: BOLIVAR - REGIDOR
D157: BOLIVAR - RIO VIEJO
D158: BOLIVAR - SAN CRISTOBAL
D159: BOLIVAR - SAN ESTANISLAO
D160: BOLIVAR - SAN FERNANDO
D161: BOLIVAR - SAN JACINTO
D162: BOLIVAR - SAN JACINTO DEL CAUCA
D163: BOLIVAR - SAN JUAN NEPOMUCENO
D164: BOLIVAR - SAN MARTIN DE LOBA
D165: BOLIVAR - SAN PABLO
D166: BOLIVAR - SANTA CATALINA
D167: BOLIVAR - SANTA ROSA
D168: BOLIVAR - SANTA ROSA DEL SUR
D169: BOLIVAR - SOPLAVIENTO
D170: BOLIVAR - TALAIGUA NUEVO
D171: BOLIVAR - TURBACO
D172: BOLIVAR - TURBANA
D173: BOLIVAR - VILLANUEVA
D174: BOYACA - ALMEIDA
D175: BOYACA - AQUITANIA
D176: BOYACA - ARCABUCO
D177: BOYACA - BELEN
D178: BOYACA - BERBEO
D179: BOYACA - BETEITIVA
D180: BOYACA - BOAVITA
D181: BOYACA - BOYACA
D182: BOYACA - BRICEÑO
D183: BOYACA - BUENAVISTA
D184: BOYACA - BUSBANZA
D185: BOYACA - CALDAS
D186: BOYACA - CAMPOHERMOSO
D187: BOYACA - CERINZA
D188: BOYACA - CHINAVITA
D189: BOYACA - CHIQUINQUIRA
D190: BOYACA - CHIQUIZA
D191: BOYACA - CHISCAS
D192: BOYACA - CHITA
D193: BOYACA - CHITARAQUE
D194: BOYACA - CHIVATA
D195: BOYACA - CHIVOR
D196: BOYACA - CIENEGA
D197: BOYACA - COMBITA
D198: BOYACA - COPER
D199: BOYACA - CORRALES
D200: BOYACA - COVARACHIA
... 739 more rows

Sheet Cat_Original (hidden)
A1: Fecha_Act. | B1: 2021-12-02
A2: REGIÓN | B2: PROVEEDOR | C2: CATEGORIA | D2: PRODUCTO | E2: DESCRIPCIÓN | F2: PRECIO | G2: REGIÓN
A3: 1 | B3: KEY MARKET SAS | C3: BROTHER | D3: Toner | E3: TN890 toner larga duracion 20.000 pág. Para equipos MFC-L6900DW | F3: 714780 | G3: 1
A4: 1 | B4: KEY MARKET SAS | C4: BROTHER | D4: Unidad Drum | E4: DR890 Unidad Drum larga duracion 50.000 pág. Para equipos MFC-L6900DW | F4: 621300 | G4: 1
A5: 1 | B5: KEY MARKET SAS | C5: BROTHER | D5: Toner | E5: TN890 toner larga duracion 20.000 pág. Para equipos HL-L6400DW | F5: 743478.2609 | G5: 1
A6: 1 | B6: KEY MARKET SAS | C6: BROTHER | D6: Toner | E6: TN439BK toner Negro larga duracion 9.000 pág. Para equipos color MFC-L9570DW | F6: 699241.3043 | G6: 1
A7: 1 | B7: KEY MARKET SAS | C7: BROTHER | D7: Toner | E7: TN439C toner Cyan larga duracion 9.000 pág. Para equipos color MFC-L9570DW | F7: 621300 | G7: 1
A8: 1 | B8: KEY MARKET SAS | C8: BROTHER | D8: Toner | E8: TN439M toner Magenta larga duracion 9.000 pág. Para equipos color MFC-L9570DW | F8: 485450 | G8: 1
A9: 1 | B9: KEY MARKET SAS | C9: BROTHER | D9: Toner | E9: TN439Y toner Yellow larga duracion 9.000 pág. Para equipos color MFC-L9570DW | F9: 816380.4348 | G9: 1
A10: 1 | B10: KEY MARKET SAS | C10: BROTHER | D10: Unidad Drum | E10: DR433CL Unidad Drum larga duracion 50.000 pág. Para equipos MFC-L9570CDW | F10: 816380.4348 | G10: 1
A11: 1 | B11: KEY MARKET SAS | C11: BROTHER | D11: Toner | E11: TN2420 toner larga duracion 3.000 pág. Para equipos DCP-L2550DN | F11: 816380.4348 | G11: 1
A12: 1 | B12: KEY MARKET SAS | C12: BROTHER | D12: Unidad Drum | E12: DR2400 Unidad Drum larga duracion 12.000 pág. Para equipos DCP-L2550DN | F12: 661943.4783 | G12: 1
A13: 1 | B13: KEY MARKET SAS | C13: BROTHER | D13: Toner | E13: TN850 toner larga duracion 8.000 pág. Para equipos MFC-L5900DW - MFC-L6750DW - MFC-L5700DW - MFC-L5800DW | F13: 264719.5652 | G13: 1
A14: 1 | B14: KEY MARKET SAS | C14: BROTHER | D14: Unidad Drum | E14: DR820 Unidda drum larga duracion 50.000 pág. Para equipos MFC-L5900DW - MFC-L6750DW - MFC-L5700DW - MFC-L5800DW | F14: 101980.4348 | G14: 1
A15: 1 | B15: KEY MARKET SAS | C15: BROTHER | D15: Toner | E15: TN850 toner larga duracion 8.000 pág. Para equipos HL-L5100DN - DCP-L5500DN - DCP-L5600DN - DCP-L5650DN | F15: 351293.4783 | G15: 1
A16: 1 | B16: KEY MARKET SAS | C16: BROTHER | D16: Unidad Drum | E16: DR820 Unidad Drum larga duracion 30.000 pág. Para equipos HL-L5100DN - DCP-L5500DN - DCP-L5600DN - DCP-L5650DN | F16: 463310.8696 | G16: 1
A17: 1 | B17: KEY MARKET SAS | C17: BROTHER | D17: Unidad Drum | E17: DR820 Unidad Drum larga duracion 30.000 pág. Para equipos HL-L6200DW - HL-L6200DWT | F17: 504780.4348 | G17: 1
A18: 1 | B18: KEY MARKET SAS | C18: BROTHER | D18: Toner | E18: BT5001C 5.000 PAGS T500/ T800/T510W / T710W / T910DW | F18: 618367.3913 | G18: 1
A19: 1 | B19: KEY MARKET SAS | C19: BROTHER | D19: Toner | E19: BT5001M 5.000 PAGS T500/ T800/T510W / T710W / T910DW | F19: 504780.4348 | G19: 1
A20: 1 | B20: KEY MARKET SAS | C20: BROTHER | D20: Toner | E20: BT5001Y 5.000 PAGS T500/ T800/T510W / T710W / T910DW | F20: 618367.3913 | G20: 1
A21: 1 | B21: KEY MARKET SAS | C21: BROTHER | D21: Toner | E21: BTD60BK 6.500 PAG. T510W / T710W / T910DW | F21: 698993.4783 | G21: 1
A22: 1 | B22: KEY MARKET SAS | C22: BROTHER | D22: Toner | E22: BT6001BK 6.000 PAGS T500 / T800 | F22: 815471.7391 | G22: 1
A23: 1 | B23: KEY MARKET SAS | C23: BROTHER | D23: Unidad Fusora | E23: D0096U001 Unidad Fusora para equipos MFC-L6900DW - HL-L6400DW | F23: 4273306.522 | G23: 1
A24: 1 | B24: KEY MARKET SAS | C24: BROTHER | D24: Unidad Drum | E24: DR890 Unidad Drum larga duracion 50.000 pág. Para equipos HL-L6400DW | F24: 794323.913 | G24: 1
A25: 1 | B25: KEY MARKET SAS | C25: BROTHER | D25: Suministro | E25: BU330CL Unidad de correa, duracion 50.000 pág. Para equipos MFC-L9570CDW | F25: 1071971.739 | G25: 1
A26: 1 | B26: KEY MARKET SAS | C26: BROTHER | D26: Suministro | E26: WT320CL Caja de Desechos, duracion 50.000 pág. Para equipos MFC-L9570CDW | F26: 183102.1739 | G26: 1
A27: 1 | B27: KEY MARKET SAS | C27: BROTHER | D27: Bandeja Adicional | E27: LT5505 Bandeja opcional de 250 hojas para equipos MFC-L6900DW - HL-L6400DW | F27: 582473.913 | G27: 1
A28: 1 | B28: KEY MARKET SAS | C28: BROTHER | D28: Bandeja Adicional | E28: LT6505 Bandeja opcional de 520 hojas para equipos MFC-L6900DW - HL-L6400DW | F28: 621300 | G28: 1
A29: 1 | B29: KEY MARKET SAS | C29: BROTHER | D29: Torre Bandejas | E29: TT4000 Torre opcional de 4 bandejas x 520 hojas para equipos MFC-L6900DW - HL-L6400DW - MFC-L9570CDW | F29: 618367.3913 | G29: 1
A30: 1 | B30: KEY MARKET SAS | C30: BROTHER | D30: Bandeja Adicional | E30: LT330CL Bandeja opcional de 250 hojas para equipos MFC-L9570CDW | F30: 27591.30435 | G30: 1
A31: 1 | B31: KEY MARKET SAS | C31: BROTHER | D31: Bandeja Adicional | E31: LT340CL Bandeja opcional de 500 hojas para equipos MFC-L9570CDW | F31: 27591.30435 | G31: 1
A32: 1 | B32: KEY MARKET SAS | C32: BROTHER | D32: Bandeja Adicional | E32: TC4000 Conector opcionalpara la torre de bandejas para equipos MFC-L9570CDW | F32: 27591.30435 | G32: 1
A33: 1 | B33: KEY MARKET SAS | C33: BROTHER | D33: Toner | E33: TN880 toner larga duracion 12.000 pág. Para equipos HL-L6250DW - HL-L6200DW - HL-L6200DWT | F33: 42750 | G33: 1
A34: 1 | B34: KEY MARKET SAS | C34: BROTHER | D34: Unidad Drum | E34: DR890 Unidad Drum larga duracion 50.000 pág. Para equipos HL-L6250DW | F34: 42750 | G34: 1
A35: 1 | B35: DISPAPELES S.A.S. | C35: BROTHER | D35: Toner | E35: TN890 toner larga duracion 20.000 pág. Para equipos MFC-L6900DW | F35: 932100 | G35: 1
A36: 1 | B36: DISPAPELES S.A.S. | C36: BROTHER | D36: Unidad Drum | E36: DR890 Unidad Drum larga duracion 50.000 pág. Para equipos MFC-L6900DW | F36: 828200 | G36: 1
A37: 1 | B37: DISPAPELES S.A.S. | C37: BROTHER | D37: Toner | E37: TN890 toner larga duracion 20.000 pág. Para equipos HL-L6400DW | F37: 932100 | G37: 1
A38: 1 | B38: DISPAPELES S.A.S. | C38: BROTHER | D38: Toner | E38: TN439BK toner Negro larga duracion 9.000 pág. Para equipos color MFC-L9570DW | F38: 647100 | G38: 1
A39: 1 | B39: DISPAPELES S.A.S. | C39: BROTHER | D39: Toner | E39: TN439C toner Cyan larga duracion 9.000 pág. Para equipos color MFC-L9570DW | F39: 1088300 | G39: 1
A40: 1 | B40: DISPAPELES S.A.S. | C40: BROTHER | D40: Toner | E40: TN439M toner Magenta larga duracion 9.000 pág. Para equipos color MFC-L9570DW | F40: 1088300 | G40: 1
A41: 1 | B41: DISPAPELES S.A.S. | C41: BROTHER | D41: Toner | E41: TN439Y toner Yellow larga duracion 9.000 pág. Para equipos color MFC-L9570DW | F41: 1088300 | G41: 1
A42: 1 | B42: DISPAPELES S.A.S. | C42: BROTHER | D42: Unidad Drum | E42: DR433CL Unidad Drum larga duracion 50.000 pág. Para equipos MFC-L9570CDW | F42: 882400 | G42: 1
A43: 1 | B43: DISPAPELES S.A.S. | C43: BROTHER | D43: Toner | E43: TN2420 toner larga duracion 3.000 pág. Para equipos DCP-L2550DN | F43: 468300 | G43: 1
A44: 1 | B44: DISPAPELES S.A.S. | C44: BROTHER | D44: Unidad Drum | E44: DR2400 Unidad Drum larga duracion 12.000 pág. Para equipos DCP-L2550DN | F44: 617600 | G44: 1
A45: 1 | B45: DISPAPELES S.A.S. | C45: BROTHER | D45: Toner | E45: TN850 toner larga duracion 8.000 pág. Para equipos MFC-L5900DW - MFC-L6750DW - MFC-L5700DW - MFC-L5800DW | F45: 672900 | G45: 1
A46: 1 | B46: DISPAPELES S.A.S. | C46: BROTHER | D46: Unidad Drum | E46: DR820 Unidda drum larga duracion 50.000 pág. Para equipos MFC-L5900DW - MFC-L6750DW - MFC-L5700DW - MFC-L5800DW | F46: 824300 | G46: 1
A47: 1 | B47: DISPAPELES S.A.S. | C47: BROTHER | D47: Toner | E47: TN850 toner larga duracion 8.000 pág. Para equipos HL-L5100DN - DCP-L5500DN - DCP-L5600DN - DCP-L5650DN | F47: 672900 | G47: 1
A48: 1 | B48: DISPAPELES S.A.S. | C48: BROTHER | D48: Unidad Drum | E48: DR820 Unidad Drum larga duracion 30.000 pág. Para equipos HL-L5100DN - DCP-L5500DN - DCP-L5600DN - DCP-L5650DN | F48: 824300 | G48: 1
A49: 1 | B49: DISPAPELES S.A.S. | C49: BROTHER | D49: Unidad Drum | E49: DR820 Unidad Drum larga duracion 30.000 pág. Para equipos HL-L6200DW - HL-L6200DWT | F49: 824300 | G49: 1
A50: 1 | B50: DISPAPELES S.A.S. | C50: BROTHER | D50: Toner | E50: BT5001C 5.000 PAGS T500/ T800/T510W / T710W / T910DW | F50: 36800 | G50: 1
A51: 1 | B51: DISPAPELES S.A.S. | C51: BROTHER | D51: Toner | E51: BT5001M 5.000 PAGS T500/ T800/T510W / T710W / T910DW | F51: 36800 | G51: 1
A52: 1 | B52: DISPAPELES S.A.S. | C52: BROTHER | D52: Toner | E52: BT5001Y 5.000 PAGS T500/ T800/T510W / T710W / T910DW | F52: 36800 | G52: 1
A53: 1 | B53: DISPAPELES S.A.S. | C53: BROTHER | D53: Toner | E53: BTD60BK 6.500 PAG. T510W / T710W / T910DW | F53: 57000 | G53: 1
A54: 1 | B54: DISPAPELES S.A.S. | C54: BROTHER | D54: Toner | E54: BT6001BK 6.000 PAGS T500 / T800 | F54: 57000 | G54: 1
A55: 1 | B55: DISPAPELES S.A.S. | C55: BROTHER | D55: Unidad Fusora | E55: D0096U001 Unidad Fusora para equipos MFC-L6900DW - HL-L6400DW | F55: 991100 | G55: 1
A56: 1 | B56: DISPAPELES S.A.S. | C56: BROTHER | D56: Unidad Drum | E56: DR890 Unidad Drum larga duracion 50.000 pág. Para equipos HL-L6400DW | F56: 828200 | G56: 1
A57: 1 | B57: DISPAPELES S.A.S. | C57: BROTHER | D57: Suministro | E57: BU330CL Unidad de correa, duracion 50.000 pág. Para equipos MFC-L9570CDW | F57: 352900 | G57: 1
A58: 1 | B58: DISPAPELES S.A.S. | C58: BROTHER | D58: Suministro | E58: WT320CL Caja de Desechos, duracion 50.000 pág. Para equipos MFC-L9570CDW | F58: 135900 | G58: 1
A59: 1 | B59: DISPAPELES S.A.S. | C59: BROTHER | D59: Bandeja Adicional | E59: LT5505 Bandeja opcional de 250 hojas para equipos MFC-L6900DW - HL-L6400DW | F59: 931800 | G59: 1
A60: 1 | B60: DISPAPELES S.A.S. | C60: BROTHER | D60: Bandeja Adicional | E60: LT6505 Bandeja opcional de 520 hojas para equipos MFC-L6900DW - HL-L6400DW | F60: 1087100 | G60: 1
A61: 1 | B61: DISPAPELES S.A.S. | C61: BROTHER | D61: Torre Bandejas | E61: TT4000 Torre opcional de 4 bandejas x 520 hojas para equipos MFC-L6900DW - HL-L6400DW - MFC-L9570CDW | F61: 5696500 | G61: 1
A62: 1 | B62: DISPAPELES S.A.S. | C62: BROTHER | D62: Bandeja Adicional | E62: LT330CL Bandeja opcional de 250 hojas para equipos MFC-L9570CDW | F62: 1058900 | G62: 1
A63: 1 | B63: DISPAPELES S.A.S. | C63: BROTHER | D63: Bandeja Adicional | E63: LT340CL Bandeja opcional de 500 hojas para equipos MFC-L9570CDW | F63: 1429000 | G63: 1
A64: 1 | B64: DISPAPELES S.A.S. | C64: BROTHER | D64: Bandeja Adicional | E64: TC4000 Conector opcionalpara la torre de bandejas para equipos MFC-L9570CDW | F64: 244100 | G64: 1
A65: 1 | B65: DISPAPELES S.A.S. | C65: BROTHER | D65: Toner | E65: TN880 toner larga duracion 12.000 pág. Para equipos HL-L6250DW - HL-L6200DW - HL-L6200DWT | F65: 776500 | G65: 1
A66: 1 | B66: DISPAPELES S.A.S. | C66: BROTHER | D66: Unidad Drum | E66: DR890 Unidad Drum larga duracion 50.000 pág. Para equipos HL-L6250DW | F66: 828200 | G66: 1
A67: 1 | B67: UNIPLES S.A | C67: BROTHER | D67: Toner | E67: TN890 toner larga duracion 20.000 pág. Para equipos MFC-L6900DW | F67: 695970 | G67: 1
A68: 1 | B68: UNIPLES S.A | C68: BROTHER | D68: Unidad Drum | E68: DR890 Unidad Drum larga duracion 50.000 pág. Para equipos MFC-L6900DW | F68: 483960 | G68: 1
A69: 1 | B69: UNIPLES S.A | C69: BROTHER | D69: Toner | E69: TN890 toner larga duracion 20.000 pág. Para equipos HL-L6400DW | F69: 626373 | G69: 1
A70: 1 | B70: UNIPLES S.A | C70: BROTHER | D70: Toner | E70: TN439BK toner Negro larga duracion 9.000 pág. Para equipos color MFC-L9570DW | F70: 483179 | G70: 1
A71: 1 | B71: UNIPLES S.A | C71: BROTHER | D71: Toner | E71: TN439C toner Cyan larga duracion 9.000 pág. Para equipos color MFC-L9570DW | F71: 812561 | G71: 1
A72: 1 | B72: UNIPLES S.A | C72: BROTHER | D72: Toner | E72: TN439M toner Magenta larga duracion 9.000 pág. Para equipos color MFC-L9570DW | F72: 812561 | G72: 1
A73: 1 | B73: UNIPLES S.A | C73: BROTHER | D73: Toner | E73: TN439Y toner Yellow larga duracion 9.000 pág. Para equipos color MFC-L9570DW | F73: 812561 | G73: 1
A74: 1 | B74: UNIPLES S.A | C74: BROTHER | D74: Unidad Drum | E74: DR433CL Unidad Drum larga duracion 50.000 pág. Para equipos MFC-L9570CDW | F74: 658847 | G74: 1
A75: 1 | B75: UNIPLES S.A | C75: BROTHER | D75: Toner | E75: TN2420 toner larga duracion 3.000 pág. Para equipos DCP-L2550DN | F75: 349650 | G75: 1
A76: 1 | B76: UNIPLES S.A | C76: BROTHER | D76: Unidad Drum | E76: DR2400 Unidad Drum larga duracion 12.000 pág. Para equipos DCP-L2550DN | F76: 461143 | G76: 1
A77: 1 | B77: UNIPLES S.A | C77: BROTHER | D77: Toner | E77: TN850 toner larga duracion 8.000 pág. Para equipos MFC-L5900DW - MFC-L6750DW - MFC-L5700DW - MFC-L5800DW | F77: 502419 | G77: 1
A78: 1 | B78: UNIPLES S.A | C78: BROTHER | D78: Unidad Drum | E78: DR820 Unidda drum larga duracion 50.000 pág. Para equipos MFC-L5900DW - MFC-L6750DW - MFC-L5700DW - MFC-L5800DW | F78: 615474 | G78: 1
A79: 1 | B79: UNIPLES S.A | C79: BROTHER | D79: Toner | E79: TN850 toner larga duracion 8.000 pág. Para equipos HL-L5100DN - DCP-L5500DN - DCP-L5600DN - DCP-L5650DN | F79: 502419 | G79: 1
A80: 1 | B80: UNIPLES S.A | C80: BROTHER | D80: Unidad Drum | E80: DR820 Unidad Drum larga duracion 30.000 pág. Para equipos HL-L5100DN - DCP-L5500DN - DCP-L5600DN - DCP-L5650DN | F80: 615474 | G80: 1
A81: 1 | B81: UNIPLES S.A | C81: BROTHER | D81: Unidad Drum | E81: DR820 Unidad Drum larga duracion 30.000 pág. Para equipos HL-L6200DW - HL-L6200DWT | F81: 615474 | G81: 1
A82: 1 | B82: UNIPLES S.A | C82: BROTHER | D82: Toner | E82: BT5001C 5.000 PAGS T500/ T800/T510W / T710W / T910DW | F82: 27462 | G82: 1
A83: 1 | B83: UNIPLES S.A | C83: BROTHER | D83: Toner | E83: BT5001M 5.000 PAGS T500/ T800/T510W / T710W / T910DW | F83: 27462 | G83: 1
A84: 1 | B84: UNIPLES S.A | C84: BROTHER | D84: Toner | E84: BT5001Y 5.000 PAGS T500/ T800/T510W / T710W / T910DW | F84: 27462 | G84: 1
A85: 1 | B85: UNIPLES S.A | C85: BROTHER | D85: Toner | E85: BTD60BK 6.500 PAG. T510W / T710W / T910DW | F85: 42550 | G85: 1
A86: 1 | B86: UNIPLES S.A | C86: BROTHER | D86: Toner | E86: BT6001BK 6.000 PAGS T500 / T800 | F86: 42550 | G86: 1
A87: 1 | B87: UNIPLES S.A | C87: BROTHER | D87: Unidad Fusora | E87: D0096U001 Unidad Fusora para equipos MFC-L6900DW - HL-L6400DW | F87: 666000 | G87: 1
A88: 1 | B88: UNIPLES S.A | C88: BROTHER | D88: Unidad Drum | E88: DR890 Unidad Drum larga duracion 50.000 pág. Para equipos HL-L6400DW | F88: 556554 | G88: 1
A89: 1 | B89: UNIPLES S.A | C89: BROTHER | D89: Suministro | E89: BU330CL Unidad de correa, duracion 50.000 pág. Para equipos MFC-L9570CDW | F89: 237133 | G89: 1
A90: 1 | B90: UNIPLES S.A | C90: BROTHER | D90: Suministro | E90: WT320CL Caja de Desechos, duracion 50.000 pág. Para equipos MFC-L9570CDW | F90: 91353 | G90: 1
A91: 1 | B91: UNIPLES S.A | C91: BROTHER | D91: Bandeja Adicional | E91: LT5505 Bandeja opcional de 250 hojas para equipos MFC-L6900DW - HL-L6400DW | F91: 626151 | G91: 1
A92: 1 | B92: UNIPLES S.A | C92: BROTHER | D92: Bandeja Adicional | E92: LT6505 Bandeja opcional de 520 hojas para equipos MFC-L6900DW - HL-L6400DW | F92: 730491 | G92: 1
A93: 1 | B93: UNIPLES S.A | C93: BROTHER | D93: Torre Bandejas | E93: TT4000 Torre opcional de 4 bandejas x 520 hojas para equipos MFC-L6900DW - HL-L6400DW - MFC-L9570CDW | F93: 3827983 | G93: 1
A94: 1 | B94: UNIPLES S.A | C94: BROTHER | D94: Bandeja Adicional | E94: LT330CL Bandeja opcional de 250 hojas para equipos MFC-L9570CDW | F94: 711547 | G94: 1
A95: 1 | B95: UNIPLES S.A | C95: BROTHER | D95: Bandeja Adicional | E95: LT340CL Bandeja opcional de 500 hojas para equipos MFC-L9570CDW | F95: 960261 | G95: 1
A96: 1 | B96: UNIPLES S.A | C96: BROTHER | D96: Bandeja Adicional | E96: TC4000 Conector opcionalpara la torre de bandejas para equipos MFC-L9570CDW | F96: 164021 | G96: 1
A97: 1 | B97: UNIPLES S.A | C97: BROTHER | D97: Toner | E97: TN880 toner larga duracion 12.000 pág. Para equipos HL-L6250DW - HL-L6200DW - HL-L6200DWT | F97: 521774 | G97: 1
A98: 1 | B98: UNIPLES S.A | C98: BROTHER | D98: Unidad Drum | E98: DR890 Unidad Drum larga duracion 50.000 pág. Para equipos HL-L6250DW | F98: 556554 | G98: 1
A99: 1 | B99: UT OFIBEST-FORMACON | C99: BROTHER | D99: Toner | E99: TN890 toner larga duracion 20.000 pág. Para equipos MFC-L6900DW | F99: 810116.1337 | G99: 1
A100: 1 | B100: UT OFIBEST-FORMACON | C100: BROTHER | D100: Unidad Drum | E100: DR890 Unidad Drum larga duracion 50.000 pág. Para equipos MFC-L6900DW | F100: 685539.15 | G100: 1
A101: 1 | B101: UT OFIBEST-FORMACON | C101: BROTHER | D101: Toner | E101: TN890 toner larga duracion 20.000 pág. Para equipos HL-L6400DW | F101: 810116.1337 | G101: 1
A102: 1 | B102: UT OFIBEST-FORMACON | C102: BROTHER | D102: Toner | E102: TN439BK toner Negro larga duracion 9.000 pág. Para equipos color MFC-L9570DW | F102: 562425.1238 | G102: 1
A103: 1 | B103: UT OFIBEST-FORMACON | C103: BROTHER | D103: Toner | E103: TN439C toner Cyan larga duracion 9.000 pág. Para equipos color MFC-L9570DW | F103: 945829.3688 | G103: 1
A104: 1 | B104: UT OFIBEST-FORMACON | C104: BROTHER | D104: Toner | E104: TN439M toner Magenta larga duracion 9.000 pág. Para equipos color MFC-L9570DW | F104: 945829.3688 | G104: 1
A105: 1 | B105: UT OFIBEST-FORMACON | C105: BROTHER | D105: Toner | E105: TN439Y toner Yellow larga duracion 9.000 pág. Para equipos color MFC-L9570DW | F105: 945829.3688 | G105: 1
A106: 1 | B106: UT OFIBEST-FORMACON | C106: BROTHER | D106: Unidad Drum | E106: DR433CL Unidad Drum larga duracion 50.000 pág. Para equipos MFC-L9570CDW | F106: 730384.95 | G106: 1
A107: 1 | B107: UT OFIBEST-FORMACON | C107: BROTHER | D107: Toner | E107: TN2420 toner larga duracion 3.000 pág. Para equipos DCP-L2550DN | F107: 717806.25 | G107: 1
A108: 1 | B108: UT OFIBEST-FORMACON | C108: BROTHER | D108: Unidad Drum | E108: DR2400 Unidad Drum larga duracion 12.000 pág. Para equipos DCP-L2550DN | F108: 592475 | G108: 1
A109: 1 | B109: UT OFIBEST-FORMACON | C109: BROTHER | D109: Toner | E109: TN850 toner larga duracion 8.000 pág. Para equipos MFC-L5900DW - MFC-L6750DW - MFC-L5700DW - MFC-L5800DW | F109: 584820.6787 | G109: 1
A110: 1 | B110: UT OFIBEST-FORMACON | C110: BROTHER | D110: Unidad Drum | E110: DR820 Unidda drum larga duracion 50.000 pág. Para equipos MFC-L5900DW - MFC-L6750DW - MFC-L5700DW - MFC-L5800DW | F110: 682303.325 | G110: 1
A111: 1 | B111: UT OFIBEST-FORMACON | C111: BROTHER | D111: Toner | E111: TN850 toner larga duracion 8.000 pág. Para equipos HL-L5100DN - DCP-L5500DN - DCP-L5600DN - DCP-L5650DN | F111: 584820.6787 | G111: 1
A112: 1 | B112: UT OFIBEST-FORMACON | C112: BROTHER | D112: Unidad Drum | E112: DR820 Unidad Drum larga duracion 30.000 pág. Para equipos HL-L5100DN - DCP-L5500DN - DCP-L5600DN - DCP-L5650DN | F112: 682303.325 | G112: 1
A113: 1 | B113: UT OFIBEST-FORMACON | C113: BROTHER | D113: Unidad Drum | E113: DR820 Unidad Drum larga duracion 30.000 pág. Para equipos HL-L6200DW - HL-L6200DWT | F113: 682303.325 | G113: 1
A114: 1 | B114: UT OFIBEST-FORMACON | C114: BROTHER | D114: Toner | E114: BT5001C 5.000 PAGS T500/ T800/T510W / T710W / T910DW | F114: 31966.305 | G114: 1
A115: 1 | B115: UT OFIBEST-FORMACON | C115: BROTHER | D115: Toner | E115: BT5001M 5.000 PAGS T500/ T800/T510W / T710W / T910DW | F115: 31966.305 | G115: 1
A116: 1 | B116: UT OFIBEST-FORMACON | C116: BROTHER | D116: Toner | E116: BT5001Y 5.000 PAGS T500/ T800/T510W / T710W / T910DW | F116: 31966.305 | G116: 1
A117: 1 | B117: UT OFIBEST-FORMACON | C117: BROTHER | D117: Toner | E117: BTD60BK 6.500 PAG. T510W / T710W / T910DW | F117: 49528.63125 | G117: 1
A118: 1 | B118: UT OFIBEST-FORMACON | C118: BROTHER | D118: Toner | E118: BT6001BK 6.000 PAGS T500 / T800 | F118: 49528.63125 | G118: 1
A119: 1 | B119: UT OFIBEST-FORMACON | C119: BROTHER | D119: Unidad Fusora | E119: D0096U001 Unidad Fusora para equipos MFC-L6900DW - HL-L6400DW | F119: 820350 | G119: 1
A120: 1 | B120: UT OFIBEST-FORMACON | C120: BROTHER | D120: Unidad Drum | E120: DR890 Unidad Drum larga duracion 50.000 pág. Para equipos HL-L6400DW | F120: 685539.15 | G120: 1
A121: 1 | B121: UT OFIBEST-FORMACON | C121: BROTHER | D121: Suministro | E121: BU330CL Unidad de correa, duracion 50.000 pág. Para equipos MFC-L9570CDW | F121: 292090.175 | G121: 1
A122: 1 | B122: UT OFIBEST-FORMACON | C122: BROTHER | D122: Suministro | E122: WT320CL Caja de Desechos, duracion 50.000 pág. Para equipos MFC-L9570CDW | F122: 112524.675 | G122: 1
A123: 1 | B123: UT OFIBEST-FORMACON | C123: BROTHER | D123: Bandeja Adicional | E123: LT5505 Bandeja opcional de 250 hojas para equipos MFC-L6900DW - HL-L6400DW | F123: 771265.725 | G123: 1
A124: 1 | B124: UT OFIBEST-FORMACON | C124: BROTHER | D124: Bandeja Adicional | E124: LT6505 Bandeja opcional de 520 hojas para equipos MFC-L6900DW - HL-L6400DW | F124: 899787.225 | G124: 1
A125: 1 | B125: UT OFIBEST-FORMACON | C125: BROTHER | D125: Torre Bandejas | E125: TT4000 Torre opcional de 4 bandejas x 520 hojas para equipos MFC-L6900DW - HL-L6400DW - MFC-L9570CDW | F125: 4500819.201 | G125: 1
A126: 1 | B126: UT OFIBEST-FORMACON | C126: BROTHER | D126: Bandeja Adicional | E126: LT330CL Bandeja opcional de 250 hojas para equipos MFC-L9570CDW | F126: 876452.825 | G126: 1
A127: 1 | B127: UT OFIBEST-FORMACON | C127: BROTHER | D127: Bandeja Adicional | E127: LT340CL Bandeja opcional de 500 hojas para equipos MFC-L9570CDW | F127: 1182807.975 | G127: 1
A128: 1 | B128: UT OFIBEST-FORMACON | C128: BROTHER | D128: Bandeja Adicional | E128: TC4000 Conector opcionalpara la torre de bandejas para equipos MFC-L9570CDW | F128: 202033.975 | G128: 1
A129: 1 | B129: UT OFIBEST-FORMACON | C129: BROTHER | D129: Toner | E129: TN880 toner larga duracion 12.000 pág. Para equipos HL-L6250DW - HL-L6200DW - HL-L6200DWT | F129: 674833.5825 | G129: 1
A130: 1 | B130: UT OFIBEST-FORMACON | C130: BROTHER | D130: Unidad Drum | E130: DR890 Unidad Drum larga duracion 50.000 pág. Para equipos HL-L6250DW | F130: 685539.15 | G130: 1
A131: 1 | B131: HARDWARE ASESORIAS SOFTWARE LTDA | C131: BROTHER | D131: Toner | E131: TN890 toner larga duracion 20.000 pág. Para equipos MFC-L6900DW | F131: 769353.6118 | G131: 1
A132: 1 | B132: HARDWARE ASESORIAS SOFTWARE LTDA | C132: BROTHER | D132: Unidad Drum | E132: DR890 Unidad Drum larga duracion 50.000 pág. Para equipos MFC-L6900DW | F132: 682858.2353 | G132: 1
A133: 1 | B133: HARDWARE ASESORIAS SOFTWARE LTDA | C133: BROTHER | D133: Toner | E133: TN890 toner larga duracion 20.000 pág. Para equipos HL-L6400DW | F133: 769353.6118 | G133: 1
A134: 1 | B134: HARDWARE ASESORIAS SOFTWARE LTDA | C134: BROTHER | D134: Toner | E134: TN439BK toner Negro larga duracion 9.000 pág. Para equipos color MFC-L9570DW | F134: 532629.4235 | G134: 1
A135: 1 | B135: HARDWARE ASESORIAS SOFTWARE LTDA | C135: BROTHER | D135: Toner | E135: TN439C toner Cyan larga duracion 9.000 pág. Para equipos color MFC-L9570DW | F135: 896820.4824 | G135: 1
A136: 1 | B136: HARDWARE ASESORIAS SOFTWARE LTDA | C136: BROTHER | D136: Toner | E136: TN439M toner Magenta larga duracion 9.000 pág. Para equipos color MFC-L9570DW | F136: 896820.4824 | G136: 1
A137: 1 | B137: HARDWARE ASESORIAS SOFTWARE LTDA | C137: BROTHER | D137: Toner | E137: TN439Y toner Yellow larga duracion 9.000 pág. Para equipos color MFC-L9570DW | F137: 896820.4824 | G137: 1
A138: 1 | B138: HARDWARE ASESORIAS SOFTWARE LTDA | C138: BROTHER | D138: Unidad Drum | E138: DR433CL Unidad Drum larga duracion 50.000 pág. Para equipos MFC-L9570CDW | F138: 728382.1176 | G138: 1
A139: 1 | B139: HARDWARE ASESORIAS SOFTWARE LTDA | C139: BROTHER | D139: Toner | E139: TN2420 toner larga duracion 3.000 pág. Para equipos DCP-L2550DN | F139: 682858.2353 | G139: 1
A140: 1 | B140: HARDWARE ASESORIAS SOFTWARE LTDA | C140: BROTHER | D140: Unidad Drum | E140: DR2400 Unidad Drum larga duracion 12.000 pág. Para equipos DCP-L2550DN | F140: 559943.7529 | G140: 1
A141: 1 | B141: HARDWARE ASESORIAS SOFTWARE LTDA | C141: BROTHER | D141: Toner | E141: TN850 toner larga duracion 8.000 pág. Para equipos MFC-L5900DW - MFC-L6750DW - MFC-L5700DW - MFC-L5800DW | F141: 559943.7529 | G141: 1
A142: 1 | B142: HARDWARE ASESORIAS SOFTWARE LTDA | C142: BROTHER | D142: Unidad Drum | E142: DR820 Unidda drum larga duracion 50.000 pág. Para equipos MFC-L5900DW - MFC-L6750DW - MFC-L5700DW - MFC-L5800DW | F142: 682858.2353 | G142: 1
A143: 1 | B143: HARDWARE ASESORIAS SOFTWARE LTDA | C143: BROTHER | D143: Toner | E143: TN850 toner larga duracion 8.000 pág. Para equipos HL-L5100DN - DCP-L5500DN - DCP-L5600DN - DCP-L5650DN | F143: 559943.7529 | G143: 1
A144: 1 | B144: HARDWARE ASESORIAS SOFTWARE LTDA | C144: BROTHER | D144: Unidad Drum | E144: DR820 Unidad Drum larga duracion 30.000 pág. Para equipos HL-L5100DN - DCP-L5500DN - DCP-L5600DN - DCP-L5650DN | F144: 682858.2353 | G144: 1
A145: 1 | B145: HARDWARE ASESORIAS SOFTWARE LTDA | C145: BROTHER | D145: Unidad Drum | E145: DR820 Unidad Drum larga duracion 30.000 pág. Para equipos HL-L6200DW - HL-L6200DWT | F145: 682858.2353 | G145: 1
A146: 1 | B146: HARDWARE ASESORIAS SOFTWARE LTDA | C146: BROTHER | D146: Toner | E146: BT5001C 5.000 PAGS T500/ T800/T510W / T710W / T910DW | F146: 31866.71765 | G146: 1
A147: 1 | B147: HARDWARE ASESORIAS SOFTWARE LTDA | C147: BROTHER | D147: Toner | E147: BT5001M 5.000 PAGS T500/ T800/T510W / T710W / T910DW | F147: 31866.71765 | G147: 1
A148: 1 | B148: HARDWARE ASESORIAS SOFTWARE LTDA | C148: BROTHER | D148: Toner | E148: BT5001Y 5.000 PAGS T500/ T800/T510W / T710W / T910DW | F148: 31866.71765 | G148: 1
A149: 1 | B149: HARDWARE ASESORIAS SOFTWARE LTDA | C149: BROTHER | D149: Toner | E149: BTD60BK 6.500 PAG. T510W / T710W / T910DW | F149: 31866.71765 | G149: 1
A150: 1 | B150: HARDWARE ASESORIAS SOFTWARE LTDA | C150: BROTHER | D150: Toner | E150: BT6001BK 6.000 PAGS T500 / T800 | F150: 31866.71765 | G150: 1
A151: 1 | B151: HARDWARE ASESORIAS SOFTWARE LTDA | C151: BROTHER | D151: Unidad Fusora | E151: D0096U001 Unidad Fusora para equipos MFC-L6900DW - HL-L6400DW | F151: 870644.25 | G151: 1
A152: 1 | B152: HARDWARE ASESORIAS SOFTWARE LTDA | C152: BROTHER | D152: Unidad Drum | E152: DR890 Unidad Drum larga duracion 50.000 pág. Para equipos HL-L6400DW | F152: 725536.875 | G152: 1
A153: 1 | B153: HARDWARE ASESORIAS SOFTWARE LTDA | C153: BROTHER | D153: Suministro | E153: BU330CL Unidad de correa, duracion 50.000 pág. Para equipos MFC-L9570CDW | F153: 314399.3125 | G153: 1
A154: 1 | B154: HARDWARE ASESORIAS SOFTWARE LTDA | C154: BROTHER | D154: Suministro | E154: WT320CL Caja de Desechos, duracion 50.000 pág. Para equipos MFC-L9570CDW | F154: 120922.8125 | G154: 1
A155: 1 | B155: HARDWARE ASESORIAS SOFTWARE LTDA | C155: BROTHER | D155: Bandeja Adicional | E155: LT5505 Bandeja opcional de 250 hojas para equipos MFC-L6900DW - HL-L6400DW | F155: 822275.125 | G155: 1
A156: 1 | B156: HARDWARE ASESORIAS SOFTWARE LTDA | C156: BROTHER | D156: Bandeja Adicional | E156: LT6505 Bandeja opcional de 520 hojas para equipos MFC-L6900DW - HL-L6400DW | F156: 957708.675 | G156: 1
A157: 1 | B157: HARDWARE ASESORIAS SOFTWARE LTDA | C157: BROTHER | D157: Torre Bandejas | E157: TT4000 Torre opcional de 4 bandejas x 520 hojas para equipos MFC-L6900DW - HL-L6400DW - MFC-L9570CDW | F157: 5006204.438 | G157: 1
A158: 1 | B158: HARDWARE ASESORIAS SOFTWARE LTDA | C158: BROTHER | D158: Bandeja Adicional | E158: LT330CL Bandeja opcional de 250 hojas para equipos MFC-L9570CDW | F158: 933524.1125 | G158: 1
A159: 1 | B159: HARDWARE ASESORIAS SOFTWARE LTDA | C159: BROTHER | D159: Bandeja Adicional | E159: LT340CL Bandeja opcional de 500 hojas para equipos MFC-L9570CDW | F159: 1257597.25 | G159: 1
A160: 1 | B160: HARDWARE ASESORIAS SOFTWARE LTDA | C160: BROTHER | D160: Bandeja Adicional | E160: TC4000 Conector opcionalpara la torre de bandejas para equipos MFC-L9570CDW | F160: 217661.0625 | G160: 1
A161: 1 | B161: HARDWARE ASESORIAS SOFTWARE LTDA | C161: BROTHER | D161: Toner | E161: TN880 toner larga duracion 12.000 pág. Para equipos HL-L6250DW - HL-L6200DW - HL-L6200DWT | F161: 730373.7875 | G161: 1
A162: 1 | B162: HARDWARE ASESORIAS SOFTWARE LTDA | C162: BROTHER | D162: Unidad Drum | E162: DR890 Unidad Drum larga duracion 50.000 pág. Para equipos HL-L6250DW | F162: 725536.875 | G162: 1
A163: 1 | B163: UT CREAR GROUP INC. | C163: BROTHER | D163: Toner | E163: TN890 toner larga duracion 20.000 pág. Para equipos MFC-L6900DW | F163: 539361.7021 | G163: 1
A164: 1 | B164: UT CREAR GROUP INC. | C164: BROTHER | D164: Unidad Drum | E164: DR890 Unidad Drum larga duracion 50.000 pág. Para equipos MFC-L6900DW | F164: 456382.9787 | G164: 1
A165: 1 | B165: UT CREAR GROUP INC. | C165: BROTHER | D165: Toner | E165: TN890 toner larga duracion 20.000 pág. Para equipos HL-L6400DW | F165: 539361.7021 | G165: 1
A166: 1 | B166: UT CREAR GROUP INC. | C166: BROTHER | D166: Toner | E166: TN439BK toner Negro larga duracion 9.000 pág. Para equipos color MFC-L9570DW | F166: 414893.617 | G166: 1
A167: 1 | B167: UT CREAR GROUP INC. | C167: BROTHER | D167: Toner | E167: TN439C toner Cyan larga duracion 9.000 pág. Para equipos color MFC-L9570DW | F167: 622340.4255 | G167: 1
A168: 1 | B168: UT CREAR GROUP INC. | C168: BROTHER | D168: Toner | E168: TN439M toner Magenta larga duracion 9.000 pág. Para equipos color MFC-L9570DW | F168: 622340.4255 | G168: 1
A169: 1 | B169: UT CREAR GROUP INC. | C169: BROTHER | D169: Toner | E169: TN439Y toner Yellow larga duracion 9.000 pág. Para equipos color MFC-L9570DW | F169: 622340.4255 | G169: 1
A170: 1 | B170: UT CREAR GROUP INC. | C170: BROTHER | D170: Unidad Drum | E170: DR433CL Unidad Drum larga duracion 50.000 pág. Para equipos MFC-L9570CDW | F170: 539361.7021 | G170: 1
A171: 1 | B171: UT CREAR GROUP INC. | C171: BROTHER | D171: Toner | E171: TN2420 toner larga duracion 3.000 pág. Para equipos DCP-L2550DN | F171: 344361.7021 | G171: 1
A172: 1 | B172: UT CREAR GROUP INC. | C172: BROTHER | D172: Unidad Drum | E172: DR2400 Unidad Drum larga duracion 12.000 pág. Para equipos DCP-L2550DN | F172: 456382.9787 | G172: 1
A173: 1 | B173: UT CREAR GROUP INC. | C173: BROTHER | D173: Toner | E173: TN850 toner larga duracion 8.000 pág. Para equipos MFC-L5900DW - MFC-L6750DW - MFC-L5700DW - MFC-L5800DW | F173: 497872.3404 | G173: 1
A174: 1 | B174: UT CREAR GROUP INC. | C174: BROTHER | D174: Unidad Drum | E174: DR820 Unidda drum larga duracion 50.000 pág. Para equipos MFC-L5900DW - MFC-L6750DW - MFC-L5700DW - MFC-L5800DW | F174: 614042.5532 | G174: 1
A175: 1 | B175: UT CREAR GROUP INC. | C175: BROTHER | D175: Toner | E175: TN850 toner larga duracion 8.000 pág. Para equipos HL-L5100DN - DCP-L5500DN - DCP-L5600DN - DCP-L5650DN | F175: 497872.3404 | G175: 1
A176: 1 | B176: UT CREAR GROUP INC. | C176: BROTHER | D176: Unidad Drum | E176: DR820 Unidad Drum larga duracion 30.000 pág. Para equipos HL-L5100DN - DCP-L5500DN - DCP-L5600DN - DCP-L5650DN | F176: 605744.6809 | G176: 1
A177: 1 | B177: UT CREAR GROUP INC. | C177: BROTHER | D177: Unidad Drum | E177: DR820 Unidad Drum larga duracion 30.000 pág. Para equipos HL-L6200DW - HL-L6200DWT | F177: 605744.6809 | G177: 1
A178: 1 | B178: UT CREAR GROUP INC. | C178: BROTHER | D178: Toner | E178: BT5001C 5.000 PAGS T500/ T800/T510W / T710W / T910DW | F178: 27714.89362 | G178: 1
A179: 1 | B179: UT CREAR GROUP INC. | C179: BROTHER | D179: Toner | E179: BT5001M 5.000 PAGS T500/ T800/T510W / T710W / T910DW | F179: 27714.89362 | G179: 1
A180: 1 | B180: UT CREAR GROUP INC. | C180: BROTHER | D180: Toner | E180: BT5001Y 5.000 PAGS T500/ T800/T510W / T710W / T910DW | F180: 27714.89362 | G180: 1
A181: 1 | B181: UT CREAR GROUP INC. | C181: BROTHER | D181: Toner | E181: BTD60BK 6.500 PAG. T510W / T710W / T910DW | F181: 42941.48936 | G181: 1
A182: 1 | B182: UT CREAR GROUP INC. | C182: BROTHER | D182: Toner | E182: BT6001BK 6.000 PAGS T500 / T800 | F182: 42941.48936 | G182: 1
A183: 1 | B183: UT CREAR GROUP INC. | C183: BROTHER | D183: Unidad Fusora | E183: D0096U001 Unidad Fusora para equipos MFC-L6900DW - HL-L6400DW | F183: 746808.5106 | G183: 1
A184: 1 | B184: UT CREAR GROUP INC. | C184: BROTHER | D184: Unidad Drum | E184: DR890 Unidad Drum larga duracion 50.000 pág. Para equipos HL-L6400DW | F184: 624082.9787 | G184: 1
A185: 1 | B185: UT CREAR GROUP INC. | C185: BROTHER | D185: Suministro | E185: BU330CL Unidad de correa, duracion 50.000 pág. Para equipos MFC-L9570CDW | F185: 265905.3191 | G185: 1
A186: 1 | B186: UT CREAR GROUP INC. | C186: BROTHER | D186: Suministro | E186: WT320CL Caja de Desechos, duracion 50.000 pág. Para equipos MFC-L9570CDW | F186: 102437.234 | G186: 1
A187: 1 | B187: UT CREAR GROUP INC. | C187: BROTHER | D187: Bandeja Adicional | E187: LT5505 Bandeja opcional de 250 hojas para equipos MFC-L6900DW - HL-L6400DW | F187: 622340.4255 | G187: 1
A188: 1 | B188: UT CREAR GROUP INC. | C188: BROTHER | D188: Bandeja Adicional | E188: LT6505 Bandeja opcional de 520 hojas para equipos MFC-L6900DW - HL-L6400DW | F188: 622340.4255 | G188: 1
A189: 1 | B189: UT CREAR GROUP INC. | C189: BROTHER | D189: Torre Bandejas | E189: TT4000 Torre opcional de 4 bandejas x 520 hojas para equipos MFC-L6900DW - HL-L6400DW - MFC-L9570CDW | F189: 3319148.936 | G189: 1
A190: 1 | B190: UT CREAR GROUP INC. | C190: BROTHER | D190: Bandeja Adicional | E190: LT330CL Bandeja opcional de 250 hojas para equipos MFC-L9570CDW | F190: 622340.4255 | G190: 1
A191: 1 | B191: UT CREAR GROUP INC. | C191: BROTHER | D191: Bandeja Adicional | E191: LT340CL Bandeja opcional de 500 hojas para equipos MFC-L9570CDW | F191: 829787.234 | G191: 1
A192: 1 | B192: UT CREAR GROUP INC. | C192: BROTHER | D192: Bandeja Adicional | E192: TC4000 Conector opcionalpara la torre de bandejas para equipos MFC-L9570CDW | F192: 183922.3404 | G192: 1
A193: 1 | B193: UT CREAR GROUP INC. | C193: BROTHER | D193: Toner | E193: TN880 toner larga duracion 12.000 pág. Para equipos HL-L6250DW - HL-L6200DW - HL-L6200DWT | F193: 585082.9787 | G193: 1
A194: 1 | B194: UT CREAR GROUP INC. | C194: BROTHER | D194: Unidad Drum | E194: DR890 Unidad Drum larga duracion 50.000 pág. Para equipos HL-L6250DW | F194: 456382.9787 | G194: 1
A195: 1 | B195: JAIRO OSORIO CABALLERO | C195: BROTHER | D195: Toner | E195: TN890 toner larga duracion 20.000 pág. Para equipos MFC-L6900DW | F195: 617900 | G195: 1
A196: 1 | B196: JAIRO OSORIO CABALLERO | C196: BROTHER | D196: Unidad Drum | E196: DR890 Unidad Drum larga duracion 50.000 pág. Para equipos MFC-L6900DW | F196: 549000 | G196: 1
A197: 1 | B197: JAIRO OSORIO CABALLERO | C197: BROTHER | D197: Toner | E197: TN890 toner larga duracion 20.000 pág. Para equipos HL-L6400DW | F197: 617900 | G197: 1
A198: 1 | B198: JAIRO OSORIO CABALLERO | C198: BROTHER | D198: Toner | E198: TN439BK toner Negro larga duracion 9.000 pág. Para equipos color MFC-L9570DW | F198: 428900 | G198: 1
A199: 1 | B199: JAIRO OSORIO CABALLERO | C199: BROTHER | D199: Toner | E199: TN439C toner Cyan larga duracion 9.000 pág. Para equipos color MFC-L9570DW | F199: 721400 | G199: 1
A200: 1 | B200: JAIRO OSORIO CABALLERO | C200: BROTHER | D200: Toner | E200: TN439M toner Magenta larga duracion 9.000 pág. Para equipos color MFC-L9570DW | F200: 721400 | G200: 1
... 4300 more rows

Sheet Original (hidden)
A1: llave | B1: REGION | C1: proveedor | D1: CATEGORIA | E1: PRODUCTO | F1: DESCRIPCIÓN | G1: valor | H1: Activo | I1: llave2
A2: KEY MARKET SASTN890 toner larga duracion 20.000 pág. Para equipos MFC-L6900DW1 | B2: 1 | C2: KEY MARKET SAS | D2: BROTHER | E2: Toner | F2: TN890 toner larga duracion 20.000 pág. Para equipos MFC-L6900DW | G2: 714780 | H2: 1 | I2: TN890 toner larga duracion 20.000 pág. Para equipos MFC-L6900DW1
A3: KEY MARKET SASDR890 Unidad Drum larga duracion 50.000 pág. Para equipos MFC-L6900DW1 | B3: 1 | C3: KEY MARKET SAS | D3: BROTHER | E3: Unidad Drum | F3: DR890 Unidad Drum larga duracion 50.000 pág. Para equipos MFC-L6900DW | G3: 621300 | H3: 1 | I3: DR890 Unidad Drum larga duracion 50.000 pág. Para equipos MFC-L6900DW1
A4: KEY MARKET SASTN890 toner larga duracion 20.000 pág. Para equipos HL-L6400DW1 | B4: 1 | C4: KEY MARKET SAS | D4: BROTHER | E4: Toner | F4: TN890 toner larga duracion 20.000 pág. Para equipos HL-L6400DW | G4: 743478.2609 | H4: 1 | I4: TN890 toner larga duracion 20.000 pág. Para equipos HL-L6400DW1
A5: KEY MARKET SASTN439BK toner Negro larga duracion 9.000 pág. Para equipos color MFC-L9570DW1 | B5: 1 | C5: KEY MARKET SAS | D5: BROTHER | E5: Toner | F5: TN439BK toner Negro larga duracion 9.000 pág. Para equipos color MFC-L9570DW | G5: 699241.3043 | H5: 1 | I5: TN439BK toner Negro larga duracion 9.000 pág. Para equipos color MFC-L9570DW1
A6: KEY MARKET SASTN439C toner Cyan larga duracion 9.000 pág. Para equipos color MFC-L9570DW1 | B6: 1 | C6: KEY MARKET SAS | D6: BROTHER | E6: Toner | F6: TN439C toner Cyan larga duracion 9.000 pág. Para equipos color MFC-L9570DW | G6: 621300 | H6: 1 | I6: TN439C toner Cyan larga duracion 9.000 pág. Para equipos color MFC-L9570DW1
A7: KEY MARKET SASTN439M toner Magenta larga duracion 9.000 pág. Para equipos color MFC-L9570DW1 | B7: 1 | C7: KEY MARKET SAS | D7: BROTHER | E7: Toner | F7: TN439M toner Magenta larga duracion 9.000 pág. Para equipos color MFC-L9570DW | G7: 485450 | H7: 1 | I7: TN439M toner Magenta larga duracion 9.000 pág. Para equipos color MFC-L9570DW1
A8: KEY MARKET SASTN439Y toner Yellow larga duracion 9.000 pág. Para equipos color MFC-L9570DW1 | B8: 1 | C8: KEY MARKET SAS | D8: BROTHER | E8: Toner | F8: TN439Y toner Yellow larga duracion 9.000 pág. Para equipos color MFC-L9570DW | G8: 816380.4348 | H8: 1 | I8: TN439Y toner Yellow larga duracion 9.000 pág. Para equipos color MFC-L9570DW1
A9: KEY MARKET SASDR433CL Unidad Drum larga duracion 50.000 pág. Para equipos MFC-L9570CDW1 | B9: 1 | C9: KEY MARKET SAS | D9: BROTHER | E9: Unidad Drum | F9: DR433CL Unidad Drum larga duracion 50.000 pág. Para equipos MFC-L9570CDW | G9: 816380.4348 | H9: 1 | I9: DR433CL Unidad Drum larga duracion 50.000 pág. Para equipos MFC-L9570CDW1
A10: KEY MARKET SASTN2420 toner larga duracion 3.000 pág. Para equipos DCP-L2550DN1 | B10: 1 | C10: KEY MARKET SAS | D10: BROTHER | E10: Toner | F10: TN2420 toner larga duracion 3.000 pág. Para equipos DCP-L2550DN | G10: 816380.4348 | H10: 1 | I10: TN2420 toner larga duracion 3.000 pág. Para equipos DCP-L2550DN1
A11: KEY MARKET SASDR2400 Unidad Drum larga duracion 12.000 pág. Para equipos DCP-L2550DN1 | B11: 1 | C11: KEY MARKET SAS | D11: BROTHER | E11: Unidad Drum | F11: DR2400 Unidad Drum larga duracion 12.000 pág. Para equipos DCP-L2550DN | G11: 661943.4783 | H11: 1 | I11: DR2400 Unidad Drum larga duracion 12.000 pág. Para equipos DCP-L2550DN1
A12: KEY MARKET SASTN850 toner larga duracion 8.000 pág. Para equipos MFC-L5900DW - MFC-L6750DW - MFC-L5700DW - MFC-L5800DW1 | B12: 1 | C12: KEY MARKET SAS | D12: BROTHER | E12: Toner | F12: TN850 toner larga duracion 8.000 pág. Para equipos MFC-L5900DW - MFC-L6750DW - MFC-L5700DW - MFC-L5800DW | G12: 264719.5652 | H12: 1 | I12: TN850 toner larga duracion 8.000 pág. Para equipos MFC-L5900DW - MFC-L6750DW - MFC-L5700DW - MFC-L5800DW1
A13: KEY MARKET SASDR820 Unidda drum larga duracion 50.000 pág. Para equipos MFC-L5900DW - MFC-L6750DW - MFC-L5700DW - MFC-L5800DW1 | B13: 1 | C13: KEY MARKET SAS | D13: BROTHER | E13: Unidad Drum | F13: DR820 Unidda drum larga duracion 50.000 pág. Para equipos MFC-L5900DW - MFC-L6750DW - MFC-L5700DW - MFC-L5800DW | G13: 101980.4348 | H13: 1 | I13: DR820 Unidda drum larga duracion 50.000 pág. Para equipos MFC-L5900DW - MFC-L6750DW - MFC-L5700DW - MFC-L5800DW1
A14: KEY MARKET SASTN850 toner larga duracion 8.000 pág. Para equipos HL-L5100DN - DCP-L5500DN - DCP-L5600DN - DCP-L5650DN1 | B14: 1 | C14: KEY MARKET SAS | D14: BROTHER | E14: Toner | F14: TN850 toner larga duracion 8.000 pág. Para equipos HL-L5100DN - DCP-L5500DN - DCP-L5600DN - DCP-L5650DN | G14: 351293.4783 | H14: 1 | I14: TN850 toner larga duracion 8.000 pág. Para equipos HL-L5100DN - DCP-L5500DN - DCP-L5600DN - DCP-L5650DN1
A15: KEY MARKET SASDR820 Unidad Drum larga duracion 30.000 pág. Para equipos HL-L5100DN - DCP-L5500DN - DCP-L5600DN - DCP-L5650DN1 | B15: 1 | C15: KEY MARKET SAS | D15: BROTHER | E15: Unidad Drum | F15: DR820 Unidad Drum larga duracion 30.000 pág. Para equipos HL-L5100DN - DCP-L5500DN - DCP-L5600DN - DCP-L5650DN | G15: 463310.8696 | H15: 1 | I15: DR820 Unidad Drum larga duracion 30.000 pág. Para equipos HL-L5100DN - DCP-L5500DN - DCP-L5600DN - DCP-L5650DN1
A16: KEY MARKET SASDR820 Unidad Drum larga duracion 30.000 pág. Para equipos HL-L6200DW - HL-L6200DWT1 | B16: 1 | C16: KEY MARKET SAS | D16: BROTHER | E16: Unidad Drum | F16: DR820 Unidad Drum larga duracion 30.000 pág. Para equipos HL-L6200DW - HL-L6200DWT | G16: 504780.4348 | H16: 1 | I16: DR820 Unidad Drum larga duracion 30.000 pág. Para equipos HL-L6200DW - HL-L6200DWT1
A17: KEY MARKET SASBT5001C 5.000 PAGS T500/ T800/T510W / T710W / T910DW1 | B17: 1 | C17: KEY MARKET SAS | D17: BROTHER | E17: Toner | F17: BT5001C 5.000 PAGS T500/ T800/T510W / T710W / T910DW | G17: 618367.3913 | H17: 1 | I17: BT5001C 5.000 PAGS T500/ T800/T510W / T710W / T910DW1
A18: KEY MARKET SASBT5001M 5.000 PAGS T500/ T800/T510W / T710W / T910DW1 | B18: 1 | C18: KEY MARKET SAS | D18: BROTHER | E18: Toner | F18: BT5001M 5.000 PAGS T500/ T800/T510W / T710W / T910DW | G18: 504780.4348 | H18: 1 | I18: BT5001M 5.000 PAGS T500/ T800/T510W / T710W / T910DW1
A19: KEY MARKET SASBT5001Y 5.000 PAGS T500/ T800/T510W / T710W / T910DW1 | B19: 1 | C19: KEY MARKET SAS | D19: BROTHER | E19: Toner | F19: BT5001Y 5.000 PAGS T500/ T800/T510W / T710W / T910DW | G19: 618367.3913 | H19: 1 | I19: BT5001Y 5.000 PAGS T500/ T800/T510W / T710W / T910DW1
A20: KEY MARKET SASBTD60BK 6.500 PAG. T510W / T710W / T910DW1 | B20: 1 | C20: KEY MARKET SAS | D20: BROTHER | E20: Toner | F20: BTD60BK 6.500 PAG. T510W / T710W / T910DW | G20: 698993.4783 | H20: 1 | I20: BTD60BK 6.500 PAG. T510W / T710W / T910DW1
A21: KEY MARKET SASBT6001BK 6.000 PAGS T500 / T8001 | B21: 1 | C21: KEY MARKET SAS | D21: BROTHER | E21: Toner | F21: BT6001BK 6.000 PAGS T500 / T800 | G21: 815471.7391 | H21: 1 | I21: BT6001BK 6.000 PAGS T500 / T8001
A22: KEY MARKET SASD0096U001 Unidad Fusora para equipos MFC-L6900DW - HL-L6400DW1 | B22: 1 | C22: KEY MARKET SAS | D22: BROTHER | E22: Unidad Fusora | F22: D0096U001 Unidad Fusora para equipos MFC-L6900DW - HL-L6400DW | G22: 4273306.522 | H22: 1 | I22: D0096U001 Unidad Fusora para equipos MFC-L6900DW - HL-L6400DW1
A23: KEY MARKET SASDR890 Unidad Drum larga duracion 50.000 pág. Para equipos HL-L6400DW1 | B23: 1 | C23: KEY MARKET SAS | D23: BROTHER | E23: Unidad Drum | F23: DR890 Unidad Drum larga duracion 50.000 pág. Para equipos HL-L6400DW | G23: 794323.913 | H23: 1 | I23: DR890 Unidad Drum larga duracion 50.000 pág. Para equipos HL-L6400DW1
A24: KEY MARKET SASBU330CL Unidad de correa, duracion 50.000 pág. Para equipos MFC-L9570CDW1 | B24: 1 | C24: KEY MARKET SAS | D24: BROTHER | E24: Suministro | F24: BU330CL Unidad de correa, duracion 50.000 pág. Para equipos MFC-L9570CDW | G24: 1071971.739 | H24: 1 | I24: BU330CL Unidad de correa, duracion 50.000 pág. Para equipos MFC-L9570CDW1
A25: KEY MARKET SASWT320CL Caja de Desechos, duracion 50.000 pág. Para equipos MFC-L9570CDW1 | B25: 1 | C25: KEY MARKET SAS | D25: BROTHER | E25: Suministro | F25: WT320CL Caja de Desechos, duracion 50.000 pág. Para equipos MFC-L9570CDW | G25: 183102.1739 | H25: 1 | I25: WT320CL Caja de Desechos, duracion 50.000 pág. Para equipos MFC-L9570CDW1
A26: KEY MARKET SASLT5505 Bandeja opcional de 250 hojas para equipos MFC-L6900DW - HL-L6400DW1 | B26: 1 | C26: KEY MARKET SAS | D26: BROTHER | E26: Bandeja Adicional | F26: LT5505 Bandeja opcional de 250 hojas para equipos MFC-L6900DW - HL-L6400DW | G26: 582473.913 | H26: 1 | I26: LT5505 Bandeja opcional de 250 hojas para equipos MFC-L6900DW - HL-L6400DW1
A27: KEY MARKET SASLT6505 Bandeja opcional de 520 hojas para equipos MFC-L6900DW - HL-L6400DW1 | B27: 1 | C27: KEY MARKET SAS | D27: BROTHER | E27: Bandeja Adicional | F27: LT6505 Bandeja opcional de 520 hojas para equipos MFC-L6900DW - HL-L6400DW | G27: 621300 | H27: 1 | I27: LT6505 Bandeja opcional de 520 hojas para equipos MFC-L6900DW - HL-L6400DW1
A28: KEY MARKET SASTT4000 Torre opcional de 4 bandejas x 520 hojas para equipos MFC-L6900DW - HL-L6400DW - MFC-L9570CDW1 | B28: 1 | C28: KEY MARKET SAS | D28: BROTHER | E28: Torre Bandejas | F28: TT4000 Torre opcional de 4 bandejas x 520 hojas para equipos MFC-L6900DW - HL-L6400DW - MFC-L9570CDW | G28: 618367.3913 | H28: 1 | I28: TT4000 Torre opcional de 4 bandejas x 520 hojas para equipos MFC-L6900DW - HL-L6400DW - MFC-L9570CDW1
A29: KEY MARKET SASLT330CL Bandeja opcional de 250 hojas para equipos MFC-L9570CDW 1 | B29: 1 | C29: KEY MARKET SAS | D29: BROTHER | E29: Bandeja Adicional | F29: LT330CL Bandeja opcional de 250 hojas para equipos MFC-L9570CDW | G29: 27591.30435 | H29: 1 | I29: LT330CL Bandeja opcional de 250 hojas para equipos MFC-L9570CDW 1
A30: KEY MARKET SASLT340CL Bandeja opcional de 500 hojas para equipos MFC-L9570CDW 1 | B30: 1 | C30: KEY MARKET SAS | D30: BROTHER | E30: Bandeja Adicional | F30: LT340CL Bandeja opcional de 500 hojas para equipos MFC-L9570CDW | G30: 27591.30435 | H30: 1 | I30: LT340CL Bandeja opcional de 500 hojas para equipos MFC-L9570CDW 1
A31: KEY MARKET SASTC4000 Conector opcionalpara la torre de bandejas para equipos MFC-L9570CDW1 | B31: 1 | C31: KEY MARKET SAS | D31: BROTHER | E31: Bandeja Adicional | F31: TC4000 Conector opcionalpara la torre de bandejas para equipos MFC-L9570CDW | G31: 27591.30435 | H31: 1 | I31: TC4000 Conector opcionalpara la torre de bandejas para equipos MFC-L9570CDW1
A32: KEY MARKET SASTN880 toner larga duracion 12.000 pág. Para equipos HL-L6250DW - HL-L6200DW - HL-L6200DWT1 | B32: 1 | C32: KEY MARKET SAS | D32: BROTHER | E32: Toner | F32: TN880 toner larga duracion 12.000 pág. Para equipos HL-L6250DW - HL-L6200DW - HL-L6200DWT | G32: 42750 | H32: 1 | I32: TN880 toner larga duracion 12.000 pág. Para equipos HL-L6250DW - HL-L6200DW - HL-L6200DWT1
A33: KEY MARKET SASDR890 Unidad Drum larga duracion 50.000 pág. Para equipos HL-L6250DW1 | B33: 1 | C33: KEY MARKET SAS | D33: BROTHER | E33: Unidad Drum | F33: DR890 Unidad Drum larga duracion 50.000 pág. Para equipos HL-L6250DW | G33: 42750 | H33: 1 | I33: DR890 Unidad Drum larga duracion 50.000 pág. Para equipos HL-L6250DW1
A34: DISPAPELES S.A.S.TN890 toner larga duracion 20.000 pág. Para equipos MFC-L6900DW1 | B34: 1 | C34: DISPAPELES S.A.S. | D34: BROTHER | E34: Toner | F34: TN890 toner larga duracion 20.000 pág. Para equipos MFC-L6900DW | G34: 932100 | H34: 1 | I34: TN890 toner larga duracion 20.000 pág. Para equipos MFC-L6900DW1
A35: DISPAPELES S.A.S.DR890 Unidad Drum larga duracion 50.000 pág. Para equipos MFC-L6900DW1 | B35: 1 | C35: DISPAPELES S.A.S. | D35: BROTHER | E35: Unidad Drum | F35: DR890 Unidad Drum larga duracion 50.000 pág. Para equipos MFC-L6900DW | G35: 828200 | H35: 1 | I35: DR890 Unidad Drum larga duracion 50.000 pág. Para equipos MFC-L6900DW1
A36: DISPAPELES S.A.S.TN890 toner larga duracion 20.000 pág. Para equipos HL-L6400DW1 | B36: 1 | C36: DISPAPELES S.A.S. | D36: BROTHER | E36: Toner | F36: TN890 toner larga duracion 20.000 pág. Para equipos HL-L6400DW | G36: 932100 | H36: 1 | I36: TN890 toner larga duracion 20.000 pág. Para equipos HL-L6400DW1
A37: DISPAPELES S.A.S.TN439BK toner Negro larga duracion 9.000 pág. Para equipos color MFC-L9570DW1 | B37: 1 | C37: DISPAPELES S.A.S. | D37: BROTHER | E37: Toner | F37: TN439BK toner Negro larga duracion 9.000 pág. Para equipos color MFC-L9570DW | G37: 647100 | H37: 1 | I37: TN439BK toner Negro larga duracion 9.000 pág. Para equipos color MFC-L9570DW1
A38: DISPAPELES S.A.S.TN439C toner Cyan larga duracion 9.000 pág. Para equipos color MFC-L9570DW1 | B38: 1 | C38: DISPAPELES S.A.S. | D38: BROTHER | E38: Toner | F38: TN439C toner Cyan larga duracion 9.000 pág. Para equipos color MFC-L9570DW | G38: 1088300 | H38: 1 | I38: TN439C toner Cyan larga duracion 9.000 pág. Para equipos color MFC-L9570DW1
A39: DISPAPELES S.A.S.TN439M toner Magenta larga duracion 9.000 pág. Para equipos color MFC-L9570DW1 | B39: 1 | C39: DISPAPELES S.A.S. | D39: BROTHER | E39: Toner | F39: TN439M toner Magenta larga duracion 9.000 pág. Para equipos color MFC-L9570DW | G39: 1088300 | H39: 1 | I39: TN439M toner Magenta larga duracion 9.000 pág. Para equipos color MFC-L9570DW1
A40: DISPAPELES S.A.S.TN439Y toner Yellow larga duracion 9.000 pág. Para equipos color MFC-L9570DW1 | B40: 1 | C40: DISPAPELES S.A.S. | D40: BROTHER | E40: Toner | F40: TN439Y toner Yellow larga duracion 9.000 pág. Para equipos color MFC-L9570DW | G40: 1088300 | H40: 1 | I40: TN439Y toner Yellow larga duracion 9.000 pág. Para equipos color MFC-L9570DW1
A41: DISPAPELES S.A.S.DR433CL Unidad Drum larga duracion 50.000 pág. Para equipos MFC-L9570CDW1 | B41: 1 | C41: DISPAPELES S.A.S. | D41: BROTHER | E41: Unidad Drum | F41: DR433CL Unidad Drum larga duracion 50.000 pág. Para equipos MFC-L9570CDW | G41: 882400 | H41: 1 | I41: DR433CL Unidad Drum larga duracion 50.000 pág. Para equipos MFC-L9570CDW1
A42: DISPAPELES S.A.S.TN2420 toner larga duracion 3.000 pág. Para equipos DCP-L2550DN1 | B42: 1 | C42: DISPAPELES S.A.S. | D42: BROTHER | E42: Toner | F42: TN2420 toner larga duracion 3.000 pág. Para equipos DCP-L2550DN | G42: 468300 | H42: 1 | I42: TN2420 toner larga duracion 3.000 pág. Para equipos DCP-L2550DN1
A43: DISPAPELES S.A.S.DR2400 Unidad Drum larga duracion 12.000 pág. Para equipos DCP-L2550DN1 | B43: 1 | C43: DISPAPELES S.A.S. | D43: BROTHER | E43: Unidad Drum | F43: DR2400 Unidad Drum larga duracion 12.000 pág. Para equipos DCP-L2550DN | G43: 617600 | H43: 1 | I43: DR2400 Unidad Drum larga duracion 12.000 pág. Para equipos DCP-L2550DN1
A44: DISPAPELES S.A.S.TN850 toner larga duracion 8.000 pág. Para equipos MFC-L5900DW - MFC-L6750DW - MFC-L5700DW - MFC-L5800DW1 | B44: 1 | C44: DISPAPELES S.A.S. | D44: BROTHER | E44: Toner | F44: TN850 toner larga duracion 8.000 pág. Para equipos MFC-L5900DW - MFC-L6750DW - MFC-L5700DW - MFC-L5800DW | G44: 672900 | H44: 1 | I44: TN850 toner larga duracion 8.000 pág. Para equipos MFC-L5900DW - MFC-L6750DW - MFC-L5700DW - MFC-L5800DW1
A45: DISPAPELES S.A.S.DR820 Unidda drum larga duracion 50.000 pág. Para equipos MFC-L5900DW - MFC-L6750DW - MFC-L5700DW - MFC-L5800DW1 | B45: 1 | C45: DISPAPELES S.A.S. | D45: BROTHER | E45: Unidad Drum | F45: DR820 Unidda drum larga duracion 50.000 pág. Para equipos MFC-L5900DW - MFC-L6750DW - MFC-L5700DW - MFC-L5800DW | G45: 824300 | H45: 1 | I45: DR820 Unidda drum larga duracion 50.000 pág. Para equipos MFC-L5900DW - MFC-L6750DW - MFC-L5700DW - MFC-L5800DW1
A46: DISPAPELES S.A.S.TN850 toner larga duracion 8.000 pág. Para equipos HL-L5100DN - DCP-L5500DN - DCP-L5600DN - DCP-L5650DN1 | B46: 1 | C46: DISPAPELES S.A.S. | D46: BROTHER | E46: Toner | F46: TN850 toner larga duracion 8.000 pág. Para equipos HL-L5100DN - DCP-L5500DN - DCP-L5600DN - DCP-L5650DN | G46: 672900 | H46: 1 | I46: TN850 toner larga duracion 8.000 pág. Para equipos HL-L5100DN - DCP-L5500DN - DCP-L5600DN - DCP-L5650DN1
A47: DISPAPELES S.A.S.DR820 Unidad Drum larga duracion 30.000 pág. Para equipos HL-L5100DN - DCP-L5500DN - DCP-L5600DN - DCP-L5650DN1 | B47: 1 | C47: DISPAPELES S.A.S. | D47: BROTHER | E47: Unidad Drum | F47: DR820 Unidad Drum larga duracion 30.000 pág. Para equipos HL-L5100DN - DCP-L5500DN - DCP-L5600DN - DCP-L5650DN | G47: 824300 | H47: 1 | I47: DR820 Unidad Drum larga duracion 30.000 pág. Para equipos HL-L5100DN - DCP-L5500DN - DCP-L5600DN - DCP-L5650DN1
A48: DISPAPELES S.A.S.DR820 Unidad Drum larga duracion 30.000 pág. Para equipos HL-L6200DW - HL-L6200DWT1 | B48: 1 | C48: DISPAPELES S.A.S. | D48: BROTHER | E48: Unidad Drum | F48: DR820 Unidad Drum larga duracion 30.000 pág. Para equipos HL-L6200DW - HL-L6200DWT | G48: 824300 | H48: 1 | I48: DR820 Unidad Drum larga duracion 30.000 pág. Para equipos HL-L6200DW - HL-L6200DWT1
A49: DISPAPELES S.A.S.BT5001C 5.000 PAGS T500/ T800/T510W / T710W / T910DW1 | B49: 1 | C49: DISPAPELES S.A.S. | D49: BROTHER | E49: Toner | F49: BT5001C 5.000 PAGS T500/ T800/T510W / T710W / T910DW | G49: 36800 | H49: 1 | I49: BT5001C 5.000 PAGS T500/ T800/T510W / T710W / T910DW1
A50: DISPAPELES S.A.S.BT5001M 5.000 PAGS T500/ T800/T510W / T710W / T910DW1 | B50: 1 | C50: DISPAPELES S.A.S. | D50: BROTHER | E50: Toner | F50: BT5001M 5.000 PAGS T500/ T800/T510W / T710W / T910DW | G50: 36800 | H50: 1 | I50: BT5001M 5.000 PAGS T500/ T800/T510W / T710W / T910DW1
A51: DISPAPELES S.A.S.BT5001Y 5.000 PAGS T500/ T800/T510W / T710W / T910DW1 | B51: 1 | C51: DISPAPELES S.A.S. | D51: BROTHER | E51: Toner | F51: BT5001Y 5.000 PAGS T500/ T800/T510W / T710W / T910DW | G51: 36800 | H51: 1 | I51: BT5001Y 5.000 PAGS T500/ T800/T510W / T710W / T910DW1
A52: DISPAPELES S.A.S.BTD60BK 6.500 PAG. T510W / T710W / T910DW1 | B52: 1 | C52: DISPAPELES S.A.S. | D52: BROTHER | E52: Toner | F52: BTD60BK 6.500 PAG. T510W / T710W / T910DW | G52: 57000 | H52: 1 | I52: BTD60BK 6.500 PAG. T510W / T710W / T910DW1
A53: DISPAPELES S.A.S.BT6001BK 6.000 PAGS T500 / T8001 | B53: 1 | C53: DISPAPELES S.A.S. | D53: BROTHER | E53: Toner | F53: BT6001BK 6.000 PAGS T500 / T800 | G53: 57000 | H53: 1 | I53: BT6001BK 6.000 PAGS T500 / T8001
A54: DISPAPELES S.A.S.D0096U001 Unidad Fusora para equipos MFC-L6900DW - HL-L6400DW1 | B54: 1 | C54: DISPAPELES S.A.S. | D54: BROTHER | E54: Unidad Fusora | F54: D0096U001 Unidad Fusora para equipos MFC-L6900DW - HL-L6400DW | G54: 991100 | H54: 1 | I54: D0096U001 Unidad Fusora para equipos MFC-L6900DW - HL-L6400DW1
A55: DISPAPELES S.A.S.DR890 Unidad Drum larga duracion 50.000 pág. Para equipos HL-L6400DW1 | B55: 1 | C55: DISPAPELES S.A.S. | D55: BROTHER | E55: Unidad Drum | F55: DR890 Unidad Drum larga duracion 50.000 pág. Para equipos HL-L6400DW | G55: 828200 | H55: 1 | I55: DR890 Unidad Drum larga duracion 50.000 pág. Para equipos HL-L6400DW1
A56: DISPAPELES S.A.S.BU330CL Unidad de correa, duracion 50.000 pág. Para equipos MFC-L9570CDW1 | B56: 1 | C56: DISPAPELES S.A.S. | D56: BROTHER | E56: Suministro | F56: BU330CL Unidad de correa, duracion 50.000 pág. Para equipos MFC-L9570CDW | G56: 352900 | H56: 1 | I56: BU330CL Unidad de correa, duracion 50.000 pág. Para equipos MFC-L9570CDW1
A57: DISPAPELES S.A.S.WT320CL Caja de Desechos, duracion 50.000 pág. Para equipos MFC-L9570CDW1 | B57: 1 | C57: DISPAPELES S.A.S. | D57: BROTHER | E57: Suministro | F57: WT320CL Caja de Desechos, duracion 50.000 pág. Para equipos MFC-L9570CDW | G57: 135900 | H57: 1 | I57: WT320CL Caja de Desechos, duracion 50.000 pág. Para equipos MFC-L9570CDW1
A58: DISPAPELES S.A.S.LT5505 Bandeja opcional de 250 hojas para equipos MFC-L6900DW - HL-L6400DW1 | B58: 1 | C58: DISPAPELES S.A.S. | D58: BROTHER | E58: Bandeja Adicional | F58: LT5505 Bandeja opcional de 250 hojas para equipos MFC-L6900DW - HL-L6400DW | G58: 931800 | H58: 1 | I58: LT5505 Bandeja opcional de 250 hojas para equipos MFC-L6900DW - HL-L6400DW1
A59: DISPAPELES S.A.S.LT6505 Bandeja opcional de 520 hojas para equipos MFC-L6900DW - HL-L6400DW1 | B59: 1 | C59: DISPAPELES S.A.S. | D59: BROTHER | E59: Bandeja Adicional | F59: LT6505 Bandeja opcional de 520 hojas para equipos MFC-L6900DW - HL-L6400DW | G59: 1087100 | H59: 1 | I59: LT6505 Bandeja opcional de 520 hojas para equipos MFC-L6900DW - HL-L6400DW1
A60: DISPAPELES S.A.S.TT4000 Torre opcional de 4 bandejas x 520 hojas para equipos MFC-L6900DW - HL-L6400DW - MFC-L9570CDW1 | B60: 1 | C60: DISPAPELES S.A.S. | D60: BROTHER | E60: Torre Bandejas | F60: TT4000 Torre opcional de 4 bandejas x 520 hojas para equipos MFC-L6900DW - HL-L6400DW - MFC-L9570CDW | G60: 5696500 | H60: 1 | I60: TT4000 Torre opcional de 4 bandejas x 520 hojas para equipos MFC-L6900DW - HL-L6400DW - MFC-L9570CDW1
A61: DISPAPELES S.A.S.LT330CL Bandeja opcional de 250 hojas para equipos MFC-L9570CDW 1 | B61: 1 | C61: DISPAPELES S.A.S. | D61: BROTHER | E61: Bandeja Adicional | F61: LT330CL Bandeja opcional de 250 hojas para equipos MFC-L9570CDW | G61: 1058900 | H61: 1 | I61: LT330CL Bandeja opcional de 250 hojas para equipos MFC-L9570CDW 1
A62: DISPAPELES S.A.S.LT340CL Bandeja opcional de 500 hojas para equipos MFC-L9570CDW 1 | B62: 1 | C62: DISPAPELES S.A.S. | D62: BROTHER | E62: Bandeja Adicional | F62: LT340CL Bandeja opcional de 500 hojas para equipos MFC-L9570CDW | G62: 1429000 | H62: 1 | I62: LT340CL Bandeja opcional de 500 hojas para equipos MFC-L9570CDW 1
A63: DISPAPELES S.A.S.TC4000 Conector opcionalpara la torre de bandejas para equipos MFC-L9570CDW1 | B63: 1 | C63: DISPAPELES S.A.S. | D63: BROTHER | E63: Bandeja Adicional | F63: TC4000 Conector opcionalpara la torre de bandejas para equipos MFC-L9570CDW | G63: 244100 | H63: 1 | I63: TC4000 Conector opcionalpara la torre de bandejas para equipos MFC-L9570CDW1
A64: DISPAPELES S.A.S.TN880 toner larga duracion 12.000 pág. Para equipos HL-L6250DW - HL-L6200DW - HL-L6200DWT1 | B64: 1 | C64: DISPAPELES S.A.S. | D64: BROTHER | E64: Toner | F64: TN880 toner larga duracion 12.000 pág. Para equipos HL-L6250DW - HL-L6200DW - HL-L6200DWT | G64: 776500 | H64: 1 | I64: TN880 toner larga duracion 12.000 pág. Para equipos HL-L6250DW - HL-L6200DW - HL-L6200DWT1
A65: DISPAPELES S.A.S.DR890 Unidad Drum larga duracion 50.000 pág. Para equipos HL-L6250DW1 | B65: 1 | C65: DISPAPELES S.A.S. | D65: BROTHER | E65: Unidad Drum | F65: DR890 Unidad Drum larga duracion 50.000 pág. Para equipos HL-L6250DW | G65: 828200 | H65: 1 | I65: DR890 Unidad Drum larga duracion 50.000 pág. Para equipos HL-L6250DW1
A66: UNIPLES S.ATN890 toner larga duracion 20.000 pág. Para equipos MFC-L6900DW1 | B66: 1 | C66: UNIPLES S.A | D66: BROTHER | E66: Toner | F66: TN890 toner larga duracion 20.000 pág. Para equipos MFC-L6900DW | G66: 695970 | H66: 1 | I66: TN890 toner larga duracion 20.000 pág. Para equipos MFC-L6900DW1
A67: UNIPLES S.ADR890 Unidad Drum larga duracion 50.000 pág. Para equipos MFC-L6900DW1 | B67: 1 | C67: UNIPLES S.A | D67: BROTHER | E67: Unidad Drum | F67: DR890 Unidad Drum larga duracion 50.000 pág. Para equipos MFC-L6900DW | G67: 483960 | H67: 1 | I67: DR890 Unidad Drum larga duracion 50.000 pág. Para equipos MFC-L6900DW1
A68: UNIPLES S.ATN890 toner larga duracion 20.000 pág. Para equipos HL-L6400DW1 | B68: 1 | C68: UNIPLES S.A | D68: BROTHER | E68: Toner | F68: TN890 toner larga duracion 20.000 pág. Para equipos HL-L6400DW | G68: 626373 | H68: 1 | I68: TN890 toner larga duracion 20.000 pág. Para equipos HL-L6400DW1
A69: UNIPLES S.ATN439BK toner Negro larga duracion 9.000 pág. Para equipos color MFC-L9570DW1 | B69: 1 | C69: UNIPLES S.A | D69: BROTHER | E69: Toner | F69: TN439BK toner Negro larga duracion 9.000 pág. Para equipos color MFC-L9570DW | G69: 483179 | H69: 1 | I69: TN439BK toner Negro larga duracion 9.000 pág. Para equipos color MFC-L9570DW1
A70: UNIPLES S.ATN439C toner Cyan larga duracion 9.000 pág. Para equipos color MFC-L9570DW1 | B70: 1 | C70: UNIPLES S.A | D70: BROTHER | E70: Toner | F70: TN439C toner Cyan larga duracion 9.000 pág. Para equipos color MFC-L9570DW | G70: 812561 | H70: 1 | I70: TN439C toner Cyan larga duracion 9.000 pág. Para equipos color MFC-L9570DW1
A71: UNIPLES S.ATN439M toner Magenta larga duracion 9.000 pág. Para equipos color MFC-L9570DW1 | B71: 1 | C71: UNIPLES S.A | D71: BROTHER | E71: Toner | F71: TN439M toner Magenta larga duracion 9.000 pág. Para equipos color MFC-L9570DW | G71: 812561 | H71: 1 | I71: TN439M toner Magenta larga duracion 9.000 pág. Para equipos color MFC-L9570DW1
A72: UNIPLES S.ATN439Y toner Yellow larga duracion 9.000 pág. Para equipos color MFC-L9570DW1 | B72: 1 | C72: UNIPLES S.A | D72: BROTHER | E72: Toner | F72: TN439Y toner Yellow larga duracion 9.000 pág. Para equipos color MFC-L9570DW | G72: 812561 | H72: 1 | I72: TN439Y toner Yellow larga duracion 9.000 pág. Para equipos color MFC-L9570DW1
A73: UNIPLES S.ADR433CL Unidad Drum larga duracion 50.000 pág. Para equipos MFC-L9570CDW1 | B73: 1 | C73: UNIPLES S.A | D73: BROTHER | E73: Unidad Drum | F73: DR433CL Unidad Drum larga duracion 50.000 pág. Para equipos MFC-L9570CDW | G73: 658847 | H73: 1 | I73: DR433CL Unidad Drum larga duracion 50.000 pág. Para equipos MFC-L9570CDW1
A74: UNIPLES S.ATN2420 toner larga duracion 3.000 pág. Para equipos DCP-L2550DN1 | B74: 1 | C74: UNIPLES S.A | D74: BROTHER | E74: Toner | F74: TN2420 toner larga duracion 3.000 pág. Para equipos DCP-L2550DN | G74: 349650 | H74: 1 | I74: TN2420 toner larga duracion 3.000 pág. Para equipos DCP-L2550DN1
A75: UNIPLES S.ADR2400 Unidad Drum larga duracion 12.000 pág. Para equipos DCP-L2550DN1 | B75: 1 | C75: UNIPLES S.A | D75: BROTHER | E75: Unidad Drum | F75: DR2400 Unidad Drum larga duracion 12.000 pág. Para equipos DCP-L2550DN | G75: 461143 | H75: 1 | I75: DR2400 Unidad Drum larga duracion 12.000 pág. Para equipos DCP-L2550DN1
A76: UNIPLES S.ATN850 toner larga duracion 8.000 pág. Para equipos MFC-L5900DW - MFC-L6750DW - MFC-L5700DW - MFC-L5800DW1 | B76: 1 | C76: UNIPLES S.A | D76: BROTHER | E76: Toner | F76: TN850 toner larga duracion 8.000 pág. Para equipos MFC-L5900DW - MFC-L6750DW - MFC-L5700DW - MFC-L5800DW | G76: 502419 | H76: 1 | I76: TN850 toner larga duracion 8.000 pág. Para equipos MFC-L5900DW - MFC-L6750DW - MFC-L5700DW - MFC-L5800DW1
A77: UNIPLES S.ADR820 Unidda drum larga duracion 50.000 pág. Para equipos MFC-L5900DW - MFC-L6750DW - MFC-L5700DW - MFC-L5800DW1 | B77: 1 | C77: UNIPLES S.A | D77: BROTHER | E77: Unidad Drum | F77: DR820 Unidda drum larga duracion 50.000 pág. Para equipos MFC-L5900DW - MFC-L6750DW - MFC-L5700DW - MFC-L5800DW | G77: 615474 | H77: 1 | I77: DR820 Unidda drum larga duracion 50.000 pág. Para equipos MFC-L5900DW - MFC-L6750DW - MFC-L5700DW - MFC-L5800DW1
A78: UNIPLES S.ATN850 toner larga duracion 8.000 pág. Para equipos HL-L5100DN - DCP-L5500DN - DCP-L5600DN - DCP-L5650DN1 | B78: 1 | C78: UNIPLES S.A | D78: BROTHER | E78: Toner | F78: TN850 toner larga duracion 8.000 pág. Para equipos HL-L5100DN - DCP-L5500DN - DCP-L5600DN - DCP-L5650DN | G78: 502419 | H78: 1 | I78: TN850 toner larga duracion 8.000 pág. Para equipos HL-L5100DN - DCP-L5500DN - DCP-L5600DN - DCP-L5650DN1
A79: UNIPLES S.ADR820 Unidad Drum larga duracion 30.000 pág. Para equipos HL-L5100DN - DCP-L5500DN - DCP-L5600DN - DCP-L5650DN1 | B79: 1 | C79: UNIPLES S.A | D79: BROTHER | E79: Unidad Drum | F79: DR820 Unidad Drum larga duracion 30.000 pág. Para equipos HL-L5100DN - DCP-L5500DN - DCP-L5600DN - DCP-L5650DN | G79: 615474 | H79: 1 | I79: DR820 Unidad Drum larga duracion 30.000 pág. Para equipos HL-L5100DN - DCP-L5500DN - DCP-L5600DN - DCP-L5650DN1
A80: UNIPLES S.ADR820 Unidad Drum larga duracion 30.000 pág. Para equipos HL-L6200DW - HL-L6200DWT1 | B80: 1 | C80: UNIPLES S.A | D80: BROTHER | E80: Unidad Drum | F80: DR820 Unidad Drum larga duracion 30.000 pág. Para equipos HL-L6200DW - HL-L6200DWT | G80: 615474 | H80: 1 | I80: DR820 Unidad Drum larga duracion 30.000 pág. Para equipos HL-L6200DW - HL-L6200DWT1
A81: UNIPLES S.ABT5001C 5.000 PAGS T500/ T800/T510W / T710W / T910DW1 | B81: 1 | C81: UNIPLES S.A | D81: BROTHER | E81: Toner | F81: BT5001C 5.000 PAGS T500/ T800/T510W / T710W / T910DW | G81: 27462 | H81: 1 | I81: BT5001C 5.000 PAGS T500/ T800/T510W / T710W / T910DW1
A82: UNIPLES S.ABT5001M 5.000 PAGS T500/ T800/T510W / T710W / T910DW1 | B82: 1 | C82: UNIPLES S.A | D82: BROTHER | E82: Toner | F82: BT5001M 5.000 PAGS T500/ T800/T510W / T710W / T910DW | G82: 27462 | H82: 1 | I82: BT5001M 5.000 PAGS T500/ T800/T510W / T710W / T910DW1
A83: UNIPLES S.ABT5001Y 5.000 PAGS T500/ T800/T510W / T710W / T910DW1 | B83: 1 | C83: UNIPLES S.A | D83: BROTHER | E83: Toner | F83: BT5001Y 5.000 PAGS T500/ T800/T510W / T710W / T910DW | G83: 27462 | H83: 1 | I83: BT5001Y 5.000 PAGS T500/ T800/T510W / T710W / T910DW1
A84: UNIPLES S.ABTD60BK 6.500 PAG. T510W / T710W / T910DW1 | B84: 1 | C84: UNIPLES S.A | D84: BROTHER | E84: Toner | F84: BTD60BK 6.500 PAG. T510W / T710W / T910DW | G84: 42550 | H84: 1 | I84: BTD60BK 6.500 PAG. T510W / T710W / T910DW1
A85: UNIPLES S.ABT6001BK 6.000 PAGS T500 / T8001 | B85: 1 | C85: UNIPLES S.A | D85: BROTHER | E85: Toner | F85: BT6001BK 6.000 PAGS T500 / T800 | G85: 42550 | H85: 1 | I85: BT6001BK 6.000 PAGS T500 / T8001
A86: UNIPLES S.AD0096U001 Unidad Fusora para equipos MFC-L6900DW - HL-L6400DW1 | B86: 1 | C86: UNIPLES S.A | D86: BROTHER | E86: Unidad Fusora | F86: D0096U001 Unidad Fusora para equipos MFC-L6900DW - HL-L6400DW | G86: 666000 | H86: 1 | I86: D0096U001 Unidad Fusora para equipos MFC-L6900DW - HL-L6400DW1
A87: UNIPLES S.ADR890 Unidad Drum larga duracion 50.000 pág. Para equipos HL-L6400DW1 | B87: 1 | C87: UNIPLES S.A | D87: BROTHER | E87: Unidad Drum | F87: DR890 Unidad Drum larga duracion 50.000 pág. Para equipos HL-L6400DW | G87: 556554 | H87: 1 | I87: DR890 Unidad Drum larga duracion 50.000 pág. Para equipos HL-L6400DW1
A88: UNIPLES S.ABU330CL Unidad de correa, duracion 50.000 pág. Para equipos MFC-L9570CDW1 | B88: 1 | C88: UNIPLES S.A | D88: BROTHER | E88: Suministro | F88: BU330CL Unidad de correa, duracion 50.000 pág. Para equipos MFC-L9570CDW | G88: 237133 | H88: 1 | I88: BU330CL Unidad de correa, duracion 50.000 pág. Para equipos MFC-L9570CDW1
A89: UNIPLES S.AWT320CL Caja de Desechos, duracion 50.000 pág. Para equipos MFC-L9570CDW1 | B89: 1 | C89: UNIPLES S.A | D89: BROTHER | E89: Suministro | F89: WT320CL Caja de Desechos, duracion 50.000 pág. Para equipos MFC-L9570CDW | G89: 91353 | H89: 1 | I89: WT320CL Caja de Desechos, duracion 50.000 pág. Para equipos MFC-L9570CDW1
A90: UNIPLES S.ALT5505 Bandeja opcional de 250 hojas para equipos MFC-L6900DW - HL-L6400DW1 | B90: 1 | C90: UNIPLES S.A | D90: BROTHER | E90: Bandeja Adicional | F90: LT5505 Bandeja opcional de 250 hojas para equipos MFC-L6900DW - HL-L6400DW | G90: 626151 | H90: 1 | I90: LT5505 Bandeja opcional de 250 hojas para equipos MFC-L6900DW - HL-L6400DW1
A91: UNIPLES S.ALT6505 Bandeja opcional de 520 hojas para equipos MFC-L6900DW - HL-L6400DW1 | B91: 1 | C91: UNIPLES S.A | D91: BROTHER | E91: Bandeja Adicional | F91: LT6505 Bandeja opcional de 520 hojas para equipos MFC-L6900DW - HL-L6400DW | G91: 730491 | H91: 1 | I91: LT6505 Bandeja opcional de 520 hojas para equipos MFC-L6900DW - HL-L6400DW1
A92: UNIPLES S.ATT4000 Torre opcional de 4 bandejas x 520 hojas para equipos MFC-L6900DW - HL-L6400DW - MFC-L9570CDW1 | B92: 1 | C92: UNIPLES S.A | D92: BROTHER | E92: Torre Bandejas | F92: TT4000 Torre opcional de 4 bandejas x 520 hojas para equipos MFC-L6900DW - HL-L6400DW - MFC-L9570CDW | G92: 3827983 | H92: 1 | I92: TT4000 Torre opcional de 4 bandejas x 520 hojas para equipos MFC-L6900DW - HL-L6400DW - MFC-L9570CDW1
A93: UNIPLES S.ALT330CL Bandeja opcional de 250 hojas para equipos MFC-L9570CDW 1 | B93: 1 | C93: UNIPLES S.A | D93: BROTHER | E93: Bandeja Adicional | F93: LT330CL Bandeja opcional de 250 hojas para equipos MFC-L9570CDW | G93: 711547 | H93: 1 | I93: LT330CL Bandeja opcional de 250 hojas para equipos MFC-L9570CDW 1
A94: UNIPLES S.ALT340CL Bandeja opcional de 500 hojas para equipos MFC-L9570CDW 1 | B94: 1 | C94: UNIPLES S.A | D94: BROTHER | E94: Bandeja Adicional | F94: LT340CL Bandeja opcional de 500 hojas para equipos MFC-L9570CDW | G94: 960261 | H94: 1 | I94: LT340CL Bandeja opcional de 500 hojas para equipos MFC-L9570CDW 1
A95: UNIPLES S.ATC4000 Conector opcionalpara la torre de bandejas para equipos MFC-L9570CDW1 | B95: 1 | C95: UNIPLES S.A | D95: BROTHER | E95: Bandeja Adicional | F95: TC4000 Conector opcionalpara la torre de bandejas para equipos MFC-L9570CDW | G95: 164021 | H95: 1 | I95: TC4000 Conector opcionalpara la torre de bandejas para equipos MFC-L9570CDW1
A96: UNIPLES S.ATN880 toner larga duracion 12.000 pág. Para equipos HL-L6250DW - HL-L6200DW - HL-L6200DWT1 | B96: 1 | C96: UNIPLES S.A | D96: BROTHER | E96: Toner | F96: TN880 toner larga duracion 12.000 pág. Para equipos HL-L6250DW - HL-L6200DW - HL-L6200DWT | G96: 521774 | H96: 1 | I96: TN880 toner larga duracion 12.000 pág. Para equipos HL-L6250DW - HL-L6200DW - HL-L6200DWT1
A97: UNIPLES S.ADR890 Unidad Drum larga duracion 50.000 pág. Para equipos HL-L6250DW1 | B97: 1 | C97: UNIPLES S.A | D97: BROTHER | E97: Unidad Drum | F97: DR890 Unidad Drum larga duracion 50.000 pág. Para equipos HL-L6250DW | G97: 556554 | H97: 1 | I97: DR890 Unidad Drum larga duracion 50.000 pág. Para equipos HL-L6250DW1
A98: UT OFIBEST-FORMACONTN890 toner larga duracion 20.000 pág. Para equipos MFC-L6900DW1 | B98: 1 | C98: UT OFIBEST-FORMACON | D98: BROTHER | E98: Toner | F98: TN890 toner larga duracion 20.000 pág. Para equipos MFC-L6900DW | G98: 810116.1337 | H98: 1 | I98: TN890 toner larga duracion 20.000 pág. Para equipos MFC-L6900DW1
A99: UT OFIBEST-FORMACONDR890 Unidad Drum larga duracion 50.000 pág. Para equipos MFC-L6900DW1 | B99: 1 | C99: UT OFIBEST-FORMACON | D99: BROTHER | E99: Unidad Drum | F99: DR890 Unidad Drum larga duracion 50.000 pág. Para equipos MFC-L6900DW | G99: 685539.15 | H99: 1 | I99: DR890 Unidad Drum larga duracion 50.000 pág. Para equipos MFC-L6900DW1
A100: UT OFIBEST-FORMACONTN890 toner larga duracion 20.000 pág. Para equipos HL-L6400DW1 | B100: 1 | C100: UT OFIBEST-FORMACON | D100: BROTHER | E100: Toner | F100: TN890 toner larga duracion 20.000 pág. Para equipos HL-L6400DW | G100: 810116.1337 | H100: 1 | I100: TN890 toner larga duracion 20.000 pág. Para equipos HL-L6400DW1
A101: UT OFIBEST-FORMACONTN439BK toner Negro larga duracion 9.000 pág. Para equipos color MFC-L9570DW1 | B101: 1 | C101: UT OFIBEST-FORMACON | D101: BROTHER | E101: Toner | F101: TN439BK toner Negro larga duracion 9.000 pág. Para equipos color MFC-L9570DW | G101: 562425.1238 | H101: 1 | I101: TN439BK toner Negro larga duracion 9.000 pág. Para equipos color MFC-L9570DW1
A102: UT OFIBEST-FORMACONTN439C toner Cyan larga duracion 9.000 pág. Para equipos color MFC-L9570DW1 | B102: 1 | C102: UT OFIBEST-FORMACON | D102: BROTHER | E102: Toner | F102: TN439C toner Cyan larga duracion 9.000 pág. Para equipos color MFC-L9570DW | G102: 945829.3688 | H102: 1 | I102: TN439C toner Cyan larga duracion 9.000 pág. Para equipos color MFC-L9570DW1
A103: UT OFIBEST-FORMACONTN439M toner Magenta larga duracion 9.000 pág. Para equipos color MFC-L9570DW1 | B103: 1 | C103: UT OFIBEST-FORMACON | D103: BROTHER | E103: Toner | F103: TN439M toner Magenta larga duracion 9.000 pág. Para equipos color MFC-L9570DW | G103: 945829.3688 | H103: 1 | I103: TN439M toner Magenta larga duracion 9.000 pág. Para equipos color MFC-L9570DW1
A104: UT OFIBEST-FORMACONTN439Y toner Yellow larga duracion 9.000 pág. Para equipos color MFC-L9570DW1 | B104: 1 | C104: UT OFIBEST-FORMACON | D104: BROTHER | E104: Toner | F104: TN439Y toner Yellow larga duracion 9.000 pág. Para equipos color MFC-L9570DW | G104: 945829.3688 | H104: 1 | I104: TN439Y toner Yellow larga duracion 9.000 pág. Para equipos color MFC-L9570DW1
A105: UT OFIBEST-FORMACONDR433CL Unidad Drum larga duracion 50.000 pág. Para equipos MFC-L9570CDW1 | B105: 1 | C105: UT OFIBEST-FORMACON | D105: BROTHER | E105: Unidad Drum | F105: DR433CL Unidad Drum larga duracion 50.000 pág. Para equipos MFC-L9570CDW | G105: 730384.95 | H105: 1 | I105: DR433CL Unidad Drum larga duracion 50.000 pág. Para equipos MFC-L9570CDW1
A106: UT OFIBEST-FORMACONTN2420 toner larga duracion 3.000 pág. Para equipos DCP-L2550DN1 | B106: 1 | C106: UT OFIBEST-FORMACON | D106: BROTHER | E106: Toner | F106: TN2420 toner larga duracion 3.000 pág. Para equipos DCP-L2550DN | G106: 717806.25 | H106: 1 | I106: TN2420 toner larga duracion 3.000 pág. Para equipos DCP-L2550DN1
A107: UT OFIBEST-FORMACONDR2400 Unidad Drum larga duracion 12.000 pág. Para equipos DCP-L2550DN1 | B107: 1 | C107: UT OFIBEST-FORMACON | D107: BROTHER | E107: Unidad Drum | F107: DR2400 Unidad Drum larga duracion 12.000 pág. Para equipos DCP-L2550DN | G107: 592475 | H107: 1 | I107: DR2400 Unidad Drum larga duracion 12.000 pág. Para equipos DCP-L2550DN1
A108: UT OFIBEST-FORMACONTN850 toner larga duracion 8.000 pág. Para equipos MFC-L5900DW - MFC-L6750DW - MFC-L5700DW - MFC-L5800DW1 | B108: 1 | C108: UT OFIBEST-FORMACON | D108: BROTHER | E108: Toner | F108: TN850 toner larga duracion 8.000 pág. Para equipos MFC-L5900DW - MFC-L6750DW - MFC-L5700DW - MFC-L5800DW | G108: 584820.6787 | H108: 1 | I108: TN850 toner larga duracion 8.000 pág. Para equipos MFC-L5900DW - MFC-L6750DW - MFC-L5700DW - MFC-L5800DW1
A109: UT OFIBEST-FORMACONDR820 Unidda drum larga duracion 50.000 pág. Para equipos MFC-L5900DW - MFC-L6750DW - MFC-L5700DW - MFC-L5800DW1 | B109: 1 | C109: UT OFIBEST-FORMACON | D109: BROTHER | E109: Unidad Drum | F109: DR820 Unidda drum larga duracion 50.000 pág. Para equipos MFC-L5900DW - MFC-L6750DW - MFC-L5700DW - MFC-L5800DW | G109: 682303.325 | H109: 1 | I109: DR820 Unidda drum larga duracion 50.000 pág. Para equipos MFC-L5900DW - MFC-L6750DW - MFC-L5700DW - MFC-L5800DW1
A110: UT OFIBEST-FORMACONTN850 toner larga duracion 8.000 pág. Para equipos HL-L5100DN - DCP-L5500DN - DCP-L5600DN - DCP-L5650DN1 | B110: 1 | C110: UT OFIBEST-FORMACON | D110: BROTHER | E110: Toner | F110: TN850 toner larga duracion 8.000 pág. Para equipos HL-L5100DN - DCP-L5500DN - DCP-L5600DN - DCP-L5650DN | G110: 584820.6787 | H110: 1 | I110: TN850 toner larga duracion 8.000 pág. Para equipos HL-L5100DN - DCP-L5500DN - DCP-L5600DN - DCP-L5650DN1
A111: UT OFIBEST-FORMACONDR820 Unidad Drum larga duracion 30.000 pág. Para equipos HL-L5100DN - DCP-L5500DN - DCP-L5600DN - DCP-L5650DN1 | B111: 1 | C111: UT OFIBEST-FORMACON | D111: BROTHER | E111: Unidad Drum | F111: DR820 Unidad Drum larga duracion 30.000 pág. Para equipos HL-L5100DN - DCP-L5500DN - DCP-L5600DN - DCP-L5650DN | G111: 682303.325 | H111: 1 | I111: DR820 Unidad Drum larga duracion 30.000 pág. Para equipos HL-L5100DN - DCP-L5500DN - DCP-L5600DN - DCP-L5650DN1
A112: UT OFIBEST-FORMACONDR820 Unidad Drum larga duracion 30.000 pág. Para equipos HL-L6200DW - HL-L6200DWT1 | B112: 1 | C112: UT OFIBEST-FORMACON | D112: BROTHER | E112: Unidad Drum | F112: DR820 Unidad Drum larga duracion 30.000 pág. Para equipos HL-L6200DW - HL-L6200DWT | G112: 682303.325 | H112: 1 | I112: DR820 Unidad Drum larga duracion 30.000 pág. Para equipos HL-L6200DW - HL-L6200DWT1
A113: UT OFIBEST-FORMACONBT5001C 5.000 PAGS T500/ T800/T510W / T710W / T910DW1 | B113: 1 | C113: UT OFIBEST-FORMACON | D113: BROTHER | E113: Toner | F113: BT5001C 5.000 PAGS T500/ T800/T510W / T710W / T910DW | G113: 31966.305 | H113: 1 | I113: BT5001C 5.000 PAGS T500/ T800/T510W / T710W / T910DW1
A114: UT OFIBEST-FORMACONBT5001M 5.000 PAGS T500/ T800/T510W / T710W / T910DW1 | B114: 1 | C114: UT OFIBEST-FORMACON | D114: BROTHER | E114: Toner | F114: BT5001M 5.000 PAGS T500/ T800/T510W / T710W / T910DW | G114: 31966.305 | H114: 1 | I114: BT5001M 5.000 PAGS T500/ T800/T510W / T710W / T910DW1
A115: UT OFIBEST-FORMACONBT5001Y 5.000 PAGS T500/ T800/T510W / T710W / T910DW1 | B115: 1 | C115: UT OFIBEST-FORMACON | D115: BROTHER | E115: Toner | F115: BT5001Y 5.000 PAGS T500/ T800/T510W / T710W / T910DW | G115: 31966.305 | H115: 1 | I115: BT5001Y 5.000 PAGS T500/ T800/T510W / T710W / T910DW1
A116: UT OFIBEST-FORMACONBTD60BK 6.500 PAG. T510W / T710W / T910DW1 | B116: 1 | C116: UT OFIBEST-FORMACON | D116: BROTHER | E116: Toner | F116: BTD60BK 6.500 PAG. T510W / T710W / T910DW | G116: 49528.63125 | H116: 1 | I116: BTD60BK 6.500 PAG. T510W / T710W / T910DW1
A117: UT OFIBEST-FORMACONBT6001BK 6.000 PAGS T500 / T8001 | B117: 1 | C117: UT OFIBEST-FORMACON | D117: BROTHER | E117: Toner | F117: BT6001BK 6.000 PAGS T500 / T800 | G117: 49528.63125 | H117: 1 | I117: BT6001BK 6.000 PAGS T500 / T8001
A118: UT OFIBEST-FORMACOND0096U001 Unidad Fusora para equipos MFC-L6900DW - HL-L6400DW1 | B118: 1 | C118: UT OFIBEST-FORMACON | D118: BROTHER | E118: Unidad Fusora | F118: D0096U001 Unidad Fusora para equipos MFC-L6900DW - HL-L6400DW | G118: 820350 | H118: 1 | I118: D0096U001 Unidad Fusora para equipos MFC-L6900DW - HL-L6400DW1
A119: UT OFIBEST-FORMACONDR890 Unidad Drum larga duracion 50.000 pág. Para equipos HL-L6400DW1 | B119: 1 | C119: UT OFIBEST-FORMACON | D119: BROTHER | E119: Unidad Drum | F119: DR890 Unidad Drum larga duracion 50.000 pág. Para equipos HL-L6400DW | G119: 685539.15 | H119: 1 | I119: DR890 Unidad Drum larga duracion 50.000 pág. Para equipos HL-L6400DW1
A120: UT OFIBEST-FORMACONBU330CL Unidad de correa, duracion 50.000 pág. Para equipos MFC-L9570CDW1 | B120: 1 | C120: UT OFIBEST-FORMACON | D120: BROTHER | E120: Suministro | F120: BU330CL Unidad de correa, duracion 50.000 pág. Para equipos MFC-L9570CDW | G120: 292090.175 | H120: 1 | I120: BU330CL Unidad de correa, duracion 50.000 pág. Para equipos MFC-L9570CDW1
A121: UT OFIBEST-FORMACONWT320CL Caja de Desechos, duracion 50.000 pág. Para equipos MFC-L9570CDW1 | B121: 1 | C121: UT OFIBEST-FORMACON | D121: BROTHER | E121: Suministro | F121: WT320CL Caja de Desechos, duracion 50.000 pág. Para equipos MFC-L9570CDW | G121: 112524.675 | H121: 1 | I121: WT320CL Caja de Desechos, duracion 50.000 pág. Para equipos MFC-L9570CDW1
A122: UT OFIBEST-FORMACONLT5505 Bandeja opcional de 250 hojas para equipos MFC-L6900DW - HL-L6400DW1 | B122: 1 | C122: UT OFIBEST-FORMACON | D122: BROTHER | E122: Bandeja Adicional | F122: LT5505 Bandeja opcional de 250 hojas para equipos MFC-L6900DW - HL-L6400DW | G122: 771265.725 | H122: 1 | I122: LT5505 Bandeja opcional de 250 hojas para equipos MFC-L6900DW - HL-L6400DW1
A123: UT OFIBEST-FORMACONLT6505 Bandeja opcional de 520 hojas para equipos MFC-L6900DW - HL-L6400DW1 | B123: 1 | C123: UT OFIBEST-FORMACON | D123: BROTHER | E123: Bandeja Adicional | F123: LT6505 Bandeja opcional de 520 hojas para equipos MFC-L6900DW - HL-L6400DW | G123: 899787.225 | H123: 1 | I123: LT6505 Bandeja opcional de 520 hojas para equipos MFC-L6900DW - HL-L6400DW1
A124: UT OFIBEST-FORMACONTT4000 Torre opcional de 4 bandejas x 520 hojas para equipos MFC-L6900DW - HL-L6400DW - MFC-L9570CDW1 | B124: 1 | C124: UT OFIBEST-FORMACON | D124: BROTHER | E124: Torre Bandejas | F124: TT4000 Torre opcional de 4 bandejas x 520 hojas para equipos MFC-L6900DW - HL-L6400DW - MFC-L9570CDW | G124: 4500819.201 | H124: 1 | I124: TT4000 Torre opcional de 4 bandejas x 520 hojas para equipos MFC-L6900DW - HL-L6400DW - MFC-L9570CDW1
A125: UT OFIBEST-FORMACONLT330CL Bandeja opcional de 250 hojas para equipos MFC-L9570CDW 1 | B125: 1 | C125: UT OFIBEST-FORMACON | D125: BROTHER | E125: Bandeja Adicional | F125: LT330CL Bandeja opcional de 250 hojas para equipos MFC-L9570CDW | G125: 876452.825 | H125: 1 | I125: LT330CL Bandeja opcional de 250 hojas para equipos MFC-L9570CDW 1
A126: UT OFIBEST-FORMACONLT340CL Bandeja opcional de 500 hojas para equipos MFC-L9570CDW 1 | B126: 1 | C126: UT OFIBEST-FORMACON | D126: BROTHER | E126: Bandeja Adicional | F126: LT340CL Bandeja opcional de 500 hojas para equipos MFC-L9570CDW | G126: 1182807.975 | H126: 1 | I126: LT340CL Bandeja opcional de 500 hojas para equipos MFC-L9570CDW 1
A127: UT OFIBEST-FORMACONTC4000 Conector opcionalpara la torre de bandejas para equipos MFC-L9570CDW1 | B127: 1 | C127: UT OFIBEST-FORMACON | D127: BROTHER | E127: Bandeja Adicional | F127: TC4000 Conector opcionalpara la torre de bandejas para equipos MFC-L9570CDW | G127: 202033.975 | H127: 1 | I127: TC4000 Conector opcionalpara la torre de bandejas para equipos MFC-L9570CDW1
A128: UT OFIBEST-FORMACONTN880 toner larga duracion 12.000 pág. Para equipos HL-L6250DW - HL-L6200DW - HL-L6200DWT1 | B128: 1 | C128: UT OFIBEST-FORMACON | D128: BROTHER | E128: Toner | F128: TN880 toner larga duracion 12.000 pág. Para equipos HL-L6250DW - HL-L6200DW - HL-L6200DWT | G128: 674833.5825 | H128: 1 | I128: TN880 toner larga duracion 12.000 pág. Para equipos HL-L6250DW - HL-L6200DW - HL-L6200DWT1
A129: UT OFIBEST-FORMACONDR890 Unidad Drum larga duracion 50.000 pág. Para equipos HL-L6250DW1 | B129: 1 | C129: UT OFIBEST-FORMACON | D129: BROTHER | E129: Unidad Drum | F129: DR890 Unidad Drum larga duracion 50.000 pág. Para equipos HL-L6250DW | G129: 685539.15 | H129: 1 | I129: DR890 Unidad Drum larga duracion 50.000 pág. Para equipos HL-L6250DW1
A130: HARDWARE ASESORIAS SOFTWARE LTDATN890 toner larga duracion 20.000 pág. Para equipos MFC-L6900DW1 | B130: 1 | C130: HARDWARE ASESORIAS SOFTWARE LTDA | D130: BROTHER | E130: Toner | F130: TN890 toner larga duracion 20.000 pág. Para equipos MFC-L6900DW | G130: 769353.6118 | H130: 1 | I130: TN890 toner larga duracion 20.000 pág. Para equipos MFC-L6900DW1
A131: HARDWARE ASESORIAS SOFTWARE LTDADR890 Unidad Drum larga duracion 50.000 pág. Para equipos MFC-L6900DW1 | B131: 1 | C131: HARDWARE ASESORIAS SOFTWARE LTDA | D131: BROTHER | E131: Unidad Drum | F131: DR890 Unidad Drum larga duracion 50.000 pág. Para equipos MFC-L6900DW | G131: 682858.2353 | H131: 1 | I131: DR890 Unidad Drum larga duracion 50.000 pág. Para equipos MFC-L6900DW1
A132: HARDWARE ASESORIAS SOFTWARE LTDATN890 toner larga duracion 20.000 pág. Para equipos HL-L6400DW1 | B132: 1 | C132: HARDWARE ASESORIAS SOFTWARE LTDA | D132: BROTHER | E132: Toner | F132: TN890 toner larga duracion 20.000 pág. Para equipos HL-L6400DW | G132: 769353.6118 | H132: 1 | I132: TN890 toner larga duracion 20.000 pág. Para equipos HL-L6400DW1
A133: HARDWARE ASESORIAS SOFTWARE LTDATN439BK toner Negro larga duracion 9.000 pág. Para equipos color MFC-L9570DW1 | B133: 1 | C133: HARDWARE ASESORIAS SOFTWARE LTDA | D133: BROTHER | E133: Toner | F133: TN439BK toner Negro larga duracion 9.000 pág. Para equipos color MFC-L9570DW | G133: 532629.4235 | H133: 1 | I133: TN439BK toner Negro larga duracion 9.000 pág. Para equipos color MFC-L9570DW1
A134: HARDWARE ASESORIAS SOFTWARE LTDATN439C toner Cyan larga duracion 9.000 pág. Para equipos color MFC-L9570DW1 | B134: 1 | C134: HARDWARE ASESORIAS SOFTWARE LTDA | D134: BROTHER | E134: Toner | F134: TN439C toner Cyan larga duracion 9.000 pág. Para equipos color MFC-L9570DW | G134: 896820.4824 | H134: 1 | I134: TN439C toner Cyan larga duracion 9.000 pág. Para equipos color MFC-L9570DW1
A135: HARDWARE ASESORIAS SOFTWARE LTDATN439M toner Magenta larga duracion 9.000 pág. Para equipos color MFC-L9570DW1 | B135: 1 | C135: HARDWARE ASESORIAS SOFTWARE LTDA | D135: BROTHER | E135: Toner | F135: TN439M toner Magenta larga duracion 9.000 pág. Para equipos color MFC-L9570DW | G135: 896820.4824 | H135: 1 | I135: TN439M toner Magenta larga duracion 9.000 pág. Para equipos color MFC-L9570DW1
A136: HARDWARE ASESORIAS SOFTWARE LTDATN439Y toner Yellow larga duracion 9.000 pág. Para equipos color MFC-L9570DW1 | B136: 1 | C136: HARDWARE ASESORIAS SOFTWARE LTDA | D136: BROTHER | E136: Toner | F136: TN439Y toner Yellow larga duracion 9.000 pág. Para equipos color MFC-L9570DW | G136: 896820.4824 | H136: 1 | I136: TN439Y toner Yellow larga duracion 9.000 pág. Para equipos color MFC-L9570DW1
A137: HARDWARE ASESORIAS SOFTWARE LTDADR433CL Unidad Drum larga duracion 50.000 pág. Para equipos MFC-L9570CDW1 | B137: 1 | C137: HARDWARE ASESORIAS SOFTWARE LTDA | D137: BROTHER | E137: Unidad Drum | F137: DR433CL Unidad Drum larga duracion 50.000 pág. Para equipos MFC-L9570CDW | G137: 728382.1176 | H137: 1 | I137: DR433CL Unidad Drum larga duracion 50.000 pág. Para equipos MFC-L9570CDW1
A138: HARDWARE ASESORIAS SOFTWARE LTDATN2420 toner larga duracion 3.000 pág. Para equipos DCP-L2550DN1 | B138: 1 | C138: HARDWARE ASESORIAS SOFTWARE LTDA | D138: BROTHER | E138: Toner | F138: TN2420 toner larga duracion 3.000 pág. Para equipos DCP-L2550DN | G138: 682858.2353 | H138: 1 | I138: TN2420 toner larga duracion 3.000 pág. Para equipos DCP-L2550DN1
A139: HARDWARE ASESORIAS SOFTWARE LTDADR2400 Unidad Drum larga duracion 12.000 pág. Para equipos DCP-L2550DN1 | B139: 1 | C139: HARDWARE ASESORIAS SOFTWARE LTDA | D139: BROTHER | E139: Unidad Drum | F139: DR2400 Unidad Drum larga duracion 12.000 pág. Para equipos DCP-L2550DN | G139: 559943.7529 | H139: 1 | I139: DR2400 Unidad Drum larga duracion 12.000 pág. Para equipos DCP-L2550DN1
A140: HARDWARE ASESORIAS SOFTWARE LTDATN850 toner larga duracion 8.000 pág. Para equipos MFC-L5900DW - MFC-L6750DW - MFC-L5700DW - MFC-L5800DW1 | B140: 1 | C140: HARDWARE ASESORIAS SOFTWARE LTDA | D140: BROTHER | E140: Toner | F140: TN850 toner larga duracion 8.000 pág. Para equipos MFC-L5900DW - MFC-L6750DW - MFC-L5700DW - MFC-L5800DW | G140: 559943.7529 | H140: 1 | I140: TN850 toner larga duracion 8.000 pág. Para equipos MFC-L5900DW - MFC-L6750DW - MFC-L5700DW - MFC-L5800DW1
A141: HARDWARE ASESORIAS SOFTWARE LTDADR820 Unidda drum larga duracion 50.000 pág. Para equipos MFC-L5900DW - MFC-L6750DW - MFC-L5700DW - MFC-L5800DW1 | B141: 1 | C141: HARDWARE ASESORIAS SOFTWARE LTDA | D141: BROTHER | E141: Unidad Drum | F141: DR820 Unidda drum larga duracion 50.000 pág. Para equipos MFC-L5900DW - MFC-L6750DW - MFC-L5700DW - MFC-L5800DW | G141: 682858.2353 | H141: 1 | I141: DR820 Unidda drum larga duracion 50.000 pág. Para equipos MFC-L5900DW - MFC-L6750DW - MFC-L5700DW - MFC-L5800DW1
A142: HARDWARE ASESORIAS SOFTWARE LTDATN850 toner larga duracion 8.000 pág. Para equipos HL-L5100DN - DCP-L5500DN - DCP-L5600DN - DCP-L5650DN1 | B142: 1 | C142: HARDWARE ASESORIAS SOFTWARE LTDA | D142: BROTHER | E142: Toner | F142: TN850 toner larga duracion 8.000 pág. Para equipos HL-L5100DN - DCP-L5500DN - DCP-L5600DN - DCP-L5650DN | G142: 559943.7529 | H142: 1 | I142: TN850 toner larga duracion 8.000 pág. Para equipos HL-L5100DN - DCP-L5500DN - DCP-L5600DN - DCP-L5650DN1
A143: HARDWARE ASESORIAS SOFTWARE LTDADR820 Unidad Drum larga duracion 30.000 pág. Para equipos HL-L5100DN - DCP-L5500DN - DCP-L5600DN - DCP-L5650DN1 | B143: 1 | C143: HARDWARE ASESORIAS SOFTWARE LTDA | D143: BROTHER | E143: Unidad Drum | F143: DR820 Unidad Drum larga duracion 30.000 pág. Para equipos HL-L5100DN - DCP-L5500DN - DCP-L5600DN - DCP-L5650DN | G143: 682858.2353 | H143: 1 | I143: DR820 Unidad Drum larga duracion 30.000 pág. Para equipos HL-L5100DN - DCP-L5500DN - DCP-L5600DN - DCP-L5650DN1
A144: HARDWARE ASESORIAS SOFTWARE LTDADR820 Unidad Drum larga duracion 30.000 pág. Para equipos HL-L6200DW - HL-L6200DWT1 | B144: 1 | C144: HARDWARE ASESORIAS SOFTWARE LTDA | D144: BROTHER | E144: Unidad Drum | F144: DR820 Unidad Drum larga duracion 30.000 pág. Para equipos HL-L6200DW - HL-L6200DWT | G144: 682858.2353 | H144: 1 | I144: DR820 Unidad Drum larga duracion 30.000 pág. Para equipos HL-L6200DW - HL-L6200DWT1
A145: HARDWARE ASESORIAS SOFTWARE LTDABT5001C 5.000 PAGS T500/ T800/T510W / T710W / T910DW1 | B145: 1 | C145: HARDWARE ASESORIAS SOFTWARE LTDA | D145: BROTHER | E145: Toner | F145: BT5001C 5.000 PAGS T500/ T800/T510W / T710W / T910DW | G145: 31866.71765 | H145: 1 | I145: BT5001C 5.000 PAGS T500/ T800/T510W / T710W / T910DW1
A146: HARDWARE ASESORIAS SOFTWARE LTDABT5001M 5.000 PAGS T500/ T800/T510W / T710W / T910DW1 | B146: 1 | C146: HARDWARE ASESORIAS SOFTWARE LTDA | D146: BROTHER | E146: Toner | F146: BT5001M 5.000 PAGS T500/ T800/T510W / T710W / T910DW | G146: 31866.71765 | H146: 1 | I146: BT5001M 5.000 PAGS T500/ T800/T510W / T710W / T910DW1
A147: HARDWARE ASESORIAS SOFTWARE LTDABT5001Y 5.000 PAGS T500/ T800/T510W / T710W / T910DW1 | B147: 1 | C147: HARDWARE ASESORIAS SOFTWARE LTDA | D147: BROTHER | E147: Toner | F147: BT5001Y 5.000 PAGS T500/ T800/T510W / T710W / T910DW | G147: 31866.71765 | H147: 1 | I147: BT5001Y 5.000 PAGS T500/ T800/T510W / T710W / T910DW1
A148: HARDWARE ASESORIAS SOFTWARE LTDABTD60BK 6.500 PAG. T510W / T710W / T910DW1 | B148: 1 | C148: HARDWARE ASESORIAS SOFTWARE LTDA | D148: BROTHER | E148: Toner | F148: BTD60BK 6.500 PAG. T510W / T710W / T910DW | G148: 31866.71765 | H148: 1 | I148: BTD60BK 6.500 PAG. T510W / T710W / T910DW1
A149: HARDWARE ASESORIAS SOFTWARE LTDABT6001BK 6.000 PAGS T500 / T8001 | B149: 1 | C149: HARDWARE ASESORIAS SOFTWARE LTDA | D149: BROTHER | E149: Toner | F149: BT6001BK 6.000 PAGS T500 / T800 | G149: 31866.71765 | H149: 1 | I149: BT6001BK 6.000 PAGS T500 / T8001
A150: HARDWARE ASESORIAS SOFTWARE LTDAD0096U001 Unidad Fusora para equipos MFC-L6900DW - HL-L6400DW1 | B150: 1 | C150: HARDWARE ASESORIAS SOFTWARE LTDA | D150: BROTHER | E150: Unidad Fusora | F150: D0096U001 Unidad Fusora para equipos MFC-L6900DW - HL-L6400DW | G150: 870644.25 | H150: 1 | I150: D0096U001 Unidad Fusora para equipos MFC-L6900DW - HL-L6400DW1
A151: HARDWARE ASESORIAS SOFTWARE LTDADR890 Unidad Drum larga duracion 50.000 pág. Para equipos HL-L6400DW1 | B151: 1 | C151: HARDWARE ASESORIAS SOFTWARE LTDA | D151: BROTHER | E151: Unidad Drum | F151: DR890 Unidad Drum larga duracion 50.000 pág. Para equipos HL-L6400DW | G151: 725536.875 | H151: 1 | I151: DR890 Unidad Drum larga duracion 50.000 pág. Para equipos HL-L6400DW1
A152: HARDWARE ASESORIAS SOFTWARE LTDABU330CL Unidad de correa, duracion 50.000 pág. Para equipos MFC-L9570CDW1 | B152: 1 | C152: HARDWARE ASESORIAS SOFTWARE LTDA | D152: BROTHER | E152: Suministro | F152: BU330CL Unidad de correa, duracion 50.000 pág. Para equipos MFC-L9570CDW | G152: 314399.3125 | H152: 1 | I152: BU330CL Unidad de correa, duracion 50.000 pág. Para equipos MFC-L9570CDW1
A153: HARDWARE ASESORIAS SOFTWARE LTDAWT320CL Caja de Desechos, duracion 50.000 pág. Para equipos MFC-L9570CDW1 | B153: 1 | C153: HARDWARE ASESORIAS SOFTWARE LTDA | D153: BROTHER | E153: Suministro | F153: WT320CL Caja de Desechos, duracion 50.000 pág. Para equipos MFC-L9570CDW | G153: 120922.8125 | H153: 1 | I153: WT320CL Caja de Desechos, duracion 50.000 pág. Para equipos MFC-L9570CDW1
A154: HARDWARE ASESORIAS SOFTWARE LTDALT5505 Bandeja opcional de 250 hojas para equipos MFC-L6900DW - HL-L6400DW1 | B154: 1 | C154: HARDWARE ASESORIAS SOFTWARE LTDA | D154: BROTHER | E154: Bandeja Adicional | F154: LT5505 Bandeja opcional de 250 hojas para equipos MFC-L6900DW - HL-L6400DW | G154: 822275.125 | H154: 1 | I154: LT5505 Bandeja opcional de 250 hojas para equipos MFC-L6900DW - HL-L6400DW1
A155: HARDWARE ASESORIAS SOFTWARE LTDALT6505 Bandeja opcional de 520 hojas para equipos MFC-L6900DW - HL-L6400DW1 | B155: 1 | C155: HARDWARE ASESORIAS SOFTWARE LTDA | D155: BROTHER | E155: Bandeja Adicional | F155: LT6505 Bandeja opcional de 520 hojas para equipos MFC-L6900DW - HL-L6400DW | G155: 957708.675 | H155: 1 | I155: LT6505 Bandeja opcional de 520 hojas para equipos MFC-L6900DW - HL-L6400DW1
A156: HARDWARE ASESORIAS SOFTWARE LTDATT4000 Torre opcional de 4 bandejas x 520 hojas para equipos MFC-L6900DW - HL-L6400DW - MFC-L9570CDW1 | B156: 1 | C156: HARDWARE ASESORIAS SOFTWARE LTDA | D156: BROTHER | E156: Torre Bandejas | F156: TT4000 Torre opcional de 4 bandejas x 520 hojas para equipos MFC-L6900DW - HL-L6400DW - MFC-L9570CDW | G156: 5006204.438 | H156: 1 | I156: TT4000 Torre opcional de 4 bandejas x 520 hojas para equipos MFC-L6900DW - HL-L6400DW - MFC-L9570CDW1
A157: HARDWARE ASESORIAS SOFTWARE LTDALT330CL Bandeja opcional de 250 hojas para equipos MFC-L9570CDW 1 | B157: 1 | C157: HARDWARE ASESORIAS SOFTWARE LTDA | D157: BROTHER | E157: Bandeja Adicional | F157: LT330CL Bandeja opcional de 250 hojas para equipos MFC-L9570CDW | G157: 933524.1125 | H157: 1 | I157: LT330CL Bandeja opcional de 250 hojas para equipos MFC-L9570CDW 1
A158: HARDWARE ASESORIAS SOFTWARE LTDALT340CL Bandeja opcional de 500 hojas para equipos MFC-L9570CDW 1 | B158: 1 | C158: HARDWARE ASESORIAS SOFTWARE LTDA | D158: BROTHER | E158: Bandeja Adicional | F158: LT340CL Bandeja opcional de 500 hojas para equipos MFC-L9570CDW | G158: 1257597.25 | H158: 1 | I158: LT340CL Bandeja opcional de 500 hojas para equipos MFC-L9570CDW 1
A159: HARDWARE ASESORIAS SOFTWARE LTDATC4000 Conector opcionalpara la torre de bandejas para equipos MFC-L9570CDW1 | B159: 1 | C159: HARDWARE ASESORIAS SOFTWARE LTDA | D159: BROTHER | E159: Bandeja Adicional | F159: TC4000 Conector opcionalpara la torre de bandejas para equipos MFC-L9570CDW | G159: 217661.0625 | H159: 1 | I159: TC4000 Conector opcionalpara la torre de bandejas para equipos MFC-L9570CDW1
A160: HARDWARE ASESORIAS SOFTWARE LTDATN880 toner larga duracion 12.000 pág. Para equipos HL-L6250DW - HL-L6200DW - HL-L6200DWT1 | B160: 1 | C160: HARDWARE ASESORIAS SOFTWARE LTDA | D160: BROTHER | E160: Toner | F160: TN880 toner larga duracion 12.000 pág. Para equipos HL-L6250DW - HL-L6200DW - HL-L6200DWT | G160: 730373.7875 | H160: 1 | I160: TN880 toner larga duracion 12.000 pág. Para equipos HL-L6250DW - HL-L6200DW - HL-L6200DWT1
A161: HARDWARE ASESORIAS SOFTWARE LTDADR890 Unidad Drum larga duracion 50.000 pág. Para equipos HL-L6250DW1 | B161: 1 | C161: HARDWARE ASESORIAS SOFTWARE LTDA | D161: BROTHER | E161: Unidad Drum | F161: DR890 Unidad Drum larga duracion 50.000 pág. Para equipos HL-L6250DW | G161: 725536.875 | H161: 1 | I161: DR890 Unidad Drum larga duracion 50.000 pág. Para equipos HL-L6250DW1
A162: UT CREAR GROUP INC.TN890 toner larga duracion 20.000 pág. Para equipos MFC-L6900DW1 | B162: 1 | C162: UT CREAR GROUP INC. | D162: BROTHER | E162: Toner | F162: TN890 toner larga duracion 20.000 pág. Para equipos MFC-L6900DW | G162: 539361.7021 | H162: 1 | I162: TN890 toner larga duracion 20.000 pág. Para equipos MFC-L6900DW1
A163: UT CREAR GROUP INC.DR890 Unidad Drum larga duracion 50.000 pág. Para equipos MFC-L6900DW1 | B163: 1 | C163: UT CREAR GROUP INC. | D163: BROTHER | E163: Unidad Drum | F163: DR890 Unidad Drum larga duracion 50.000 pág. Para equipos MFC-L6900DW | G163: 456382.9787 | H163: 1 | I163: DR890 Unidad Drum larga duracion 50.000 pág. Para equipos MFC-L6900DW1
A164: UT CREAR GROUP INC.TN890 toner larga duracion 20.000 pág. Para equipos HL-L6400DW1 | B164: 1 | C164: UT CREAR GROUP INC. | D164: BROTHER | E164: Toner | F164: TN890 toner larga duracion 20.000 pág. Para equipos HL-L6400DW | G164: 539361.7021 | H164: 1 | I164: TN890 toner larga duracion 20.000 pág. Para equipos HL-L6400DW1
A165: UT CREAR GROUP INC.TN439BK toner Negro larga duracion 9.000 pág. Para equipos color MFC-L9570DW1 | B165: 1 | C165: UT CREAR GROUP INC. | D165: BROTHER | E165: Toner | F165: TN439BK toner Negro larga duracion 9.000 pág. Para equipos color MFC-L9570DW | G165: 414893.617 | H165: 1 | I165: TN439BK toner Negro larga duracion 9.000 pág. Para equipos color MFC-L9570DW1
A166: UT CREAR GROUP INC.TN439C toner Cyan larga duracion 9.000 pág. Para equipos color MFC-L9570DW1 | B166: 1 | C166: UT CREAR GROUP INC. | D166: BROTHER | E166: Toner | F166: TN439C toner Cyan larga duracion 9.000 pág. Para equipos color MFC-L9570DW | G166: 622340.4255 | H166: 1 | I166: TN439C toner Cyan larga duracion 9.000 pág. Para equipos color MFC-L9570DW1
A167: UT CREAR GROUP INC.TN439M toner Magenta larga duracion 9.000 pág. Para equipos color MFC-L9570DW1 | B167: 1 | C167: UT CREAR GROUP INC. | D167: BROTHER | E167: Toner | F167: TN439M toner Magenta larga duracion 9.000 pág. Para equipos color MFC-L9570DW | G167: 622340.4255 | H167: 1 | I167: TN439M toner Magenta larga duracion 9.000 pág. Para equipos color MFC-L9570DW1
A168: UT CREAR GROUP INC.TN439Y toner Yellow larga duracion 9.000 pág. Para equipos color MFC-L9570DW1 | B168: 1 | C168: UT CREAR GROUP INC. | D168: BROTHER | E168: Toner | F168: TN439Y toner Yellow larga duracion 9.000 pág. Para equipos color MFC-L9570DW | G168: 622340.4255 | H168: 1 | I168: TN439Y toner Yellow larga duracion 9.000 pág. Para equipos color MFC-L9570DW1
A169: UT CREAR GROUP INC.DR433CL Unidad Drum larga duracion 50.000 pág. Para equipos MFC-L9570CDW1 | B169: 1 | C169: UT CREAR GROUP INC. | D169: BROTHER | E169: Unidad Drum | F169: DR433CL Unidad Drum larga duracion 50.000 pág. Para equipos MFC-L9570CDW | G169: 539361.7021 | H169: 1 | I169: DR433CL Unidad Drum larga duracion 50.000 pág. Para equipos MFC-L9570CDW1
A170: UT CREAR GROUP INC.TN2420 toner larga duracion 3.000 pág. Para equipos DCP-L2550DN1 | B170: 1 | C170: UT CREAR GROUP INC. | D170: BROTHER | E170: Toner | F170: TN2420 toner larga duracion 3.000 pág. Para equipos DCP-L2550DN | G170: 344361.7021 | H170: 1 | I170: TN2420 toner larga duracion 3.000 pág. Para equipos DCP-L2550DN1
A171: UT CREAR GROUP INC.DR2400 Unidad Drum larga duracion 12.000 pág. Para equipos DCP-L2550DN1 | B171: 1 | C171: UT CREAR GROUP INC. | D171: BROTHER | E171: Unidad Drum | F171: DR2400 Unidad Drum larga duracion 12.000 pág. Para equipos DCP-L2550DN | G171: 456382.9787 | H171: 1 | I171: DR2400 Unidad Drum larga duracion 12.000 pág. Para equipos DCP-L2550DN1
A172: UT CREAR GROUP INC.TN850 toner larga duracion 8.000 pág. Para equipos MFC-L5900DW - MFC-L6750DW - MFC-L5700DW - MFC-L5800DW1 | B172: 1 | C172: UT CREAR GROUP INC. | D172: BROTHER | E172: Toner | F172: TN850 toner larga duracion 8.000 pág. Para equipos MFC-L5900DW - MFC-L6750DW - MFC-L5700DW - MFC-L5800DW | G172: 497872.3404 | H172: 1 | I172: TN850 toner larga duracion 8.000 pág. Para equipos MFC-L5900DW - MFC-L6750DW - MFC-L5700DW - MFC-L5800DW1
A173: UT CREAR GROUP INC.DR820 Unidda drum larga duracion 50.000 pág. Para equipos MFC-L5900DW - MFC-L6750DW - MFC-L5700DW - MFC-L5800DW1 | B173: 1 | C173: UT CREAR GROUP INC. | D173: BROTHER | E173: Unidad Drum | F173: DR820 Unidda drum larga duracion 50.000 pág. Para equipos MFC-L5900DW - MFC-L6750DW - MFC-L5700DW - MFC-L5800DW | G173: 614042.5532 | H173: 1 | I173: DR820 Unidda drum larga duracion 50.000 pág. Para equipos MFC-L5900DW - MFC-L6750DW - MFC-L5700DW - MFC-L5800DW1
A174: UT CREAR GROUP INC.TN850 toner larga duracion 8.000 pág. Para equipos HL-L5100DN - DCP-L5500DN - DCP-L5600DN - DCP-L5650DN1 | B174: 1 | C174: UT CREAR GROUP INC. | D174: BROTHER | E174: Toner | F174: TN850 toner larga duracion 8.000 pág. Para equipos HL-L5100DN - DCP-L5500DN - DCP-L5600DN - DCP-L5650DN | G174: 497872.3404 | H174: 1 | I174: TN850 toner larga duracion 8.000 pág. Para equipos HL-L5100DN - DCP-L5500DN - DCP-L5600DN - DCP-L5650DN1
A175: UT CREAR GROUP INC.DR820 Unidad Drum larga duracion 30.000 pág. Para equipos HL-L5100DN - DCP-L5500DN - DCP-L5600DN - DCP-L5650DN1 | B175: 1 | C175: UT CREAR GROUP INC. | D175: BROTHER | E175: Unidad Drum | F175: DR820 Unidad Drum larga duracion 30.000 pág. Para equipos HL-L5100DN - DCP-L5500DN - DCP-L5600DN - DCP-L5650DN | G175: 605744.6809 | H175: 1 | I175: DR820 Unidad Drum larga duracion 30.000 pág. Para equipos HL-L5100DN - DCP-L5500DN - DCP-L5600DN - DCP-L5650DN1
A176: UT CREAR GROUP INC.DR820 Unidad Drum larga duracion 30.000 pág. Para equipos HL-L6200DW - HL-L6200DWT1 | B176: 1 | C176: UT CREAR GROUP INC. | D176: BROTHER | E176: Unidad Drum | F176: DR820 Unidad Drum larga duracion 30.000 pág. Para equipos HL-L6200DW - HL-L6200DWT | G176: 605744.6809 | H176: 1 | I176: DR820 Unidad Drum larga duracion 30.000 pág. Para equipos HL-L6200DW - HL-L6200DWT1
A177: UT CREAR GROUP INC.BT5001C 5.000 PAGS T500/ T800/T510W / T710W / T910DW1 | B177: 1 | C177: UT CREAR GROUP INC. | D177: BROTHER | E177: Toner | F177: BT5001C 5.000 PAGS T500/ T800/T510W / T710W / T910DW | G177: 27714.89362 | H177: 1 | I177: BT5001C 5.000 PAGS T500/ T800/T510W / T710W / T910DW1
A178: UT CREAR GROUP INC.BT5001M 5.000 PAGS T500/ T800/T510W / T710W / T910DW1 | B178: 1 | C178: UT CREAR GROUP INC. | D178: BROTHER | E178: Toner | F178: BT5001M 5.000 PAGS T500/ T800/T510W / T710W / T910DW | G178: 27714.89362 | H178: 1 | I178: BT5001M 5.000 PAGS T500/ T800/T510W / T710W / T910DW1
A179: UT CREAR GROUP INC.BT5001Y 5.000 PAGS T500/ T800/T510W / T710W / T910DW1 | B179: 1 | C179: UT CREAR GROUP INC. | D179: BROTHER | E179: Toner | F179: BT5001Y 5.000 PAGS T500/ T800/T510W / T710W / T910DW | G179: 27714.89362 | H179: 1 | I179: BT5001Y 5.000 PAGS T500/ T800/T510W / T710W / T910DW1
A180: UT CREAR GROUP INC.BTD60BK 6.500 PAG. T510W / T710W / T910DW1 | B180: 1 | C180: UT CREAR GROUP INC. | D180: BROTHER | E180: Toner | F180: BTD60BK 6.500 PAG. T510W / T710W / T910DW | G180: 42941.48936 | H180: 1 | I180: BTD60BK 6.500 PAG. T510W / T710W / T910DW1
A181: UT CREAR GROUP INC.BT6001BK 6.000 PAGS T500 / T8001 | B181: 1 | C181: UT CREAR GROUP INC. | D181: BROTHER | E181: Toner | F181: BT6001BK 6.000 PAGS T500 / T800 | G181: 42941.48936 | H181: 1 | I181: BT6001BK 6.000 PAGS T500 / T8001
A182: UT CREAR GROUP INC.D0096U001 Unidad Fusora para equipos MFC-L6900DW - HL-L6400DW1 | B182: 1 | C182: UT CREAR GROUP INC. | D182: BROTHER | E182: Unidad Fusora | F182: D0096U001 Unidad Fusora para equipos MFC-L6900DW - HL-L6400DW | G182: 746808.5106 | H182: 1 | I182: D0096U001 Unidad Fusora para equipos MFC-L6900DW - HL-L6400DW1
A183: UT CREAR GROUP INC.DR890 Unidad Drum larga duracion 50.000 pág. Para equipos HL-L6400DW1 | B183: 1 | C183: UT CREAR GROUP INC. | D183: BROTHER | E183: Unidad Drum | F183: DR890 Unidad Drum larga duracion 50.000 pág. Para equipos HL-L6400DW | G183: 624082.9787 | H183: 1 | I183: DR890 Unidad Drum larga duracion 50.000 pág. Para equipos HL-L6400DW1
A184: UT CREAR GROUP INC.BU330CL Unidad de correa, duracion 50.000 pág. Para equipos MFC-L9570CDW1 | B184: 1 | C184: UT CREAR GROUP INC. | D184: BROTHER | E184: Suministro | F184: BU330CL Unidad de correa, duracion 50.000 pág. Para equipos MFC-L9570CDW | G184: 265905.3191 | H184: 1 | I184: BU330CL Unidad de correa, duracion 50.000 pág. Para equipos MFC-L9570CDW1
A185: UT CREAR GROUP INC.WT320CL Caja de Desechos, duracion 50.000 pág. Para equipos MFC-L9570CDW1 | B185: 1 | C185: UT CREAR GROUP INC. | D185: BROTHER | E185: Suministro | F185: WT320CL Caja de Desechos, duracion 50.000 pág. Para equipos MFC-L9570CDW | G185: 102437.234 | H185: 1 | I185: WT320CL Caja de Desechos, duracion 50.000 pág. Para equipos MFC-L9570CDW1
A186: UT CREAR GROUP INC.LT5505 Bandeja opcional de 250 hojas para equipos MFC-L6900DW - HL-L6400DW1 | B186: 1 | C186: UT CREAR GROUP INC. | D186: BROTHER | E186: Bandeja Adicional | F186: LT5505 Bandeja opcional de 250 hojas para equipos MFC-L6900DW - HL-L6400DW | G186: 622340.4255 | H186: 1 | I186: LT5505 Bandeja opcional de 250 hojas para equipos MFC-L6900DW - HL-L6400DW1
A187: UT CREAR GROUP INC.LT6505 Bandeja opcional de 520 hojas para equipos MFC-L6900DW - HL-L6400DW1 | B187: 1 | C187: UT CREAR GROUP INC. | D187: BROTHER | E187: Bandeja Adicional | F187: LT6505 Bandeja opcional de 520 hojas para equipos MFC-L6900DW - HL-L6400DW | G187: 622340.4255 | H187: 1 | I187: LT6505 Bandeja opcional de 520 hojas para equipos MFC-L6900DW - HL-L6400DW1
A188: UT CREAR GROUP INC.TT4000 Torre opcional de 4 bandejas x 520 hojas para equipos MFC-L6900DW - HL-L6400DW - MFC-L9570CDW1 | B188: 1 | C188: UT CREAR GROUP INC. | D188: BROTHER | E188: Torre Bandejas | F188: TT4000 Torre opcional de 4 bandejas x 520 hojas para equipos MFC-L6900DW - HL-L6400DW - MFC-L9570CDW | G188: 3319148.936 | H188: 1 | I188: TT4000 Torre opcional de 4 bandejas x 520 hojas para equipos MFC-L6900DW - HL-L6400DW - MFC-L9570CDW1
A189: UT CREAR GROUP INC.LT330CL Bandeja opcional de 250 hojas para equipos MFC-L9570CDW 1 | B189: 1 | C189: UT CREAR GROUP INC. | D189: BROTHER | E189: Bandeja Adicional | F189: LT330CL Bandeja opcional de 250 hojas para equipos MFC-L9570CDW | G189: 622340.4255 | H189: 1 | I189: LT330CL Bandeja opcional de 250 hojas para equipos MFC-L9570CDW 1
A190: UT CREAR GROUP INC.LT340CL Bandeja opcional de 500 hojas para equipos MFC-L9570CDW 1 | B190: 1 | C190: UT CREAR GROUP INC. | D190: BROTHER | E190: Bandeja Adicional | F190: LT340CL Bandeja opcional de 500 hojas para equipos MFC-L9570CDW | G190: 829787.234 | H190: 1 | I190: LT340CL Bandeja opcional de 500 hojas para equipos MFC-L9570CDW 1
A191: UT CREAR GROUP INC.TC4000 Conector opcionalpara la torre de bandejas para equipos MFC-L9570CDW1 | B191: 1 | C191: UT CREAR GROUP INC. | D191: BROTHER | E191: Bandeja Adicional | F191: TC4000 Conector opcionalpara la torre de bandejas para equipos MFC-L9570CDW | G191: 183922.3404 | H191: 1 | I191: TC4000 Conector opcionalpara la torre de bandejas para equipos MFC-L9570CDW1
A192: UT CREAR GROUP INC.TN880 toner larga duracion 12.000 pág. Para equipos HL-L6250DW - HL-L6200DW - HL-L6200DWT1 | B192: 1 | C192: UT CREAR GROUP INC. | D192: BROTHER | E192: Toner | F192: TN880 toner larga duracion 12.000 pág. Para equipos HL-L6250DW - HL-L6200DW - HL-L6200DWT | G192: 585082.9787 | H192: 1 | I192: TN880 toner larga duracion 12.000 pág. Para equipos HL-L6250DW - HL-L6200DW - HL-L6200DWT1
A193: UT CREAR GROUP INC.DR890 Unidad Drum larga duracion 50.000 pág. Para equipos HL-L6250DW1 | B193: 1 | C193: UT CREAR GROUP INC. | D193: BROTHER | E193: Unidad Drum | F193: DR890 Unidad Drum larga duracion 50.000 pág. Para equipos HL-L6250DW | G193: 456382.9787 | H193: 1 | I193: DR890 Unidad Drum larga duracion 50.000 pág. Para equipos HL-L6250DW1
A194: JAIRO OSORIO CABALLEROTN890 toner larga duracion 20.000 pág. Para equipos MFC-L6900DW1 | B194: 1 | C194: JAIRO OSORIO CABALLERO | D194: BROTHER | E194: Toner | F194: TN890 toner larga duracion 20.000 pág. Para equipos MFC-L6900DW | G194: 617900 | H194: 1 | I194: TN890 toner larga duracion 20.000 pág. Para equipos MFC-L6900DW1
A195: JAIRO OSORIO CABALLERODR890 Unidad Drum larga duracion 50.000 pág. Para equipos MFC-L6900DW1 | B195: 1 | C195: JAIRO OSORIO CABALLERO | D195: BROTHER | E195: Unidad Drum | F195: DR890 Unidad Drum larga duracion 50.000 pág. Para equipos MFC-L6900DW | G195: 549000 | H195: 1 | I195: DR890 Unidad Drum larga duracion 50.000 pág. Para equipos MFC-L6900DW1
A196: JAIRO OSORIO CABALLEROTN890 toner larga duracion 20.000 pág. Para equipos HL-L6400DW1 | B196: 1 | C196: JAIRO OSORIO CABALLERO | D196: BROTHER | E196: Toner | F196: TN890 toner larga duracion 20.000 pág. Para equipos HL-L6400DW | G196: 617900 | H196: 1 | I196: TN890 toner larga duracion 20.000 pág. Para equipos HL-L6400DW1
A197: JAIRO OSORIO CABALLEROTN439BK toner Negro larga duracion 9.000 pág. Para equipos color MFC-L9570DW1 | B197: 1 | C197: JAIRO OSORIO CABALLERO | D197: BROTHER | E197: Toner | F197: TN439BK toner Negro larga duracion 9.000 pág. Para equipos color MFC-L9570DW | G197: 428900 | H197: 1 | I197: TN439BK toner Negro larga duracion 9.000 pág. Para equipos color MFC-L9570DW1
A198: JAIRO OSORIO CABALLEROTN439C toner Cyan larga duracion 9.000 pág. Para equipos color MFC-L9570DW1 | B198: 1 | C198: JAIRO OSORIO CABALLERO | D198: BROTHER | E198: Toner | F198: TN439C toner Cyan larga duracion 9.000 pág. Para equipos color MFC-L9570DW | G198: 721400 | H198: 1 | I198: TN439C toner Cyan larga duracion 9.000 pág. Para equipos color MFC-L9570DW1
A199: JAIRO OSORIO CABALLEROTN439M toner Magenta larga duracion 9.000 pág. Para equipos color MFC-L9570DW1 | B199: 1 | C199: JAIRO OSORIO CABALLERO | D199: BROTHER | E199: Toner | F199: TN439M toner Magenta larga duracion 9.000 pág. Para equipos color MFC-L9570DW | G199: 721400 | H199: 1 | I199: TN439M toner Magenta larga duracion 9.000 pág. Para equipos color MFC-L9570DW1
A200: JAIRO OSORIO CABALLEROTN439Y toner Yellow larga duracion 9.000 pág. Para equipos color MFC-L9570DW1 | B200: 1 | C200: JAIRO OSORIO CABALLERO | D200: BROTHER | E200: Toner | F200: TN439Y toner Yellow larga duracion 9.000 pág. Para equipos color MFC-L9570DW | G200: 721400 | H200: 1 | I200: TN439Y toner Yellow larga duracion 9.000 pág. Para equipos color MFC-L9570DW1
... 4300 more rows

Sheet Cat_Remanufacturado (hidden)
A1: Fecha_Mod | B1: 2019-02-18
A2: REGION | B2: PROVEEDOR | C2: CATEGORÍA | D2: PRODUCTO | E2: DESCRIPCIÓN | F2: PRECIO
A3: A | B3: Alianza Estratégica Outsourcing & Suministros S.A.S. | C3: EPSON | D3: R_EPSON ERC09 | E3: R_EPSON ERC09 | F3: 5394
A4: A | B4: Alianza Estratégica Outsourcing & Suministros S.A.S. | C4: EPSON | D4: R_EPSON ERC27 | E4: R_EPSON ERC27 | F4: 5394
A5: B | B5: Alianza Estratégica Outsourcing & Suministros S.A.S. | C5: EPSON | D5: R_EPSON ERC09 | E5: R_EPSON ERC09 | F5: 5394
A6: B | B6: Alianza Estratégica Outsourcing & Suministros S.A.S. | C6: EPSON | D6: R_EPSON ERC27 | E6: R_EPSON ERC27 | F6: 5394
A7: C | B7: Alianza Estratégica Outsourcing & Suministros S.A.S. | C7: EPSON | D7: R_EPSON ERC09 | E7: R_EPSON ERC09 | F7: 5628
A8: C | B8: Alianza Estratégica Outsourcing & Suministros S.A.S. | C8: EPSON | D8: R_EPSON ERC27 | E8: R_EPSON ERC27 | F8: 5628
A9: A | B9: Alianza Estratégica Outsourcing & Suministros S.A.S. | C9: EPSON | D9: R_EPSON ERC30 | E9: R_EPSON ERC30 | F9: 5877
A10: A | B10: Alianza Estratégica Outsourcing & Suministros S.A.S. | C10: EPSON | D10: R_EPSON ERC34 | E10: R_EPSON ERC34 | F10: 5877
A11: B | B11: Alianza Estratégica Outsourcing & Suministros S.A.S. | C11: EPSON | D11: R_EPSON ERC30 | E11: R_EPSON ERC30 | F11: 5877
A12: B | B12: Alianza Estratégica Outsourcing & Suministros S.A.S. | C12: EPSON | D12: R_EPSON ERC34 | E12: R_EPSON ERC34 | F12: 5877
A13: C | B13: Alianza Estratégica Outsourcing & Suministros S.A.S. | C13: EPSON | D13: R_EPSON ERC30 | E13: R_EPSON ERC30 | F13: 6132
A14: C | B14: Alianza Estratégica Outsourcing & Suministros S.A.S. | C14: EPSON | D14: R_EPSON ERC34 | E14: R_EPSON ERC34 | F14: 6132
A15: A | B15: Alianza Estratégica Outsourcing & Suministros S.A.S. | C15: EPSON | D15: R_EPSON ERC23 | E15: R_EPSON ERC23 | F15: 6279
A16: B | B16: Alianza Estratégica Outsourcing & Suministros S.A.S. | C16: EPSON | D16: R_EPSON ERC23 | E16: R_EPSON ERC23 | F16: 6279
A17: C | B17: Alianza Estratégica Outsourcing & Suministros S.A.S. | C17: EPSON | D17: R_EPSON ERC23 | E17: R_EPSON ERC23 | F17: 6552
A18: A | B18: Alianza Estratégica Outsourcing & Suministros S.A.S. | C18: EPSON | D18: R_EPSON LX300 | E18: R_EPSON LX300 | F18: 6360
A19: B | B19: Alianza Estratégica Outsourcing & Suministros S.A.S. | C19: EPSON | D19: R_EPSON LX300 | E19: R_EPSON LX300 | F19: 6360
A20: C | B20: Alianza Estratégica Outsourcing & Suministros S.A.S. | C20: EPSON | D20: R_EPSON LX300 | E20: R_EPSON LX300 | F20: 6636
A21: A | B21: Alianza Estratégica Outsourcing & Suministros S.A.S. | C21: EPSON | D21: R_EPSON ERC39 | E21: R_EPSON ERC39 | F21: 6440
A22: B | B22: Alianza Estratégica Outsourcing & Suministros S.A.S. | C22: EPSON | D22: R_EPSON ERC39 | E22: R_EPSON ERC39 | F22: 6440
A23: C | B23: Alianza Estratégica Outsourcing & Suministros S.A.S. | C23: EPSON | D23: R_EPSON ERC39 | E23: R_EPSON ERC39 | F23: 6720
A24: A | B24: Alianza Estratégica Outsourcing & Suministros S.A.S. | C24: EPSON | D24: R_EPSON ERC03 | E24: R_EPSON ERC03 | F24: 6521
A25: B | B25: Alianza Estratégica Outsourcing & Suministros S.A.S. | C25: EPSON | D25: R_EPSON ERC03 | E25: R_EPSON ERC03 | F25: 6521
A26: C | B26: Alianza Estratégica Outsourcing & Suministros S.A.S. | C26: EPSON | D26: R_EPSON ERC03 | E26: R_EPSON ERC03 | F26: 6804
A27: A | B27: Alianza Estratégica Outsourcing & Suministros S.A.S. | C27: EPSON | D27: R_EPSON AP3250 | E27: R_EPSON AP3250 | F27: 6900
A28: A | B28: Alianza Estratégica Outsourcing & Suministros S.A.S. | C28: EPSON | D28: R_EPSON ERC31 | E28: R_EPSON ERC31 | F28: 6900
A29: B | B29: Alianza Estratégica Outsourcing & Suministros S.A.S. | C29: EPSON | D29: R_EPSON AP3250 | E29: R_EPSON AP3250 | F29: 6900
A30: B | B30: Alianza Estratégica Outsourcing & Suministros S.A.S. | C30: EPSON | D30: R_EPSON ERC31 | E30: R_EPSON ERC31 | F30: 6900
A31: C | B31: Alianza Estratégica Outsourcing & Suministros S.A.S. | C31: EPSON | D31: R_EPSON AP3250 | E31: R_EPSON AP3250 | F31: 7200
A32: C | B32: Alianza Estratégica Outsourcing & Suministros S.A.S. | C32: EPSON | D32: R_EPSON ERC31 | E32: R_EPSON ERC31 | F32: 7200
A33: A | B33: Alianza Estratégica Outsourcing & Suministros S.A.S. | C33: EPSON | D33: R_EPSON ERC19 | E33: R_EPSON ERC19 | F33: 6923
A34: A | B34: Alianza Estratégica Outsourcing & Suministros S.A.S. | C34: EPSON | D34: R_EPSON ERC32 | E34: R_EPSON ERC32 | F34: 6923
A35: B | B35: Alianza Estratégica Outsourcing & Suministros S.A.S. | C35: EPSON | D35: R_EPSON ERC19 | E35: R_EPSON ERC19 | F35: 6923
A36: B | B36: Alianza Estratégica Outsourcing & Suministros S.A.S. | C36: EPSON | D36: R_EPSON ERC32 | E36: R_EPSON ERC32 | F36: 6923
A37: C | B37: Alianza Estratégica Outsourcing & Suministros S.A.S. | C37: EPSON | D37: R_EPSON ERC19 | E37: R_EPSON ERC19 | F37: 7224
A38: C | B38: Alianza Estratégica Outsourcing & Suministros S.A.S. | C38: EPSON | D38: R_EPSON ERC32 | E38: R_EPSON ERC32 | F38: 7224
A39: A | B39: Alianza Estratégica Outsourcing & Suministros S.A.S. | C39: EPSON | D39: R_EPSON ERC22 | E39: R_EPSON ERC22 | F39: 7165
A40: A | B40: Alianza Estratégica Outsourcing & Suministros S.A.S. | C40: EPSON | D40: R_EPSON FX100 | E40: R_EPSON FX100 | F40: 7165
A41: B | B41: Alianza Estratégica Outsourcing & Suministros S.A.S. | C41: EPSON | D41: R_EPSON ERC22 | E41: R_EPSON ERC22 | F41: 7165
A42: B | B42: Alianza Estratégica Outsourcing & Suministros S.A.S. | C42: EPSON | D42: R_EPSON FX100 | E42: R_EPSON FX100 | F42: 7165
A43: C | B43: Alianza Estratégica Outsourcing & Suministros S.A.S. | C43: EPSON | D43: R_EPSON ERC22 | E43: R_EPSON ERC22 | F43: 7476
A44: C | B44: Alianza Estratégica Outsourcing & Suministros S.A.S. | C44: EPSON | D44: R_EPSON FX100 | E44: R_EPSON FX100 | F44: 7476
A45: A | B45: Alianza Estratégica Outsourcing & Suministros S.A.S. | C45: EPSON | D45: R_EPSON LQ2500 | E45: R_EPSON LQ2500 | F45: 7648
A46: B | B46: Alianza Estratégica Outsourcing & Suministros S.A.S. | C46: EPSON | D46: R_EPSON LQ2500 | E46: R_EPSON LQ2500 | F46: 7648
A47: C | B47: Alianza Estratégica Outsourcing & Suministros S.A.S. | C47: EPSON | D47: R_EPSON LQ2500 | E47: R_EPSON LQ2500 | F47: 7980
A48: A | B48: Alianza Estratégica Outsourcing & Suministros S.A.S. | C48: EPSON | D48: R_EPSON LX350 | E48: R_EPSON LX350 | F48: 7970
A49: A | B49: Alianza Estratégica Outsourcing & Suministros S.A.S. | C49: EPSON | D49: R_EPSON LQ1000 | E49: R_EPSON LQ1000 | F49: 7970
A50: B | B50: Alianza Estratégica Outsourcing & Suministros S.A.S. | C50: EPSON | D50: R_EPSON LX350 | E50: R_EPSON LX350 | F50: 7970
A51: B | B51: Alianza Estratégica Outsourcing & Suministros S.A.S. | C51: EPSON | D51: R_EPSON LQ1000 | E51: R_EPSON LQ1000 | F51: 7970
A52: C | B52: Alianza Estratégica Outsourcing & Suministros S.A.S. | C52: EPSON | D52: R_EPSON LX350 | E52: R_EPSON LX350 | F52: 8316
A53: C | B53: Alianza Estratégica Outsourcing & Suministros S.A.S. | C53: EPSON | D53: R_EPSON LQ1000 | E53: R_EPSON LQ1000 | F53: 8316
A54: A | B54: Alianza Estratégica Outsourcing & Suministros S.A.S. | C54: EPSON | D54: R_EPSON FX980 | E54: R_EPSON FX980 | F54: 8050
A55: B | B55: Alianza Estratégica Outsourcing & Suministros S.A.S. | C55: EPSON | D55: R_EPSON FX980 | E55: R_EPSON FX980 | F55: 8050
A56: C | B56: Alianza Estratégica Outsourcing & Suministros S.A.S. | C56: EPSON | D56: R_EPSON FX980 | E56: R_EPSON FX980 | F56: 8400
A57: A | B57: Alianza Estratégica Outsourcing & Suministros S.A.S. | C57: EPSON | D57: R_EPSON ERC37 | E57: R_EPSON ERC37 | F57: 8453
A58: B | B58: Alianza Estratégica Outsourcing & Suministros S.A.S. | C58: EPSON | D58: R_EPSON ERC37 | E58: R_EPSON ERC37 | F58: 8453
A59: C | B59: Alianza Estratégica Outsourcing & Suministros S.A.S. | C59: EPSON | D59: R_EPSON ERC37 | E59: R_EPSON ERC37 | F59: 8820
A60: A | B60: Alianza Estratégica Outsourcing & Suministros S.A.S. | C60: EPSON | D60: R_EPSON ERC18 | E60: R_EPSON ERC18 | F60: 8855
A61: B | B61: Alianza Estratégica Outsourcing & Suministros S.A.S. | C61: EPSON | D61: R_EPSON ERC18 | E61: R_EPSON ERC18 | F61: 8855
A62: C | B62: Alianza Estratégica Outsourcing & Suministros S.A.S. | C62: EPSON | D62: R_EPSON ERC18 | E62: R_EPSON ERC18 | F62: 9240
A63: A | B63: Alianza Estratégica Outsourcing & Suministros S.A.S. | C63: EPSON | D63: R_EPSON ERC35 | E63: R_EPSON ERC35 | F63: 9580
A64: A | B64: Alianza Estratégica Outsourcing & Suministros S.A.S. | C64: FUJITSU | D64: R_FUJITSU DPM-G9 | E64: R_FUJITSU DPM-G9 | F64: 9580
A65: B | B65: Alianza Estratégica Outsourcing & Suministros S.A.S. | C65: EPSON | D65: R_EPSON ERC35 | E65: R_EPSON ERC35 | F65: 9580
A66: B | B66: Alianza Estratégica Outsourcing & Suministros S.A.S. | C66: FUJITSU | D66: R_FUJITSU DPM-G9 | E66: R_FUJITSU DPM-G9 | F66: 9580
A67: C | B67: Alianza Estratégica Outsourcing & Suministros S.A.S. | C67: EPSON | D67: R_EPSON ERC35 | E67: R_EPSON ERC35 | F67: 9996
A68: C | B68: Alianza Estratégica Outsourcing & Suministros S.A.S. | C68: FUJITSU | D68: R_FUJITSU DPM-G9 | E68: R_FUJITSU DPM-G9 | F68: 9996
A69: A | B69: Alianza Estratégica Outsourcing & Suministros S.A.S. | C69: BROTHER | D69: R_BROTHER AX - 10 | E69: R_BROTHER AX - 10 | F69: 11109
A70: B | B70: Alianza Estratégica Outsourcing & Suministros S.A.S. | C70: BROTHER | D70: R_BROTHER AX - 10 | E70: R_BROTHER AX - 10 | F70: 11109
A71: C | B71: Alianza Estratégica Outsourcing & Suministros S.A.S. | C71: BROTHER | D71: R_BROTHER AX - 10 | E71: R_BROTHER AX - 10 | F71: 11592
A72: A | B72: Alianza Estratégica Outsourcing & Suministros S.A.S. | C72: FUJITSU | D72: R_FUJITSU DL700 | E72: R_FUJITSU DL700 | F72: 11190
A73: B | B73: Alianza Estratégica Outsourcing & Suministros S.A.S. | C73: FUJITSU | D73: R_FUJITSU DL700 | E73: R_FUJITSU DL700 | F73: 11190
A74: C | B74: Alianza Estratégica Outsourcing & Suministros S.A.S. | C74: FUJITSU | D74: R_FUJITSU DL700 | E74: R_FUJITSU DL700 | F74: 11676
A75: A | B75: Alianza Estratégica Outsourcing & Suministros S.A.S. | C75: FUJITSU | D75: R_FUJITSU DL3800 | E75: R_FUJITSU DL3800 | F75: 11673
A76: B | B76: Alianza Estratégica Outsourcing & Suministros S.A.S. | C76: FUJITSU | D76: R_FUJITSU DL3800 | E76: R_FUJITSU DL3800 | F76: 11673
A77: C | B77: Alianza Estratégica Outsourcing & Suministros S.A.S. | C77: FUJITSU | D77: R_FUJITSU DL3800 | E77: R_FUJITSU DL3800 | F77: 12180
A78: A | B78: Alianza Estratégica Outsourcing & Suministros S.A.S. | C78: EPSON | D78: R_EPSON LQ590 | E78: R_EPSON LQ590 | F78: 11995
A79: B | B79: Alianza Estratégica Outsourcing & Suministros S.A.S. | C79: EPSON | D79: R_EPSON LQ590 | E79: R_EPSON LQ590 | F79: 11995
A80: C | B80: Alianza Estratégica Outsourcing & Suministros S.A.S. | C80: EPSON | D80: R_EPSON LQ590 | E80: R_EPSON LQ590 | F80: 12516
A81: A | B81: Alianza Estratégica Outsourcing & Suministros S.A.S. | C81: PANASONIC | D81: R_PANASONIC KX-P 1090 | E81: R_PANASONIC KX-P 1090 | F81: 13800
A82: B | B82: Alianza Estratégica Outsourcing & Suministros S.A.S. | C82: PANASONIC | D82: R_PANASONIC KX-P 1090 | E82: R_PANASONIC KX-P 1090 | F82: 13800
A83: C | B83: Alianza Estratégica Outsourcing & Suministros S.A.S. | C83: PANASONIC | D83: R_PANASONIC KX-P 1090 | E83: R_PANASONIC KX-P 1090 | F83: 14400
A84: A | B84: Alianza Estratégica Outsourcing & Suministros S.A.S. | C84: BROTHER | D84: R_BROTHER CE 60 | E84: R_BROTHER CE 60 | F84: 14329
A85: B | B85: Alianza Estratégica Outsourcing & Suministros S.A.S. | C85: BROTHER | D85: R_BROTHER CE 60 | E85: R_BROTHER CE 60 | F85: 14329
A86: C | B86: Alianza Estratégica Outsourcing & Suministros S.A.S. | C86: BROTHER | D86: R_BROTHER CE 60 | E86: R_BROTHER CE 60 | F86: 14952
A87: A | B87: Alianza Estratégica Outsourcing & Suministros S.A.S. | C87: OKI | D87: R_OKI 320 | E87: R_OKI 320 | F87: 17250
A88: B | B88: Alianza Estratégica Outsourcing & Suministros S.A.S. | C88: OKI | D88: R_OKI 320 | E88: R_OKI 320 | F88: 17250
A89: C | B89: Alianza Estratégica Outsourcing & Suministros S.A.S. | C89: OKI | D89: R_OKI 320 | E89: R_OKI 320 | F89: 18000
A90: A | B90: Alianza Estratégica Outsourcing & Suministros S.A.S. | C90: LEXMARK | D90: R_LEXMARK 2380 | E90: R_LEXMARK 2380 | F90: 20700
A91: A | B91: Alianza Estratégica Outsourcing & Suministros S.A.S. | C91: OKI | D91: R_OKI 590 | E91: R_OKI 590 | F91: 20700
A92: B | B92: Alianza Estratégica Outsourcing & Suministros S.A.S. | C92: LEXMARK | D92: R_LEXMARK 2380 | E92: R_LEXMARK 2380 | F92: 20700
A93: B | B93: Alianza Estratégica Outsourcing & Suministros S.A.S. | C93: OKI | D93: R_OKI 590 | E93: R_OKI 590 | F93: 20700
A94: C | B94: Alianza Estratégica Outsourcing & Suministros S.A.S. | C94: LEXMARK | D94: R_LEXMARK 2380 | E94: R_LEXMARK 2380 | F94: 21600
A95: C | B95: Alianza Estratégica Outsourcing & Suministros S.A.S. | C95: OKI | D95: R_OKI 590 | E95: R_OKI 590 | F95: 21600
A96: A | B96: Alianza Estratégica Outsourcing & Suministros S.A.S. | C96: FUJITSU | D96: R_FUJITSU DL2400 | E96: R_FUJITSU DL2400 | F96: 23000
A97: B | B97: Alianza Estratégica Outsourcing & Suministros S.A.S. | C97: FUJITSU | D97: R_FUJITSU DL2400 | E97: R_FUJITSU DL2400 | F97: 23000
A98: C | B98: Alianza Estratégica Outsourcing & Suministros S.A.S. | C98: FUJITSU | D98: R_FUJITSU DL2400 | E98: R_FUJITSU DL2400 | F98: 24000
A99: A | B99: Alianza Estratégica Outsourcing & Suministros S.A.S. | C99: EPSON | D99: R_EPSON LQ2190 | E99: R_EPSON LQ2190 | F99: 23345
A100: B | B100: Alianza Estratégica Outsourcing & Suministros S.A.S. | C100: EPSON | D100: R_EPSON LQ2190 | E100: R_EPSON LQ2190 | F100: 23345
A101: C | B101: Alianza Estratégica Outsourcing & Suministros S.A.S. | C101: EPSON | D101: R_EPSON LQ2190 | E101: R_EPSON LQ2190 | F101: 24360
A102: A | B102: Alianza Estratégica Outsourcing & Suministros S.A.S. | C102: PANASONIC | D102: R_PANASONIC KX-P 1624 | E102: R_PANASONIC KX-P 1624 | F102: 23575
A103: B | B103: Alianza Estratégica Outsourcing & Suministros S.A.S. | C103: PANASONIC | D103: R_PANASONIC KX-P 1624 | E103: R_PANASONIC KX-P 1624 | F103: 23575
A104: C | B104: Alianza Estratégica Outsourcing & Suministros S.A.S. | C104: PANASONIC | D104: R_PANASONIC KX-P 1624 | E104: R_PANASONIC KX-P 1624 | F104: 24600
A105: A | B105: Alianza Estratégica Outsourcing & Suministros S.A.S. | C105: PANASONIC | D105: R_PANASONIC KX-P 160 | E105: R_PANASONIC KX-P 160 | F105: 24150
A106: B | B106: Alianza Estratégica Outsourcing & Suministros S.A.S. | C106: PANASONIC | D106: R_PANASONIC KX-P 160 | E106: R_PANASONIC KX-P 160 | F106: 24150
A107: C | B107: Alianza Estratégica Outsourcing & Suministros S.A.S. | C107: PANASONIC | D107: R_PANASONIC KX-P 160 | E107: R_PANASONIC KX-P 160 | F107: 25200
A108: A | B108: Alianza Estratégica Outsourcing & Suministros S.A.S. | C108: EPSON | D108: R_EPSON LQ2170 | E108: R_EPSON LQ2170 | F108: 26968
A109: B | B109: Alianza Estratégica Outsourcing & Suministros S.A.S. | C109: EPSON | D109: R_EPSON LQ2170 | E109: R_EPSON LQ2170 | F109: 26968
A110: C | B110: Alianza Estratégica Outsourcing & Suministros S.A.S. | C110: EPSON | D110: R_EPSON LQ2170 | E110: R_EPSON LQ2170 | F110: 28140
A111: A | B111: Alianza Estratégica Outsourcing & Suministros S.A.S. | C111: NCR | D111: R_NCR 7156 | E111: R_NCR 7156 | F111: 28750
A112: B | B112: Alianza Estratégica Outsourcing & Suministros S.A.S. | C112: NCR | D112: R_NCR 7156 | E112: R_NCR 7156 | F112: 28750
A113: C | B113: Alianza Estratégica Outsourcing & Suministros S.A.S. | C113: NCR | D113: R_NCR 7156 | E113: R_NCR 7156 | F113: 30000
A114: A | B114: Alianza Estratégica Outsourcing & Suministros S.A.S. | C114: OKI | D114: R_OKI 393 | E114: R_OKI 393 | F114: 32200
A115: A | B115: Alianza Estratégica Outsourcing & Suministros S.A.S. | C115: PANASONIC | D115: R_PANASONIC KX-P 3200 | E115: R_PANASONIC KX-P 3200 | F115: 32200
A116: B | B116: Alianza Estratégica Outsourcing & Suministros S.A.S. | C116: OKI | D116: R_OKI 393 | E116: R_OKI 393 | F116: 32200
A117: B | B117: Alianza Estratégica Outsourcing & Suministros S.A.S. | C117: PANASONIC | D117: R_PANASONIC KX-P 3200 | E117: R_PANASONIC KX-P 3200 | F117: 32200
A118: C | B118: Alianza Estratégica Outsourcing & Suministros S.A.S. | C118: OKI | D118: R_OKI 393 | E118: R_OKI 393 | F118: 33600
A119: C | B119: Alianza Estratégica Outsourcing & Suministros S.A.S. | C119: PANASONIC | D119: R_PANASONIC KX-P 3200 | E119: R_PANASONIC KX-P 3200 | F119: 33600
A120: A | B120: Alianza Estratégica Outsourcing & Suministros S.A.S. | C120: PANASONIC | D120: R_PANASONIC KX-P 3696 | E120: R_PANASONIC KX-P 3696 | F120: 33350
A121: B | B121: Alianza Estratégica Outsourcing & Suministros S.A.S. | C121: PANASONIC | D121: R_PANASONIC KX-P 3696 | E121: R_PANASONIC KX-P 3696 | F121: 33350
A122: C | B122: Alianza Estratégica Outsourcing & Suministros S.A.S. | C122: PANASONIC | D122: R_PANASONIC KX-P 3696 | E122: R_PANASONIC KX-P 3696 | F122: 34800
A123: A | B123: Alianza Estratégica Outsourcing & Suministros S.A.S. | C123: EPSON | D123: R_EPSON DFX9000 | E123: R_EPSON DFX9000 | F123: 36800
A124: A | B124: Alianza Estratégica Outsourcing & Suministros S.A.S. | C124: EPSON | D124: R_EPSON DFX5000 | E124: R_EPSON DFX5000 | F124: 36800
A125: A | B125: Alianza Estratégica Outsourcing & Suministros S.A.S. | C125: LEXMARK | D125: R_LEXMARK 4227 | E125: R_LEXMARK 4227 | F125: 36800
A126: B | B126: Alianza Estratégica Outsourcing & Suministros S.A.S. | C126: EPSON | D126: R_EPSON DFX9000 | E126: R_EPSON DFX9000 | F126: 36800
A127: B | B127: Alianza Estratégica Outsourcing & Suministros S.A.S. | C127: EPSON | D127: R_EPSON DFX5000 | E127: R_EPSON DFX5000 | F127: 36800
A128: B | B128: Alianza Estratégica Outsourcing & Suministros S.A.S. | C128: LEXMARK | D128: R_LEXMARK 4227 | E128: R_LEXMARK 4227 | F128: 36800
A129: C | B129: Alianza Estratégica Outsourcing & Suministros S.A.S. | C129: EPSON | D129: R_EPSON DFX9000 | E129: R_EPSON DFX9000 | F129: 38400
A130: C | B130: Alianza Estratégica Outsourcing & Suministros S.A.S. | C130: EPSON | D130: R_EPSON DFX5000 | E130: R_EPSON DFX5000 | F130: 38400
A131: C | B131: Alianza Estratégica Outsourcing & Suministros S.A.S. | C131: LEXMARK | D131: R_LEXMARK 4227 | E131: R_LEXMARK 4227 | F131: 38400
A132: A | B132: Alianza Estratégica Outsourcing & Suministros S.A.S. | C132: CANON | D132: R_CANON FX-3 | E132: R_CANON FX-3 | F132: 80500
A133: B | B133: Alianza Estratégica Outsourcing & Suministros S.A.S. | C133: CANON | D133: R_CANON FX-3 | E133: R_CANON FX-3 | F133: 80500
A134: C | B134: Alianza Estratégica Outsourcing & Suministros S.A.S. | C134: CANON | D134: R_CANON FX-3 | E134: R_CANON FX-3 | F134: 84000
A135: A | B135: Alianza Estratégica Outsourcing & Suministros S.A.S. | C135: KYOCERA | D135: R_KYOCERA TK17 | E135: R_KYOCERA TK17 | F135: 89700
A136: B | B136: Alianza Estratégica Outsourcing & Suministros S.A.S. | C136: KYOCERA | D136: R_KYOCERA TK17 | E136: R_KYOCERA TK17 | F136: 89700
A137: C | B137: Alianza Estratégica Outsourcing & Suministros S.A.S. | C137: KYOCERA | D137: R_KYOCERA TK17 | E137: R_KYOCERA TK17 | F137: 93600
A138: A | B138: Alianza Estratégica Outsourcing & Suministros S.A.S. | C138: KYOCERA | D138: R_KYOCERA TK18 | E138: R_KYOCERA TK18 | F138: 90850
A139: B | B139: Alianza Estratégica Outsourcing & Suministros S.A.S. | C139: KYOCERA | D139: R_KYOCERA TK18 | E139: R_KYOCERA TK18 | F139: 90850
A140: C | B140: Alianza Estratégica Outsourcing & Suministros S.A.S. | C140: KYOCERA | D140: R_KYOCERA TK18 | E140: R_KYOCERA TK18 | F140: 94800
A141: A | B141: Alianza Estratégica Outsourcing & Suministros S.A.S. | C141: CANON | D141: R_CANON FX-2 | E141: R_CANON FX-2 | F141: 92000
A142: A | B142: Alianza Estratégica Outsourcing & Suministros S.A.S. | C142: DELL | D142: R_DELL DELL 1110 | E142: R_DELL DELL 1110 | F142: 92000
A143: A | B143: Alianza Estratégica Outsourcing & Suministros S.A.S. | C143: SAMSUNG | D143: R_SAMSUNG Mlt104L | E143: R_SAMSUNG Mlt104L | F143: 92000
A144: B | B144: Alianza Estratégica Outsourcing & Suministros S.A.S. | C144: CANON | D144: R_CANON FX-2 | E144: R_CANON FX-2 | F144: 92000
A145: B | B145: Alianza Estratégica Outsourcing & Suministros S.A.S. | C145: DELL | D145: R_DELL DELL 1110 | E145: R_DELL DELL 1110 | F145: 92000
A146: B | B146: Alianza Estratégica Outsourcing & Suministros S.A.S. | C146: SAMSUNG | D146: R_SAMSUNG Mlt104L | E146: R_SAMSUNG Mlt104L | F146: 92000
A147: C | B147: Alianza Estratégica Outsourcing & Suministros S.A.S. | C147: CANON | D147: R_CANON FX-2 | E147: R_CANON FX-2 | F147: 96000
A148: C | B148: Alianza Estratégica Outsourcing & Suministros S.A.S. | C148: DELL | D148: R_DELL DELL 1110 | E148: R_DELL DELL 1110 | F148: 96000
A149: C | B149: Alianza Estratégica Outsourcing & Suministros S.A.S. | C149: SAMSUNG | D149: R_SAMSUNG Mlt104L | E149: R_SAMSUNG Mlt104L | F149: 96000
A150: A | B150: Alianza Estratégica Outsourcing & Suministros S.A.S. | C150: SAMSUNG | D150: R_SAMSUNG Mlt108S | E150: R_SAMSUNG Mlt108S | F150: 94300
A151: A | B151: Alianza Estratégica Outsourcing & Suministros S.A.S. | C151: SAMSUNG | D151: R_SAMSUNG MLT-D1082S | E151: R_SAMSUNG MLT-D1082S | F151: 94300
A152: B | B152: Alianza Estratégica Outsourcing & Suministros S.A.S. | C152: SAMSUNG | D152: R_SAMSUNG Mlt108S | E152: R_SAMSUNG Mlt108S | F152: 94300
A153: B | B153: Alianza Estratégica Outsourcing & Suministros S.A.S. | C153: SAMSUNG | D153: R_SAMSUNG MLT-D1082S | E153: R_SAMSUNG MLT-D1082S | F153: 94300
A154: C | B154: Alianza Estratégica Outsourcing & Suministros S.A.S. | C154: SAMSUNG | D154: R_SAMSUNG Mlt108S | E154: R_SAMSUNG Mlt108S | F154: 98400
A155: C | B155: Alianza Estratégica Outsourcing & Suministros S.A.S. | C155: SAMSUNG | D155: R_SAMSUNG MLT-D1082S | E155: R_SAMSUNG MLT-D1082S | F155: 98400
A156: A | B156: Alianza Estratégica Outsourcing & Suministros S.A.S. | C156: SAMSUNG | D156: R_SAMSUNG ML-1610D2 | E156: R_SAMSUNG ML-1610D2 | F156: 96600
A157: B | B157: Alianza Estratégica Outsourcing & Suministros S.A.S. | C157: SAMSUNG | D157: R_SAMSUNG ML-1610D2 | E157: R_SAMSUNG ML-1610D2 | F157: 96600
A158: C | B158: Alianza Estratégica Outsourcing & Suministros S.A.S. | C158: SAMSUNG | D158: R_SAMSUNG ML-1610D2 | E158: R_SAMSUNG ML-1610D2 | F158: 100800
A159: A | B159: Alianza Estratégica Outsourcing & Suministros S.A.S. | C159: LEXMARK | D159: R_LEXMARK 12A8302 | E159: R_LEXMARK 12A8302 | F159: 97750
A160: A | B160: Alianza Estratégica Outsourcing & Suministros S.A.S. | C160: LEXMARK | D160: R_LEXMARK 12A8325 | E160: R_LEXMARK 12A8325 | F160: 97750
A161: A | B161: Alianza Estratégica Outsourcing & Suministros S.A.S. | C161: SAMSUNG | D161: R_SAMSUNG Mlt D101 | E161: R_SAMSUNG Mlt D101 | F161: 97750
A162: A | B162: Alianza Estratégica Outsourcing & Suministros S.A.S. | C162: SAMSUNG | D162: R_SAMSUNG Mlt103L | E162: R_SAMSUNG Mlt103L | F162: 97750
A163: A | B163: Alianza Estratégica Outsourcing & Suministros S.A.S. | C163: SAMSUNG | D163: R_SAMSUNG Mlt105L | E163: R_SAMSUNG Mlt105L | F163: 97750
A164: A | B164: Alianza Estratégica Outsourcing & Suministros S.A.S. | C164: SAMSUNG | D164: R_SAMSUNG Ml2010-1610 | E164: R_SAMSUNG Ml2010-1610 | F164: 97750
A165: A | B165: Alianza Estratégica Outsourcing & Suministros S.A.S. | C165: SAMSUNG | D165: R_SAMSUNG ML-1210D3 | E165: R_SAMSUNG ML-1210D3 | F165: 97750
A166: A | B166: Alianza Estratégica Outsourcing & Suministros S.A.S. | C166: SAMSUNG | D166: R_SAMSUNG ML-1710D3 | E166: R_SAMSUNG ML-1710D3 | F166: 97750
A167: A | B167: Alianza Estratégica Outsourcing & Suministros S.A.S. | C167: SAMSUNG | D167: R_SAMSUNG ML-2010D3 | E167: R_SAMSUNG ML-2010D3 | F167: 97750
A168: A | B168: Alianza Estratégica Outsourcing & Suministros S.A.S. | C168: SAMSUNG | D168: R_SAMSUNG MLT-105 | E168: R_SAMSUNG MLT-105 | F168: 97750
A169: A | B169: Alianza Estratégica Outsourcing & Suministros S.A.S. | C169: SAMSUNG | D169: R_SAMSUNG MLT-D101 | E169: R_SAMSUNG MLT-D101 | F169: 97750
A170: A | B170: Alianza Estratégica Outsourcing & Suministros S.A.S. | C170: SAMSUNG | D170: R_SAMSUNG MLT-109 | E170: R_SAMSUNG MLT-109 | F170: 97750
A171: A | B171: Alianza Estratégica Outsourcing & Suministros S.A.S. | C171: SAMSUNG | D171: R_SAMSUNG MLTD-104S | E171: R_SAMSUNG MLTD-104S | F171: 97750
A172: A | B172: Alianza Estratégica Outsourcing & Suministros S.A.S. | C172: SAMSUNG | D172: R_SAMSUNG SCX-4521D3 | E172: R_SAMSUNG SCX-4521D3 | F172: 97750
A173: A | B173: Alianza Estratégica Outsourcing & Suministros S.A.S. | C173: SAMSUNG | D173: R_SAMSUNG SCX-D4200A | E173: R_SAMSUNG SCX-D4200A | F173: 97750
A174: A | B174: Alianza Estratégica Outsourcing & Suministros S.A.S. | C174: SAMSUNG | D174: R_SAMSUNG MLT-D105S | E174: R_SAMSUNG MLT-D105S | F174: 97750
A175: A | B175: Alianza Estratégica Outsourcing & Suministros S.A.S. | C175: SAMSUNG | D175: R_SAMSUNG MLD-108S | E175: R_SAMSUNG MLD-108S | F175: 97750
A176: A | B176: Alianza Estratégica Outsourcing & Suministros S.A.S. | C176: SAMSUNG | D176: R_SAMSUNG MLT-D116 | E176: R_SAMSUNG MLT-D116 | F176: 97750
A177: A | B177: Alianza Estratégica Outsourcing & Suministros S.A.S. | C177: SAMSUNG | D177: R_SAMSUNG SCX4216D3 | E177: R_SAMSUNG SCX4216D3 | F177: 97750
A178: A | B178: Alianza Estratégica Outsourcing & Suministros S.A.S. | C178: SAMSUNG | D178: R_SAMSUNG MLT-D1095 | E178: R_SAMSUNG MLT-D1095 | F178: 97750
A179: A | B179: Alianza Estratégica Outsourcing & Suministros S.A.S. | C179: SAMSUNG | D179: R_SAMSUNG MLT-D119 | E179: R_SAMSUNG MLT-D119 | F179: 97750
A180: A | B180: Alianza Estratégica Outsourcing & Suministros S.A.S. | C180: SAMSUNG | D180: R_SAMSUNG SCX4623 | E180: R_SAMSUNG SCX4623 | F180: 97750
A181: A | B181: Alianza Estratégica Outsourcing & Suministros S.A.S. | C181: SAMSUNG | D181: R_SAMSUNG SCX4725 | E181: R_SAMSUNG SCX4725 | F181: 97750
A182: A | B182: Alianza Estratégica Outsourcing & Suministros S.A.S. | C182: XEROX | D182: R_XEROX 106R01159 | E182: R_XEROX 106R01159 | F182: 97750
A183: B | B183: Alianza Estratégica Outsourcing & Suministros S.A.S. | C183: LEXMARK | D183: R_LEXMARK 12A8302 | E183: R_LEXMARK 12A8302 | F183: 97750
A184: B | B184: Alianza Estratégica Outsourcing & Suministros S.A.S. | C184: LEXMARK | D184: R_LEXMARK 12A8325 | E184: R_LEXMARK 12A8325 | F184: 97750
A185: B | B185: Alianza Estratégica Outsourcing & Suministros S.A.S. | C185: SAMSUNG | D185: R_SAMSUNG Mlt D101 | E185: R_SAMSUNG Mlt D101 | F185: 97750
A186: B | B186: Alianza Estratégica Outsourcing & Suministros S.A.S. | C186: SAMSUNG | D186: R_SAMSUNG Mlt103L | E186: R_SAMSUNG Mlt103L | F186: 97750
A187: B | B187: Alianza Estratégica Outsourcing & Suministros S.A.S. | C187: SAMSUNG | D187: R_SAMSUNG Mlt105L | E187: R_SAMSUNG Mlt105L | F187: 97750
A188: B | B188: Alianza Estratégica Outsourcing & Suministros S.A.S. | C188: SAMSUNG | D188: R_SAMSUNG Ml2010-1610 | E188: R_SAMSUNG Ml2010-1610 | F188: 97750
A189: B | B189: Alianza Estratégica Outsourcing & Suministros S.A.S. | C189: SAMSUNG | D189: R_SAMSUNG ML-1210D3 | E189: R_SAMSUNG ML-1210D3 | F189: 97750
A190: B | B190: Alianza Estratégica Outsourcing & Suministros S.A.S. | C190: SAMSUNG | D190: R_SAMSUNG ML-1710D3 | E190: R_SAMSUNG ML-1710D3 | F190: 97750
A191: B | B191: Alianza Estratégica Outsourcing & Suministros S.A.S. | C191: SAMSUNG | D191: R_SAMSUNG ML-2010D3 | E191: R_SAMSUNG ML-2010D3 | F191: 97750
A192: B | B192: Alianza Estratégica Outsourcing & Suministros S.A.S. | C192: SAMSUNG | D192: R_SAMSUNG MLT-105 | E192: R_SAMSUNG MLT-105 | F192: 97750
A193: B | B193: Alianza Estratégica Outsourcing & Suministros S.A.S. | C193: SAMSUNG | D193: R_SAMSUNG MLT-D101 | E193: R_SAMSUNG MLT-D101 | F193: 97750
A194: B | B194: Alianza Estratégica Outsourcing & Suministros S.A.S. | C194: SAMSUNG | D194: R_SAMSUNG MLT-109 | E194: R_SAMSUNG MLT-109 | F194: 97750
A195: B | B195: Alianza Estratégica Outsourcing & Suministros S.A.S. | C195: SAMSUNG | D195: R_SAMSUNG MLTD-104S | E195: R_SAMSUNG MLTD-104S | F195: 97750
A196: B | B196: Alianza Estratégica Outsourcing & Suministros S.A.S. | C196: SAMSUNG | D196: R_SAMSUNG SCX-4521D3 | E196: R_SAMSUNG SCX-4521D3 | F196: 97750
A197: B | B197: Alianza Estratégica Outsourcing & Suministros S.A.S. | C197: SAMSUNG | D197: R_SAMSUNG SCX-D4200A | E197: R_SAMSUNG SCX-D4200A | F197: 97750
A198: B | B198: Alianza Estratégica Outsourcing & Suministros S.A.S. | C198: SAMSUNG | D198: R_SAMSUNG MLT-D105S | E198: R_SAMSUNG MLT-D105S | F198: 97750
A199: B | B199: Alianza Estratégica Outsourcing & Suministros S.A.S. | C199: SAMSUNG | D199: R_SAMSUNG MLD-108S | E199: R_SAMSUNG MLD-108S | F199: 97750
A200: B | B200: Alianza Estratégica Outsourcing & Suministros S.A.S. | C200: SAMSUNG | D200: R_SAMSUNG MLT-D116 | E200: R_SAMSUNG MLT-D116 | F200: 97750
... 3294 more rows

Sheet CSV (hidden)
A1: Tipo (servicio o artículo) | B1: Cantidad | C1: Código de unidad de medida* | D1: Posición | E1: Precio base | F1: Divisa | G1: Descripción | H1: Mercancía
A2: item | B2: 1 | C2: Und | E2: 183022000 | F2: COP | G2: cim02--Suministro de Consumibles de Impresión Original EPSON

Sheet Cuadro Totales (hidden)
A1: Precio Unitario | B1: Precio Unitario + Gravamen | C1: Precio Total
B3: Sub Total
B4: IVA | C4: =ROUND(C3*19%,2) -> 0
B5: Valor Total | C5: =ROUND(SUM(C3:C4),2) -> 0
A8: Precio Unitario | B8: Precio Unitario + Gravamen | C8: Descuento adicional | D8: Precio con Descuento | E8: Precio Total
D10: Sub Total
D11: IVA | E11: =ROUND(E10*19%,2) -> 0
D12: Valor Total | E12: =ROUND(SUM(E10:E11),2) -> 0

Sheet Listas (hidden)
A1: Segmento | B1: Region | C1: Marca | E1: Proveedores
A2: Original | B2: 1 | C2: BROTHER | D2: Cartucho de tinta HP 82 DesignJet amarillo de 69 ml | E2: COMERCIALIZADORA SERLE.COM SAS
B3: 2 | C3: DATACARD | D3: Cartucho de tinta HP 82 DesignJet cian de 69 ml | E3: DISTRIBUIDORA Y PAPELERIA VENEPLAST LTDA
B4: 3 | C4: EPSON | D4: Cartucho de tinta HP 82 DesignJet magenta de 69 ml | E4: GRAN IMAGEN S.A.S.
C5: HP - SAMSUNG | D5: CARTUCHO F9J65A No. 728 YELLOW | E5: HARDWARE ASESORIAS SOFTWARE LTDA
C6: KYOCERA | D6: CARTUCHO F9J66A No. 728 MAGENTA | E6: KEY MARKET SAS
C7: LEXMARK | D7: HP 02 Black LA Inkjet Print Cartridge | E7: MICRONET SAS
C8: OKI | D8: HP 02 Cyan LA Inkjet Print Cartridge | E8: PROSUTEC SAS
C9: RICOH | D9: HP 02 Magenta LA Inkjet Print Cartridge | E9: UNIPLES S.A
C10: XEROX | D10: HP 05A Black 2-Pack LJ Toner Cartridge | E10: UT OFIBEST-FORMACON
C11: ZEBRA | D11: HP 05A Dual Pack Print Cartridge
D12: HP 103A Blk Neverstop Toner Reload Kit
D13: HP 103AD 2Pack Blk Toner Reload Kit
D14: HP 104A Blk Laser Imaging Drum Crtg
D15: HP 105A Blk Original Laser Toner Crtg
D16: HP 11 Cyan Inkjet Print Cartridge
D17: HP 11 Magenta Inkjet Print Cartridge
D18: HP 11 Yellow Inkjet Print Cartridge
D19: HP 122 Black Ink Cartridge
D20: HP 122 Tri-colour Ink Cartridge
D21: HP 122XL Black Ink Cartridge
D22: HP 122XL Tri-colour Ink Cartridge
D23: HP 126A Black Dual Pk LJ Toner Cartridge
D24: HP 15 Black Ink Cartridge
D25: HP 15 Black Inkjet Cartridge LAR
D26: HP 17 Tricolor Inkjet Print Cartridge
D27: HP 17A Black LaserJet Toner Cartridge
D28: HP 19A Original LaserJet Imaging Drum
D29: HP 20 Black Inkjet Print Cartridge
D30: HP 201A Black LaserJet Toner Cartridge
D31: HP 201A Cyan LaserJet Toner Cartridge
D32: HP 201A Magenta LaserJet Toner Cartridge
D33: HP 201A Yellow LaserJet Toner Cartridge
D34: HP 201X Black LaserJet Toner Cartridge
D35: HP 201X Cyan LaserJet Toner Cartridge
D36: HP 201X Magenta LaserJet Toner Cartridge
D37: HP 201X Yellow LaserJet Toner Cartridge
D38: HP 202A Black LaserJet Toner Cartridge
D39: HP 202A Cyan LaserJet Toner Cartridge
D40: HP 202A Magenta LaserJet Toner Cartridge
D41: HP 202A Yellow LaserJet Toner Cartridge
D42: HP 202X Black LaserJet Toner Cartridge
D43: HP 202X Cyan LaserJet Toner Cartridge
D44: HP 202X Magenta LaserJet Toner Cartridge
D45: HP 202X Yellow LaserJet Toner Cartridge
D46: HP 204A Black LaserJet Toner Cartridge
D47: HP 204A Cyan LaserJet Toner Cartridge
D48: HP 204A Magenta LaserJet Toner Cartridge
D49: HP 204A Yellow LaserJet Toner Cartridge
D50: HP 21 Black Ink Cartridge
D51: HP 21 Black LA Inkjet Print Cartridge
D52: HP 21XL Black Ink Cartridge
D53: HP 22 Tri-color Ink Cartridge
D54: HP 22 Tricolor LAR Inkjet Cartridge
D55: HP 22XL Tricolor Ink Cartridge
D56: HP 25X Black LaserJet Toner Cartridge
D57: HP 26A Black LaserJet Toner Cartridge
D58: HP 26X Black 2-pack LJ Toner Cartridge
D59: HP 26X Black LaserJet Toner Cartridge
D60: HP 27 Black Ink Cartridge
D61: HP 27 Black Inkjet Cartridge,LAR
D62: HP 28 Tri-color Ink Cartridge
D63: HP 28 Tricolor Inkjet Cartridge,LAR
D64: HP 300 ADF Roller Replacement Kit
D65: HP 305X Blk Dual Pack LJ Toner Cartridge
D66: HP 30A Black LaserJet Toner Cartridge
D67: HP 30X Black LaserJet Toner Cartridge
D68: HP 312A Black LaserJet Toner Cartridge
D69: HP 312A Cyan LaserJet Toner Cartridge
D70: HP 312A Magenta LaserJet Toner Cartridge
D71: HP 312A Yellow LaserJet Toner Cartridge
D72: HP 312X High Yield Black Toner Cartridge
D73: HP 32A Original LaserJet Imaging Drum
D74: HP 33A Black LaserJet Toner Cartridge
D75: HP 34A Original LaserJet Imaging Drum
D76: HP 37A Black LaserJet Toner Cartridge
D77: HP 37X Black LaserJet Toner Cartridge
D78: HP 37Y Black LaserJet Toner Cartridge
D79: HP 410A Black LaserJet Toner Cartridge
D80: HP 410A Cyan LaserJet Toner Cartridge
D81: HP 410A Magenta LaserJet Toner Cartridge
D82: HP 410A Yellow LaserJet Toner Cartridge
D83: HP 410X Black LaserJet Toner Cartridge
D84: HP 410X Cyan LaserJet Toner Cartridge
D85: HP 410X Magenta LaserJet Toner Cartridge
D86: HP 410X Yellow LaserJet Toner Cartridge
D87: HP 414A Black LaserJet Toner Cartridge
D88: HP 414A Cyan LaserJet Toner Cartridge
D89: HP 414A Magenta LaserJet Toner Cartridge
D90: HP 414A Yellow LaserJet Toner Cartridge
D91: HP 414X Black LaserJet Toner Cartridge
D92: HP 414X Cyan LaserJet Toner Cartridge
D93: HP 414X Magenta LaserJet Toner Cartridge
D94: HP 414X Yellow LaserJet Toner Cartridge
D95: HP 46 Black Ink Cartridge
D96: HP 46 Black Ink Cartridge 2-Pack
D97: HP 46 Tri-color Ink Cartridge
D98: HP 46 Tri-color Ink Cartridge 2-Pack
D99: HP 48A Black LaserJet Toner Cartridge
D100: HP 507A Black LaserJet Toner Cartridge
D101: HP 507A Cyan LaserJet Toner Cartridge
D102: HP 507A Magenta LaserJet Toner Cartridge
D103: HP 507A Yellow LaserJet Toner Cartridge
D104: HP 507X Black LaserJet Toner Cartridge
D105: HP 508A Black LaserJet Toner Cartridge
D106: HP 508A Cyan LaserJet Toner Cartridge
D107: HP 508A Magenta LaserJet Toner Cartridge
D108: HP 508A Yellow LaserJet Toner Cartridge
D109: HP 508X Black LaserJet Toner Cartridge
D110: HP 508X Cyan LaserJet Toner Cartridge
D111: HP 508X Magenta LaserJet Toner Cartridge
D112: HP 508X Yellow LaserJet Toner Cartridge
D113: HP 56 Black Inkjet Cartridge,LAR
D114: HP 564 Black Ink Cartridge
D115: HP 564 Cyan Ink Cartridge
D116: HP 564 Magenta Ink Cartridge
D117: HP 564 Yellow Ink Cartridge
D118: HP 57 Tricolor Inkjet Cartridge LAR
D119: HP 58A Black LaserJet Toner Cartridge
D120: HP 58X Black LaserJet Toner Cartridge
D121: HP 60 Black LAR Ink Cartridge
D122: HP 60 Tri-Color LAR Ink Cartridge
D123: HP 60XL Black LAR Ink Cartridge
D124: HP 60XL Tri-Color LAR Ink Cartridge
D125: HP 62XL Black Ink Cartridge
D126: HP 62XL Tri-color Ink Cartridge
D127: HP 652A Black LaserJet Toner Cartridge
D128: HP 653A Cyan LaserJet Toner Cartridge
D129: HP 653A Magenta LaserJet Toner Cartridge
D130: HP 653A Yellow LaserJet Toner Cartridge
D131: HP 653X Black LaserJet Toner Cartridge
D132: HP 654A Cyan LaserJet Toner Cartridge
D133: HP 654A Magenta LaserJet Toner Cartridge
D134: HP 654A Yellow LaserJet Toner Cartridge
D135: HP 654X Black LaserJet Toner Cartridge
D136: HP 655A Black LaserJet Toner Cartridge
D137: HP 655A Cyan LaserJet Toner Cartridge
D138: HP 655A Magenta LaserJet Toner Cartridge
D139: HP 655A Yellow LaserJet Toner Cartridge
D140: HP 656X Black LaserJet Toner Cartridge
D141: HP 656X Cyan LaserJet Toner Cartridge
D142: HP 656X Magenta LaserJet Toner Cartridge
D143: HP 656X Yellow LaserJet Toner Cartridge
D144: HP 657X Black LaserJet Toner Cartridge
D145: HP 657X Cyan LaserJet Toner Cartridge
D146: HP 657X Magenta LaserJet Toner Cartridge
D147: HP 657X Yellow LaserJet Toner Cartridge
D148: HP 658A Black LaserJet Toner Cartridge
D149: HP 658A Cyan LaserJet Toner Cartridge
D150: HP 658A Magenta LaserJet Toner Cartridge
D151: HP 658A Yellow LaserJet Toner Cartridge
D152: HP 658X Black LaserJet Toner Cartridge
D153: HP 658X Cyan LaserJet Toner Cartridge
D154: HP 658X Magenta LaserJet Toner Cartridge
D155: HP 658X Yellow LaserJet Toner Cartridge
D156: HP 662 Black Ink Cartridge
D157: HP 662 Tri-color Ink Cartridge
D158: HP 662XL Black Ink Cartridge
D159: HP 662XL Tri-color Ink Cartridge
D160: HP 664 Black Ink Cartridge
D161: HP 664 Tri-color Ink Cartridge
D162: HP 664XL Black Ink Cartridge
D163: HP 664XL Tri-color Ink Cartridge
D164: HP 670 Black Ink Cartridge
D165: HP 670 Cyan Ink Cartridge
D166: HP 670 Magenta Ink Cartridge
D167: HP 670 Yellow Ink Cartridge
D168: HP 670XL Black Ink Cartridge
D169: HP 670XL Cyan Ink Cartridge
D170: HP 670XL Magenta Ink Cartridge
D171: HP 670XL Yellow Ink Cartridge
D172: HP 675 Black Ink Cartridge
D173: HP 675 Tri-color Ink Cartridge
D174: HP 703 Black Deskjet Ink Cartridge
D175: HP 703 Tri-color Deskjet Ink Cartridge
D176: HP 727 300-ml Cyan DesignJet Ink Cartridge
D177: HP 727 300-ml Gray DesignJet Ink Cartridge
D178: HP 727 300-ml Magenta DesignJet Ink Cartridge
D179: HP 727 300-ml Photo Black DesignJet Ink Cartridge
D180: HP 727 300-ml Yellow DesignJet Ink Cartridge
D181: HP 74 Black Inkjet Print Cartridge
D182: HP 74XL Black Inkjet Print Cartridge
D183: HP 75 Tricolor Inkjet Print Cartridge
D184: HP 75XL Tricolor Inkjet Print Cartridge
D185: HP 78A Blk Dual Pack LJ Toner Cartridge
D186: HP 79A Black LaserJet Toner Cartridge
D187: HP 80X Black Dual Pk LJ Toner Cartridge
D188: HP 81A Black LaserJet Toner Cartridge
D189: HP 81X Black LaserJet Toner Cartridge
D190: HP 826A Black LaserJet Toner Cartridge
D191: HP 826A Cyan LaserJet Toner Cartridge
D192: HP 826A Magenta LaserJet Toner Cartridge
D193: HP 826A Yellow LaserJet Toner Cartridge
D194: HP 827A Black LaserJet Toner Cartridge
D195: HP 827A Cyan LaserJet Toner Cartridge
D196: HP 827A Magenta LaserJet Toner Cartridge
D197: HP 827A Yellow LaserJet Toner Cartridge
D198: HP 828A Black LaserJet Drum
D199: HP 828A Cyan LaserJet Drum
D200: HP 828A Magenta LaserJet Drum
... 498 more rows

Sheet minimo (hidden)
C3: Etiquetas de fila | D3: Suma de total
C4: DISTRIBUIDORA Y PAPELERIA VENEPLAST LTDA | D4: 26467842.28
C5: KEY MARKET SAS | D5: 27233721.05
C6: UNIPLES S.A | D6: 27695446.1
C7: PROSUTEC SAS | D7: 28006653.51
C8: GRAN IMAGEN S.A.S. | D8: 28294402.9
C9: MICRONET SAS | D9: 29307780.07
C10: UT OFIBEST-FORMACON | D10: 31538648.33
C11: HARDWARE ASESORIAS SOFTWARE LTDA | D11: 32188377.71
C12: COMERCIALIZADORA SERLE.COM SAS | D12: 32798187.62
C13: Total general | D13: 263531059.6

Sheet temp (hidden)
A1: llave | B1: REGION | C1: proveedor | D1: CATEGORIA | E1: PRODUCTO | F1: DESCRIPCIÓN | G1: valor | H1: Activo | I1: cant | J1: total | K1: cantProd
A2: DISTRIBUIDORA Y PAPELERIA VENEPLAST LTDAHP 202X Black LaserJet Toner Cartridge1 | B2: 1 | C2: DISTRIBUIDORA Y PAPELERIA VENEPLAST LTDA | D2: HP - SAMSUNG | E2: CF500X | F2: HP 202X Black LaserJet Toner Cartridge | G2: 374000 | H2: 1 | I2: =SUMIF(ResumenCotizacion!$A:$A,temp!F2&temp!B2,ResumenCotizacion!$O:$O) -> 5 | J2: =(ROUND($G2/(1-VLOOKUP("Total porcentaje:",ResumenCotizacion!$F:$H,3,0)),2))*$I2 -> 1939834 | K2: =COUNTIF(C:C,C2) -> 8
A3: DISTRIBUIDORA Y PAPELERIA VENEPLAST LTDAHP 202X Cyan LaserJet Toner Cartridge1 | B3: 1 | C3: DISTRIBUIDORA Y PAPELERIA VENEPLAST LTDA | D3: HP - SAMSUNG | E3: CF501X | F3: HP 202X Cyan LaserJet Toner Cartridge | G3: 394000 | H3: 1 | I3: =SUMIF(ResumenCotizacion!$A:$A,temp!F3&temp!B3,ResumenCotizacion!$O:$O) -> 5 | J3: =(ROUND($G3/(1-VLOOKUP("Total porcentaje:",ResumenCotizacion!$F:$H,3,0)),2))*$I3 -> 2043568.45 | K3: =COUNTIF(C:C,C3) -> 8
A4: DISTRIBUIDORA Y PAPELERIA VENEPLAST LTDAHP 202X Yellow LaserJet Toner Cartridge1 | B4: 1 | C4: DISTRIBUIDORA Y PAPELERIA VENEPLAST LTDA | D4: HP - SAMSUNG | E4: CF502X | F4: HP 202X Yellow LaserJet Toner Cartridge | G4: 394000 | H4: 1 | I4: =SUMIF(ResumenCotizacion!$A:$A,temp!F4&temp!B4,ResumenCotizacion!$O:$O) -> 5 | J4: =(ROUND($G4/(1-VLOOKUP("Total porcentaje:",ResumenCotizacion!$F:$H,3,0)),2))*$I4 -> 2043568.45 | K4: 8
A5: DISTRIBUIDORA Y PAPELERIA VENEPLAST LTDAHP 202X Magenta LaserJet Toner Cartridge1 | B5: 1 | C5: DISTRIBUIDORA Y PAPELERIA VENEPLAST LTDA | D5: HP - SAMSUNG | E5: CF503X | F5: HP 202X Magenta LaserJet Toner Cartridge | G5: 394000 | H5: 1 | I5: =SUMIF(ResumenCotizacion!$A:$A,temp!F5&temp!B5,ResumenCotizacion!$O:$O) -> 5 | J5: =(ROUND($G5/(1-VLOOKUP("Total porcentaje:",ResumenCotizacion!$F:$H,3,0)),2))*$I5 -> 2043568.45 | K5: 8
A6: DISTRIBUIDORA Y PAPELERIA VENEPLAST LTDAHP CP3525/CM3530 MFP Cyan Print Crtg1 | B6: 1 | C6: DISTRIBUIDORA Y PAPELERIA VENEPLAST LTDA | D6: HP - SAMSUNG | E6: CE251A | F6: HP CP3525/CM3530 MFP Cyan Print Crtg | G6: 1077000 | H6: 1 | I6: =SUMIF(ResumenCotizacion!$A:$A,temp!F6&temp!B6,ResumenCotizacion!$O:$O) -> 5 | J6: =(ROUND($G6/(1-VLOOKUP("Total porcentaje:",ResumenCotizacion!$F:$H,3,0)),2))*$I6 -> 5586099.6 | K6: 8
A7: DISTRIBUIDORA Y PAPELERIA VENEPLAST LTDAHP CP3525/CM3530 MFP Black 5K Print Crtg1 | B7: 1 | C7: DISTRIBUIDORA Y PAPELERIA VENEPLAST LTDA | D7: HP - SAMSUNG | E7: CE250A | F7: HP CP3525/CM3530 MFP Black 5K Print Crtg | G7: 550000 | H7: 1 | I7: =SUMIF(ResumenCotizacion!$A:$A,temp!F7&temp!B7,ResumenCotizacion!$O:$O) -> 5 | J7: =(ROUND($G7/(1-VLOOKUP("Total porcentaje:",ResumenCotizacion!$F:$H,3,0)),2))*$I7 -> 2852697.1 | K7: 8
A8: DISTRIBUIDORA Y PAPELERIA VENEPLAST LTDAHP CP3525/CM3530 MFP Yellow Print Crtg1 | B8: 1 | C8: DISTRIBUIDORA Y PAPELERIA VENEPLAST LTDA | D8: HP - SAMSUNG | E8: CE252A | F8: HP CP3525/CM3530 MFP Yellow Print Crtg | G8: 1080000 | H8: 1 | I8: =SUMIF(ResumenCotizacion!$A:$A,temp!F8&temp!B8,ResumenCotizacion!$O:$O) -> 5 | J8: =(ROUND($G8/(1-VLOOKUP("Total porcentaje:",ResumenCotizacion!$F:$H,3,0)),2))*$I8 -> 5601659.75 | K8: 8
A9: DISTRIBUIDORA Y PAPELERIA VENEPLAST LTDAHP CP3525/CM3530 MFP Magenta Print Crtg1 | B9: 1 | C9: DISTRIBUIDORA Y PAPELERIA VENEPLAST LTDA | D9: HP - SAMSUNG | E9: CE253A | F9: HP CP3525/CM3530 MFP Magenta Print Crtg | G9: 1050000 | H9: 1 | I9: =SUMIF(ResumenCotizacion!$A:$A,temp!F9&temp!B9,ResumenCotizacion!$O:$O) -> 4 | J9: =(ROUND($G9/(1-VLOOKUP("Total porcentaje:",ResumenCotizacion!$F:$H,3,0)),2))*$I9 -> 4356846.48 | K9: 8
A10: KEY MARKET SASHP 202X Black LaserJet Toner Cartridge1 | B10: 1 | C10: KEY MARKET SAS | D10: HP - SAMSUNG | E10: CF500X | F10: HP 202X Black LaserJet Toner Cartridge | G10: 375957.4468 | H10: 1 | I10: =SUMIF(ResumenCotizacion!$A:$A,temp!F10&temp!B10,ResumenCotizacion!$O:$O) -> 5 | J10: =(ROUND($G10/(1-VLOOKUP("Total porcentaje:",ResumenCotizacion!$F:$H,3,0)),2))*$I10 -> 1949986.75 | K10: 8
A11: KEY MARKET SASHP 202X Cyan LaserJet Toner Cartridge1 | B11: 1 | C11: KEY MARKET SAS | D11: HP - SAMSUNG | E11: CF501X | F11: HP 202X Cyan LaserJet Toner Cartridge | G11: 396389.9167 | H11: 1 | I11: =SUMIF(ResumenCotizacion!$A:$A,temp!F11&temp!B11,ResumenCotizacion!$O:$O) -> 5 | J11: =(ROUND($G11/(1-VLOOKUP("Total porcentaje:",ResumenCotizacion!$F:$H,3,0)),2))*$I11 -> 2055964.3 | K11: 8
A12: KEY MARKET SASHP 202X Yellow LaserJet Toner Cartridge1 | B12: 1 | C12: KEY MARKET SAS | D12: HP - SAMSUNG | E12: CF502X | F12: HP 202X Yellow LaserJet Toner Cartridge | G12: 396389.9167 | H12: 1 | I12: =SUMIF(ResumenCotizacion!$A:$A,temp!F12&temp!B12,ResumenCotizacion!$O:$O) -> 5 | J12: =(ROUND($G12/(1-VLOOKUP("Total porcentaje:",ResumenCotizacion!$F:$H,3,0)),2))*$I12 -> 2055964.3 | K12: 8
A13: KEY MARKET SASHP 202X Magenta LaserJet Toner Cartridge1 | B13: 1 | C13: KEY MARKET SAS | D13: HP - SAMSUNG | E13: CF503X | F13: HP 202X Magenta LaserJet Toner Cartridge | G13: 396389.9167 | H13: 1 | I13: =SUMIF(ResumenCotizacion!$A:$A,temp!F13&temp!B13,ResumenCotizacion!$O:$O) -> 5 | J13: =(ROUND($G13/(1-VLOOKUP("Total porcentaje:",ResumenCotizacion!$F:$H,3,0)),2))*$I13 -> 2055964.3 | K13: 8
A14: KEY MARKET SASHP CP3525/CM3530 MFP Cyan Print Crtg1 | B14: 1 | C14: KEY MARKET SAS | D14: HP - SAMSUNG | E14: CE251A | F14: HP CP3525/CM3530 MFP Cyan Print Crtg | G14: 1113679.463 | H14: 1 | I14: =SUMIF(ResumenCotizacion!$A:$A,temp!F14&temp!B14,ResumenCotizacion!$O:$O) -> 5 | J14: =(ROUND($G14/(1-VLOOKUP("Total porcentaje:",ResumenCotizacion!$F:$H,3,0)),2))*$I14 -> 5776345.75 | K14: 8
A15: KEY MARKET SASHP CP3525/CM3530 MFP Black 5K Print Crtg1 | B15: 1 | C15: KEY MARKET SAS | D15: HP - SAMSUNG | E15: CE250A | F15: HP CP3525/CM3530 MFP Black 5K Print Crtg | G15: 567231.7299 | H15: 1 | I15: =SUMIF(ResumenCotizacion!$A:$A,temp!F15&temp!B15,ResumenCotizacion!$O:$O) -> 5 | J15: =(ROUND($G15/(1-VLOOKUP("Total porcentaje:",ResumenCotizacion!$F:$H,3,0)),2))*$I15 -> 2942073.3 | K15: 8
A16: KEY MARKET SASHP CP3525/CM3530 MFP Yellow Print Crtg1 | B16: 1 | C16: KEY MARKET SAS | D16: HP - SAMSUNG | E16: CE252A | F16: HP CP3525/CM3530 MFP Yellow Print Crtg | G16: 1113679.463 | H16: 1 | I16: =SUMIF(ResumenCotizacion!$A:$A,temp!F16&temp!B16,ResumenCotizacion!$O:$O) -> 5 | J16: =(ROUND($G16/(1-VLOOKUP("Total porcentaje:",ResumenCotizacion!$F:$H,3,0)),2))*$I16 -> 5776345.75 | K16: 8
A17: KEY MARKET SASHP CP3525/CM3530 MFP Magenta Print Crtg1 | B17: 1 | C17: KEY MARKET SAS | D17: HP - SAMSUNG | E17: CE253A | F17: HP CP3525/CM3530 MFP Magenta Print Crtg | G17: 1113679.463 | H17: 1 | I17: =SUMIF(ResumenCotizacion!$A:$A,temp!F17&temp!B17,ResumenCotizacion!$O:$O) -> 4 | J17: =(ROUND($G17/(1-VLOOKUP("Total porcentaje:",ResumenCotizacion!$F:$H,3,0)),2))*$I17 -> 4621076.6 | K17: 8
A18: UNIPLES S.AHP 202X Black LaserJet Toner Cartridge1 | B18: 1 | C18: UNIPLES S.A | D18: HP - SAMSUNG | E18: CF500X | F18: HP 202X Black LaserJet Toner Cartridge | G18: 382333 | H18: 1 | I18: =SUMIF(ResumenCotizacion!$A:$A,temp!F18&temp!B18,ResumenCotizacion!$O:$O) -> 5 | J18: =(ROUND($G18/(1-VLOOKUP("Total porcentaje:",ResumenCotizacion!$F:$H,3,0)),2))*$I18 -> 1983055 | K18: 8
A19: UNIPLES S.AHP 202X Cyan LaserJet Toner Cartridge1 | B19: 1 | C19: UNIPLES S.A | D19: HP - SAMSUNG | E19: CF501X | F19: HP 202X Cyan LaserJet Toner Cartridge | G19: 403094 | H19: 1 | I19: =SUMIF(ResumenCotizacion!$A:$A,temp!F19&temp!B19,ResumenCotizacion!$O:$O) -> 5 | J19: =(ROUND($G19/(1-VLOOKUP("Total porcentaje:",ResumenCotizacion!$F:$H,3,0)),2))*$I19 -> 2090736.5 | K19: 8
A20: UNIPLES S.AHP 202X Yellow LaserJet Toner Cartridge1 | B20: 1 | C20: UNIPLES S.A | D20: HP - SAMSUNG | E20: CF502X | F20: HP 202X Yellow LaserJet Toner Cartridge | G20: 403094 | H20: 1 | I20: =SUMIF(ResumenCotizacion!$A:$A,temp!F20&temp!B20,ResumenCotizacion!$O:$O) -> 5 | J20: =(ROUND($G20/(1-VLOOKUP("Total porcentaje:",ResumenCotizacion!$F:$H,3,0)),2))*$I20 -> 2090736.5 | K20: 8
A21: UNIPLES S.AHP 202X Magenta LaserJet Toner Cartridge1 | B21: 1 | C21: UNIPLES S.A | D21: HP - SAMSUNG | E21: CF503X | F21: HP 202X Magenta LaserJet Toner Cartridge | G21: 403094 | H21: 1 | I21: =SUMIF(ResumenCotizacion!$A:$A,temp!F21&temp!B21,ResumenCotizacion!$O:$O) -> 5 | J21: =(ROUND($G21/(1-VLOOKUP("Total porcentaje:",ResumenCotizacion!$F:$H,3,0)),2))*$I21 -> 2090736.5 | K21: 8
A22: UNIPLES S.AHP CP3525/CM3530 MFP Cyan Print Crtg1 | B22: 1 | C22: UNIPLES S.A | D22: HP - SAMSUNG | E22: CE251A | F22: HP CP3525/CM3530 MFP Cyan Print Crtg | G22: 1132570 | H22: 1 | I22: =SUMIF(ResumenCotizacion!$A:$A,temp!F22&temp!B22,ResumenCotizacion!$O:$O) -> 5 | J22: =(ROUND($G22/(1-VLOOKUP("Total porcentaje:",ResumenCotizacion!$F:$H,3,0)),2))*$I22 -> 5874325.75 | K22: 8
A23: UNIPLES S.AHP CP3525/CM3530 MFP Black 5K Print Crtg1 | B23: 1 | C23: UNIPLES S.A | D23: HP - SAMSUNG | E23: CE250A | F23: HP CP3525/CM3530 MFP Black 5K Print Crtg | G23: 576871 | H23: 1 | I23: =SUMIF(ResumenCotizacion!$A:$A,temp!F23&temp!B23,ResumenCotizacion!$O:$O) -> 5 | J23: =(ROUND($G23/(1-VLOOKUP("Total porcentaje:",ResumenCotizacion!$F:$H,3,0)),2))*$I23 -> 2992069.5 | K23: 8
A24: UNIPLES S.AHP CP3525/CM3530 MFP Yellow Print Crtg1 | B24: 1 | C24: UNIPLES S.A | D24: HP - SAMSUNG | E24: CE252A | F24: HP CP3525/CM3530 MFP Yellow Print Crtg | G24: 1132570 | H24: 1 | I24: =SUMIF(ResumenCotizacion!$A:$A,temp!F24&temp!B24,ResumenCotizacion!$O:$O) -> 5 | J24: =(ROUND($G24/(1-VLOOKUP("Total porcentaje:",ResumenCotizacion!$F:$H,3,0)),2))*$I24 -> 5874325.75 | K24: 8
A25: UNIPLES S.AHP CP3525/CM3530 MFP Magenta Print Crtg1 | B25: 1 | C25: UNIPLES S.A | D25: HP - SAMSUNG | E25: CE253A | F25: HP CP3525/CM3530 MFP Magenta Print Crtg | G25: 1132570 | H25: 1 | I25: =SUMIF(ResumenCotizacion!$A:$A,temp!F25&temp!B25,ResumenCotizacion!$O:$O) -> 4 | J25: =(ROUND($G25/(1-VLOOKUP("Total porcentaje:",ResumenCotizacion!$F:$H,3,0)),2))*$I25 -> 4699460.6 | K25: 8
A26: PROSUTEC SASHP 202X Black LaserJet Toner Cartridge1 | B26: 1 | C26: PROSUTEC SAS | D26: HP - SAMSUNG | E26: CF500X | F26: HP 202X Black LaserJet Toner Cartridge | G26: 386629 | H26: 1 | I26: =SUMIF(ResumenCotizacion!$A:$A,temp!F26&temp!B26,ResumenCotizacion!$O:$O) -> 5 | J26: =(ROUND($G26/(1-VLOOKUP("Total porcentaje:",ResumenCotizacion!$F:$H,3,0)),2))*$I26 -> 2005337.15 | K26: 8
A27: PROSUTEC SASHP 202X Cyan LaserJet Toner Cartridge1 | B27: 1 | C27: PROSUTEC SAS | D27: HP - SAMSUNG | E27: CF501X | F27: HP 202X Cyan LaserJet Toner Cartridge | G27: 407624 | H27: 1 | I27: =SUMIF(ResumenCotizacion!$A:$A,temp!F27&temp!B27,ResumenCotizacion!$O:$O) -> 5 | J27: =(ROUND($G27/(1-VLOOKUP("Total porcentaje:",ResumenCotizacion!$F:$H,3,0)),2))*$I27 -> 2114232.35 | K27: 8
A28: PROSUTEC SASHP 202X Yellow LaserJet Toner Cartridge1 | B28: 1 | C28: PROSUTEC SAS | D28: HP - SAMSUNG | E28: CF502X | F28: HP 202X Yellow LaserJet Toner Cartridge | G28: 407624 | H28: 1 | I28: =SUMIF(ResumenCotizacion!$A:$A,temp!F28&temp!B28,ResumenCotizacion!$O:$O) -> 5 | J28: =(ROUND($G28/(1-VLOOKUP("Total porcentaje:",ResumenCotizacion!$F:$H,3,0)),2))*$I28 -> 2114232.35 | K28: 8
A29: PROSUTEC SASHP 202X Magenta LaserJet Toner Cartridge1 | B29: 1 | C29: PROSUTEC SAS | D29: HP - SAMSUNG | E29: CF503X | F29: HP 202X Magenta LaserJet Toner Cartridge | G29: 407624 | H29: 1 | I29: =SUMIF(ResumenCotizacion!$A:$A,temp!F29&temp!B29,ResumenCotizacion!$O:$O) -> 5 | J29: =(ROUND($G29/(1-VLOOKUP("Total porcentaje:",ResumenCotizacion!$F:$H,3,0)),2))*$I29 -> 2114232.35 | K29: 8
A30: PROSUTEC SASHP CP3525/CM3530 MFP Cyan Print Crtg1 | B30: 1 | C30: PROSUTEC SAS | D30: HP - SAMSUNG | E30: CE251A | F30: HP CP3525/CM3530 MFP Cyan Print Crtg | G30: 1145296 | H30: 1 | I30: =SUMIF(ResumenCotizacion!$A:$A,temp!F30&temp!B30,ResumenCotizacion!$O:$O) -> 5 | J30: =(ROUND($G30/(1-VLOOKUP("Total porcentaje:",ResumenCotizacion!$F:$H,3,0)),2))*$I30 -> 5940331.95 | K30: 8
A31: PROSUTEC SASHP CP3525/CM3530 MFP Black 5K Print Crtg1 | B31: 1 | C31: PROSUTEC SAS | D31: HP - SAMSUNG | E31: CE250A | F31: HP CP3525/CM3530 MFP Black 5K Print Crtg | G31: 583353 | H31: 1 | I31: =SUMIF(ResumenCotizacion!$A:$A,temp!F31&temp!B31,ResumenCotizacion!$O:$O) -> 5 | J31: =(ROUND($G31/(1-VLOOKUP("Total porcentaje:",ResumenCotizacion!$F:$H,3,0)),2))*$I31 -> 3025689.85 | K31: 8
A32: PROSUTEC SASHP CP3525/CM3530 MFP Yellow Print Crtg1 | B32: 1 | C32: PROSUTEC SAS | D32: HP - SAMSUNG | E32: CE252A | F32: HP CP3525/CM3530 MFP Yellow Print Crtg | G32: 1145296 | H32: 1 | I32: =SUMIF(ResumenCotizacion!$A:$A,temp!F32&temp!B32,ResumenCotizacion!$O:$O) -> 5 | J32: =(ROUND($G32/(1-VLOOKUP("Total porcentaje:",ResumenCotizacion!$F:$H,3,0)),2))*$I32 -> 5940331.95 | K32: 8
A33: PROSUTEC SASHP CP3525/CM3530 MFP Magenta Print Crtg1 | B33: 1 | C33: PROSUTEC SAS | D33: HP - SAMSUNG | E33: CE253A | F33: HP CP3525/CM3530 MFP Magenta Print Crtg | G33: 1145296 | H33: 1 | I33: =SUMIF(ResumenCotizacion!$A:$A,temp!F33&temp!B33,ResumenCotizacion!$O:$O) -> 4 | J33: =(ROUND($G33/(1-VLOOKUP("Total porcentaje:",ResumenCotizacion!$F:$H,3,0)),2))*$I33 -> 4752265.56 | K33: 8
A34: UT OFIBEST-FORMACONHP 202X Black LaserJet Toner Cartridge1 | B34: 1 | C34: UT OFIBEST-FORMACON | D34: HP - SAMSUNG | E34: CF500X | F34: HP 202X Black LaserJet Toner Cartridge | G34: 404581.7045 | H34: 1 | I34: =SUMIF(ResumenCotizacion!$A:$A,temp!F34&temp!B34,ResumenCotizacion!$O:$O) -> 5 | J34: =(ROUND($G34/(1-VLOOKUP("Total porcentaje:",ResumenCotizacion!$F:$H,3,0)),2))*$I34 -> 2098452.8 | K34: 8
A35: UT OFIBEST-FORMACONHP 202X Cyan LaserJet Toner Cartridge1 | B35: 1 | C35: UT OFIBEST-FORMACON | D35: HP - SAMSUNG | E35: CF501X | F35: HP 202X Cyan LaserJet Toner Cartridge | G35: 426569.8407 | H35: 1 | I35: =SUMIF(ResumenCotizacion!$A:$A,temp!F35&temp!B35,ResumenCotizacion!$O:$O) -> 5 | J35: =(ROUND($G35/(1-VLOOKUP("Total porcentaje:",ResumenCotizacion!$F:$H,3,0)),2))*$I35 -> 2212499.15 | K35: 8
A36: UT OFIBEST-FORMACONHP 202X Yellow LaserJet Toner Cartridge1 | B36: 1 | C36: UT OFIBEST-FORMACON | D36: HP - SAMSUNG | E36: CF502X | F36: HP 202X Yellow LaserJet Toner Cartridge | G36: 426569.8407 | H36: 1 | I36: =SUMIF(ResumenCotizacion!$A:$A,temp!F36&temp!B36,ResumenCotizacion!$O:$O) -> 5 | J36: =(ROUND($G36/(1-VLOOKUP("Total porcentaje:",ResumenCotizacion!$F:$H,3,0)),2))*$I36 -> 2212499.15 | K36: 8
A37: UT OFIBEST-FORMACONHP 202X Magenta LaserJet Toner Cartridge1 | B37: 1 | C37: UT OFIBEST-FORMACON | D37: HP - SAMSUNG | E37: CF503X | F37: HP 202X Magenta LaserJet Toner Cartridge | G37: 426569.8407 | H37: 1 | I37: =SUMIF(ResumenCotizacion!$A:$A,temp!F37&temp!B37,ResumenCotizacion!$O:$O) -> 5 | J37: =(ROUND($G37/(1-VLOOKUP("Total porcentaje:",ResumenCotizacion!$F:$H,3,0)),2))*$I37 -> 2212499.15 | K37: 8
A38: UT OFIBEST-FORMACONHP CP3525/CM3530 MFP Cyan Print Crtg1 | B38: 1 | C38: UT OFIBEST-FORMACON | D38: HP - SAMSUNG | E38: CE251A | F38: HP CP3525/CM3530 MFP Cyan Print Crtg | G38: 1352121.844 | H38: 1 | I38: =SUMIF(ResumenCotizacion!$A:$A,temp!F38&temp!B38,ResumenCotizacion!$O:$O) -> 5 | J38: =(ROUND($G38/(1-VLOOKUP("Total porcentaje:",ResumenCotizacion!$F:$H,3,0)),2))*$I38 -> 7013080.1 | K38: 8
A39: UT OFIBEST-FORMACONHP CP3525/CM3530 MFP Black 5K Print Crtg1 | B39: 1 | C39: UT OFIBEST-FORMACON | D39: HP - SAMSUNG | E39: CE250A | F39: HP CP3525/CM3530 MFP Black 5K Print Crtg | G39: 610419.0304 | H39: 1 | I39: =SUMIF(ResumenCotizacion!$A:$A,temp!F39&temp!B39,ResumenCotizacion!$O:$O) -> 5 | J39: =(ROUND($G39/(1-VLOOKUP("Total porcentaje:",ResumenCotizacion!$F:$H,3,0)),2))*$I39 -> 3166073.8 | K39: 8
A40: UT OFIBEST-FORMACONHP CP3525/CM3530 MFP Yellow Print Crtg1 | B40: 1 | C40: UT OFIBEST-FORMACON | D40: HP - SAMSUNG | E40: CE252A | F40: HP CP3525/CM3530 MFP Yellow Print Crtg | G40: 1352121.844 | H40: 1 | I40: =SUMIF(ResumenCotizacion!$A:$A,temp!F40&temp!B40,ResumenCotizacion!$O:$O) -> 5 | J40: =(ROUND($G40/(1-VLOOKUP("Total porcentaje:",ResumenCotizacion!$F:$H,3,0)),2))*$I40 -> 7013080.1 | K40: 8
A41: UT OFIBEST-FORMACONHP CP3525/CM3530 MFP Magenta Print Crtg1 | B41: 1 | C41: UT OFIBEST-FORMACON | D41: HP - SAMSUNG | E41: CE253A | F41: HP CP3525/CM3530 MFP Magenta Print Crtg | G41: 1352121.844 | H41: 1 | I41: =SUMIF(ResumenCotizacion!$A:$A,temp!F41&temp!B41,ResumenCotizacion!$O:$O) -> 4 | J41: =(ROUND($G41/(1-VLOOKUP("Total porcentaje:",ResumenCotizacion!$F:$H,3,0)),2))*$I41 -> 5610464.08 | K41: 8
A42: HARDWARE ASESORIAS SOFTWARE LTDAHP 202X Black LaserJet Toner Cartridge1 | B42: 1 | C42: HARDWARE ASESORIAS SOFTWARE LTDA | D42: HP - SAMSUNG | E42: CF500X | F42: HP 202X Black LaserJet Toner Cartridge | G42: 425693.8239 | H42: 1 | I42: =SUMIF(ResumenCotizacion!$A:$A,temp!F42&temp!B42,ResumenCotizacion!$O:$O) -> 5 | J42: =(ROUND($G42/(1-VLOOKUP("Total porcentaje:",ResumenCotizacion!$F:$H,3,0)),2))*$I42 -> 2207955.5 | K42: 8
A43: HARDWARE ASESORIAS SOFTWARE LTDAHP 202X Cyan LaserJet Toner Cartridge1 | B43: 1 | C43: HARDWARE ASESORIAS SOFTWARE LTDA | D43: HP - SAMSUNG | E43: CF501X | F43: HP 202X Cyan LaserJet Toner Cartridge | G43: 448819.9561 | H43: 1 | I43: =SUMIF(ResumenCotizacion!$A:$A,temp!F43&temp!B43,ResumenCotizacion!$O:$O) -> 5 | J43: =(ROUND($G43/(1-VLOOKUP("Total porcentaje:",ResumenCotizacion!$F:$H,3,0)),2))*$I43 -> 2327904.35 | K43: 8
A44: HARDWARE ASESORIAS SOFTWARE LTDAHP 202X Yellow LaserJet Toner Cartridge1 | B44: 1 | C44: HARDWARE ASESORIAS SOFTWARE LTDA | D44: HP - SAMSUNG | E44: CF502X | F44: HP 202X Yellow LaserJet Toner Cartridge | G44: 448819.9561 | H44: 1 | I44: =SUMIF(ResumenCotizacion!$A:$A,temp!F44&temp!B44,ResumenCotizacion!$O:$O) -> 5 | J44: =(ROUND($G44/(1-VLOOKUP("Total porcentaje:",ResumenCotizacion!$F:$H,3,0)),2))*$I44 -> 2327904.35 | K44: 8
A45: HARDWARE ASESORIAS SOFTWARE LTDAHP 202X Magenta LaserJet Toner Cartridge1 | B45: 1 | C45: HARDWARE ASESORIAS SOFTWARE LTDA | D45: HP - SAMSUNG | E45: CF503X | F45: HP 202X Magenta LaserJet Toner Cartridge | G45: 448819.9561 | H45: 1 | I45: =SUMIF(ResumenCotizacion!$A:$A,temp!F45&temp!B45,ResumenCotizacion!$O:$O) -> 5 | J45: =(ROUND($G45/(1-VLOOKUP("Total porcentaje:",ResumenCotizacion!$F:$H,3,0)),2))*$I45 -> 2327904.35 | K45: 8
A46: HARDWARE ASESORIAS SOFTWARE LTDAHP CP3525/CM3530 MFP Cyan Print Crtg1 | B46: 1 | C46: HARDWARE ASESORIAS SOFTWARE LTDA | D46: HP - SAMSUNG | E46: CE251A | F46: HP CP3525/CM3530 MFP Cyan Print Crtg | G46: 1339776.393 | H46: 1 | I46: =SUMIF(ResumenCotizacion!$A:$A,temp!F46&temp!B46,ResumenCotizacion!$O:$O) -> 5 | J46: =(ROUND($G46/(1-VLOOKUP("Total porcentaje:",ResumenCotizacion!$F:$H,3,0)),2))*$I46 -> 6949047.7 | K46: 8
A47: HARDWARE ASESORIAS SOFTWARE LTDAHP CP3525/CM3530 MFP Black 5K Print Crtg1 | B47: 1 | C47: HARDWARE ASESORIAS SOFTWARE LTDA | D47: HP - SAMSUNG | E47: CE250A | F47: HP CP3525/CM3530 MFP Black 5K Print Crtg | G47: 682391.6155 | H47: 1 | I47: =SUMIF(ResumenCotizacion!$A:$A,temp!F47&temp!B47,ResumenCotizacion!$O:$O) -> 5 | J47: =(ROUND($G47/(1-VLOOKUP("Total porcentaje:",ResumenCotizacion!$F:$H,3,0)),2))*$I47 -> 3539375.6 | K47: 8
A48: HARDWARE ASESORIAS SOFTWARE LTDAHP CP3525/CM3530 MFP Yellow Print Crtg1 | B48: 1 | C48: HARDWARE ASESORIAS SOFTWARE LTDA | D48: HP - SAMSUNG | E48: CE252A | F48: HP CP3525/CM3530 MFP Yellow Print Crtg | G48: 1339776.393 | H48: 1 | I48: =SUMIF(ResumenCotizacion!$A:$A,temp!F48&temp!B48,ResumenCotizacion!$O:$O) -> 5 | J48: =(ROUND($G48/(1-VLOOKUP("Total porcentaje:",ResumenCotizacion!$F:$H,3,0)),2))*$I48 -> 6949047.7 | K48: 8
A49: HARDWARE ASESORIAS SOFTWARE LTDAHP CP3525/CM3530 MFP Magenta Print Crtg1 | B49: 1 | C49: HARDWARE ASESORIAS SOFTWARE LTDA | D49: HP - SAMSUNG | E49: CE253A | F49: HP CP3525/CM3530 MFP Magenta Print Crtg | G49: 1339776.393 | H49: 1 | I49: =SUMIF(ResumenCotizacion!$A:$A,temp!F49&temp!B49,ResumenCotizacion!$O:$O) -> 4 | J49: =(ROUND($G49/(1-VLOOKUP("Total porcentaje:",ResumenCotizacion!$F:$H,3,0)),2))*$I49 -> 5559238.16 | K49: 8
A50: COMERCIALIZADORA SERLE.COM SASHP 202X Black LaserJet Toner Cartridge1 | B50: 1 | C50: COMERCIALIZADORA SERLE.COM SAS | D50: HP - SAMSUNG | E50: CF500X | F50: HP 202X Black LaserJet Toner Cartridge | G50: 452774.0769 | H50: 1 | I50: =SUMIF(ResumenCotizacion!$A:$A,temp!F50&temp!B50,ResumenCotizacion!$O:$O) -> 5 | J50: =(ROUND($G50/(1-VLOOKUP("Total porcentaje:",ResumenCotizacion!$F:$H,3,0)),2))*$I50 -> 2348413.25 | K50: 8
A51: COMERCIALIZADORA SERLE.COM SASHP 202X Cyan LaserJet Toner Cartridge1 | B51: 1 | C51: COMERCIALIZADORA SERLE.COM SAS | D51: HP - SAMSUNG | E51: CF501X | F51: HP 202X Cyan LaserJet Toner Cartridge | G51: 477381.3637 | H51: 1 | I51: =SUMIF(ResumenCotizacion!$A:$A,temp!F51&temp!B51,ResumenCotizacion!$O:$O) -> 5 | J51: =(ROUND($G51/(1-VLOOKUP("Total porcentaje:",ResumenCotizacion!$F:$H,3,0)),2))*$I51 -> 2476044.4 | K51: 8
A52: COMERCIALIZADORA SERLE.COM SASHP 202X Yellow LaserJet Toner Cartridge1 | B52: 1 | C52: COMERCIALIZADORA SERLE.COM SAS | D52: HP - SAMSUNG | E52: CF502X | F52: HP 202X Yellow LaserJet Toner Cartridge | G52: 477381.3637 | H52: 1 | I52: =SUMIF(ResumenCotizacion!$A:$A,temp!F52&temp!B52,ResumenCotizacion!$O:$O) -> 5 | J52: =(ROUND($G52/(1-VLOOKUP("Total porcentaje:",ResumenCotizacion!$F:$H,3,0)),2))*$I52 -> 2476044.4 | K52: 8
A53: COMERCIALIZADORA SERLE.COM SASHP 202X Magenta LaserJet Toner Cartridge1 | B53: 1 | C53: COMERCIALIZADORA SERLE.COM SAS | D53: HP - SAMSUNG | E53: CF503X | F53: HP 202X Magenta LaserJet Toner Cartridge | G53: 477381.3637 | H53: 1 | I53: =SUMIF(ResumenCotizacion!$A:$A,temp!F53&temp!B53,ResumenCotizacion!$O:$O) -> 5 | J53: =(ROUND($G53/(1-VLOOKUP("Total porcentaje:",ResumenCotizacion!$F:$H,3,0)),2))*$I53 -> 2476044.4 | K53: 8
A54: COMERCIALIZADORA SERLE.COM SASHP CP3525/CM3530 MFP Cyan Print Crtg1 | B54: 1 | C54: COMERCIALIZADORA SERLE.COM SAS | D54: HP - SAMSUNG | E54: CE251A | F54: HP CP3525/CM3530 MFP Cyan Print Crtg | G54: 1341229.427 | H54: 1 | I54: =SUMIF(ResumenCotizacion!$A:$A,temp!F54&temp!B54,ResumenCotizacion!$O:$O) -> 5 | J54: =(ROUND($G54/(1-VLOOKUP("Total porcentaje:",ResumenCotizacion!$F:$H,3,0)),2))*$I54 -> 6956584.15 | K54: 8
A55: COMERCIALIZADORA SERLE.COM SASHP CP3525/CM3530 MFP Black 5K Print Crtg1 | B55: 1 | C55: COMERCIALIZADORA SERLE.COM SAS | D55: HP - SAMSUNG | E55: CE250A | F55: HP CP3525/CM3530 MFP Black 5K Print Crtg | G55: 683130.0326 | H55: 1 | I55: =SUMIF(ResumenCotizacion!$A:$A,temp!F55&temp!B55,ResumenCotizacion!$O:$O) -> 5 | J55: =(ROUND($G55/(1-VLOOKUP("Total porcentaje:",ResumenCotizacion!$F:$H,3,0)),2))*$I55 -> 3543205.55 | K55: 8
A56: COMERCIALIZADORA SERLE.COM SASHP CP3525/CM3530 MFP Yellow Print Crtg1 | B56: 1 | C56: COMERCIALIZADORA SERLE.COM SAS | D56: HP - SAMSUNG | E56: CE252A | F56: HP CP3525/CM3530 MFP Yellow Print Crtg | G56: 1341229.427 | H56: 1 | I56: =SUMIF(ResumenCotizacion!$A:$A,temp!F56&temp!B56,ResumenCotizacion!$O:$O) -> 5 | J56: =(ROUND($G56/(1-VLOOKUP("Total porcentaje:",ResumenCotizacion!$F:$H,3,0)),2))*$I56 -> 6956584.15 | K56: 8
A57: COMERCIALIZADORA SERLE.COM SASHP CP3525/CM3530 MFP Magenta Print Crtg1 | B57: 1 | C57: COMERCIALIZADORA SERLE.COM SAS | D57: HP - SAMSUNG | E57: CE253A | F57: HP CP3525/CM3530 MFP Magenta Print Crtg | G57: 1341229.427 | H57: 1 | I57: =SUMIF(ResumenCotizacion!$A:$A,temp!F57&temp!B57,ResumenCotizacion!$O:$O) -> 4 | J57: =(ROUND($G57/(1-VLOOKUP("Total porcentaje:",ResumenCotizacion!$F:$H,3,0)),2))*$I57 -> 5565267.32 | K57: 8
A58: MICRONET SASHP 202X Black LaserJet Toner Cartridge1 | B58: 1 | C58: MICRONET SAS | D58: HP - SAMSUNG | E58: CF500X | F58: HP 202X Black LaserJet Toner Cartridge | G58: 409400 | H58: 1 | I58: =SUMIF(ResumenCotizacion!$A:$A,temp!F58&temp!B58,ResumenCotizacion!$O:$O) -> 5 | J58: =(ROUND($G58/(1-VLOOKUP("Total porcentaje:",ResumenCotizacion!$F:$H,3,0)),2))*$I58 -> 2123444 | K58: 8
A59: MICRONET SASHP 202X Cyan LaserJet Toner Cartridge1 | B59: 1 | C59: MICRONET SAS | D59: HP - SAMSUNG | E59: CF501X | F59: HP 202X Cyan LaserJet Toner Cartridge | G59: 431100 | H59: 1 | I59: =SUMIF(ResumenCotizacion!$A:$A,temp!F59&temp!B59,ResumenCotizacion!$O:$O) -> 5 | J59: =(ROUND($G59/(1-VLOOKUP("Total porcentaje:",ResumenCotizacion!$F:$H,3,0)),2))*$I59 -> 2235995.85 | K59: 8
A60: MICRONET SASHP 202X Yellow LaserJet Toner Cartridge1 | B60: 1 | C60: MICRONET SAS | D60: HP - SAMSUNG | E60: CF502X | F60: HP 202X Yellow LaserJet Toner Cartridge | G60: 431100 | H60: 1 | I60: =SUMIF(ResumenCotizacion!$A:$A,temp!F60&temp!B60,ResumenCotizacion!$O:$O) -> 5 | J60: =(ROUND($G60/(1-VLOOKUP("Total porcentaje:",ResumenCotizacion!$F:$H,3,0)),2))*$I60 -> 2235995.85 | K60: 8
A61: MICRONET SASHP 202X Magenta LaserJet Toner Cartridge1 | B61: 1 | C61: MICRONET SAS | D61: HP - SAMSUNG | E61: CF503X | F61: HP 202X Magenta LaserJet Toner Cartridge | G61: 431100 | H61: 1 | I61: =SUMIF(ResumenCotizacion!$A:$A,temp!F61&temp!B61,ResumenCotizacion!$O:$O) -> 5 | J61: =(ROUND($G61/(1-VLOOKUP("Total porcentaje:",ResumenCotizacion!$F:$H,3,0)),2))*$I61 -> 2235995.85 | K61: 8
A62: MICRONET SASHP CP3525/CM3530 MFP Cyan Print Crtg1 | B62: 1 | C62: MICRONET SAS | D62: HP - SAMSUNG | E62: CE251A | F62: HP CP3525/CM3530 MFP Cyan Print Crtg | G62: 1191300 | H62: 1 | I62: =SUMIF(ResumenCotizacion!$A:$A,temp!F62&temp!B62,ResumenCotizacion!$O:$O) -> 5 | J62: =(ROUND($G62/(1-VLOOKUP("Total porcentaje:",ResumenCotizacion!$F:$H,3,0)),2))*$I62 -> 6178941.9 | K62: 8
A63: MICRONET SASHP CP3525/CM3530 MFP Black 5K Print Crtg1 | B63: 1 | C63: MICRONET SAS | D63: HP - SAMSUNG | E63: CE250A | F63: HP CP3525/CM3530 MFP Black 5K Print Crtg | G63: 612200 | H63: 1 | I63: =SUMIF(ResumenCotizacion!$A:$A,temp!F63&temp!B63,ResumenCotizacion!$O:$O) -> 5 | J63: =(ROUND($G63/(1-VLOOKUP("Total porcentaje:",ResumenCotizacion!$F:$H,3,0)),2))*$I63 -> 3175311.2 | K63: 8
A64: MICRONET SASHP CP3525/CM3530 MFP Yellow Print Crtg1 | B64: 1 | C64: MICRONET SAS | D64: HP - SAMSUNG | E64: CE252A | F64: HP CP3525/CM3530 MFP Yellow Print Crtg | G64: 1191300 | H64: 1 | I64: =SUMIF(ResumenCotizacion!$A:$A,temp!F64&temp!B64,ResumenCotizacion!$O:$O) -> 5 | J64: =(ROUND($G64/(1-VLOOKUP("Total porcentaje:",ResumenCotizacion!$F:$H,3,0)),2))*$I64 -> 6178941.9 | K64: 8
A65: MICRONET SASHP CP3525/CM3530 MFP Magenta Print Crtg1 | B65: 1 | C65: MICRONET SAS | D65: HP - SAMSUNG | E65: CE253A | F65: HP CP3525/CM3530 MFP Magenta Print Crtg | G65: 1191300 | H65: 1 | I65: =SUMIF(ResumenCotizacion!$A:$A,temp!F65&temp!B65,ResumenCotizacion!$O:$O) -> 4 | J65: =(ROUND($G65/(1-VLOOKUP("Total porcentaje:",ResumenCotizacion!$F:$H,3,0)),2))*$I65 -> 4943153.52 | K65: 8
A66: GRAN IMAGEN S.A.S.HP 202X Black LaserJet Toner Cartridge1 | B66: 1 | C66: GRAN IMAGEN S.A.S. | D66: HP - SAMSUNG | E66: CF500X | F66: HP 202X Black LaserJet Toner Cartridge | G66: 390600 | H66: 1 | I66: =SUMIF(ResumenCotizacion!$A:$A,temp!F66&temp!B66,ResumenCotizacion!$O:$O) -> 5 | J66: =(ROUND($G66/(1-VLOOKUP("Total porcentaje:",ResumenCotizacion!$F:$H,3,0)),2))*$I66 -> 2025933.6 | K66: 8
A67: GRAN IMAGEN S.A.S.HP 202X Cyan LaserJet Toner Cartridge1 | B67: 1 | C67: GRAN IMAGEN S.A.S. | D67: HP - SAMSUNG | E67: CF501X | F67: HP 202X Cyan LaserJet Toner Cartridge | G67: 411828.2609 | H67: 1 | I67: =SUMIF(ResumenCotizacion!$A:$A,temp!F67&temp!B67,ResumenCotizacion!$O:$O) -> 5 | J67: =(ROUND($G67/(1-VLOOKUP("Total porcentaje:",ResumenCotizacion!$F:$H,3,0)),2))*$I67 -> 2136038.7 | K67: =COUNTIF(C:C,C67) -> 8
A68: GRAN IMAGEN S.A.S.HP 202X Yellow LaserJet Toner Cartridge1 | B68: 1 | C68: GRAN IMAGEN S.A.S. | D68: HP - SAMSUNG | E68: CF502X | F68: HP 202X Yellow LaserJet Toner Cartridge | G68: 411828.2609 | H68: 1 | I68: =SUMIF(ResumenCotizacion!$A:$A,temp!F68&temp!B68,ResumenCotizacion!$O:$O) -> 5 | J68: =(ROUND($G68/(1-VLOOKUP("Total porcentaje:",ResumenCotizacion!$F:$H,3,0)),2))*$I68 -> 2136038.7 | K68: 8
A69: GRAN IMAGEN S.A.S.HP 202X Magenta LaserJet Toner Cartridge1 | B69: 1 | C69: GRAN IMAGEN S.A.S. | D69: HP - SAMSUNG | E69: CF503X | F69: HP 202X Magenta LaserJet Toner Cartridge | G69: 411828.2609 | H69: 1 | I69: =SUMIF(ResumenCotizacion!$A:$A,temp!F69&temp!B69,ResumenCotizacion!$O:$O) -> 5 | J69: =(ROUND($G69/(1-VLOOKUP("Total porcentaje:",ResumenCotizacion!$F:$H,3,0)),2))*$I69 -> 2136038.7 | K69: 8
A70: GRAN IMAGEN S.A.S.HP CP3525/CM3530 MFP Cyan Print Crtg1 | B70: 1 | C70: GRAN IMAGEN S.A.S. | D70: HP - SAMSUNG | E70: CE251A | F70: HP CP3525/CM3530 MFP Cyan Print Crtg | G70: 1157054.348 | H70: 1 | I70: =SUMIF(ResumenCotizacion!$A:$A,temp!F70&temp!B70,ResumenCotizacion!$O:$O) -> 5 | J70: =(ROUND($G70/(1-VLOOKUP("Total porcentaje:",ResumenCotizacion!$F:$H,3,0)),2))*$I70 -> 6001319.25 | K70: 8
A71: GRAN IMAGEN S.A.S.HP CP3525/CM3530 MFP Black 5K Print Crtg1 | B71: 1 | C71: GRAN IMAGEN S.A.S. | D71: HP - SAMSUNG | E71: CE250A | F71: HP CP3525/CM3530 MFP Black 5K Print Crtg | G71: 589323.913 | H71: 1 | I71: =SUMIF(ResumenCotizacion!$A:$A,temp!F71&temp!B71,ResumenCotizacion!$O:$O) -> 5 | J71: =(ROUND($G71/(1-VLOOKUP("Total porcentaje:",ResumenCotizacion!$F:$H,3,0)),2))*$I71 -> 3056659.3 | K71: 8
A72: GRAN IMAGEN S.A.S.HP CP3525/CM3530 MFP Yellow Print Crtg1 | B72: 1 | C72: GRAN IMAGEN S.A.S. | D72: HP - SAMSUNG | E72: CE252A | F72: HP CP3525/CM3530 MFP Yellow Print Crtg | G72: 1157054.348 | H72: 1 | I72: =SUMIF(ResumenCotizacion!$A:$A,temp!F72&temp!B72,ResumenCotizacion!$O:$O) -> 5 | J72: =(ROUND($G72/(1-VLOOKUP("Total porcentaje:",ResumenCotizacion!$F:$H,3,0)),2))*$I72 -> 6001319.25 | K72: 8
A73: GRAN IMAGEN S.A.S.HP CP3525/CM3530 MFP Magenta Print Crtg1 | B73: 1 | C73: GRAN IMAGEN S.A.S. | D73: HP - SAMSUNG | E73: CE253A | F73: HP CP3525/CM3530 MFP Magenta Print Crtg | G73: 1157054.348 | H73: 1 | I73: =SUMIF(ResumenCotizacion!$A:$A,temp!F73&temp!B73,ResumenCotizacion!$O:$O) -> 4 | J73: =(ROUND($G73/(1-VLOOKUP("Total porcentaje:",ResumenCotizacion!$F:$H,3,0)),2))*$I73 -> 4801055.4 | K73: 8

Sheet tempListas (hidden)
A1: proveedor
A2: COMERCIALIZADORA SERLE.COM SAS
A3: DISTRIBUIDORA Y PAPELERIA VENEPLAST LTDA
A4: GRAN IMAGEN S.A.S.
A5: HARDWARE ASESORIAS SOFTWARE LTDA
A6: KEY MARKET SAS
A7: MICRONET SAS
A8: PROSUTEC SAS
A9: UNIPLES S.A
A10: UT OFIBEST-FORMACON

Sheet Remanufacturado (hidden)
A1: ID_PRODUCTO | B1: REGION | C1: proveedor | D1: CATEGORÍA | E1: PRODUCTO | F1: DESCRIPCIÓN | G1: valor | H1: Activo | I1: llave2
A2: Alianza Estratégica Outsourcing & Suministros S.A.S.R_EPSON ERC09A | B2: A | C2: Alianza Estratégica Outsourcing & Suministros S.A.S. | D2: EPSON | E2: R_EPSON ERC09 | F2: R_EPSON ERC09 | G2: 5394 | H2: 1 | I2: R_EPSON ERC09A
A3: Alianza Estratégica Outsourcing & Suministros S.A.S.R_EPSON ERC27A | B3: A | C3: Alianza Estratégica Outsourcing & Suministros S.A.S. | D3: EPSON | E3: R_EPSON ERC27 | F3: R_EPSON ERC27 | G3: 5394 | H3: 1 | I3: R_EPSON ERC27A
A4: Alianza Estratégica Outsourcing & Suministros S.A.S.R_EPSON ERC09B | B4: B | C4: Alianza Estratégica Outsourcing & Suministros S.A.S. | D4: EPSON | E4: R_EPSON ERC09 | F4: R_EPSON ERC09 | G4: 5394 | H4: 1 | I4: R_EPSON ERC09B
A5: Alianza Estratégica Outsourcing & Suministros S.A.S.R_EPSON ERC27B | B5: B | C5: Alianza Estratégica Outsourcing & Suministros S.A.S. | D5: EPSON | E5: R_EPSON ERC27 | F5: R_EPSON ERC27 | G5: 5394 | H5: 1 | I5: R_EPSON ERC27B
A6: Alianza Estratégica Outsourcing & Suministros S.A.S.R_EPSON ERC09C | B6: C | C6: Alianza Estratégica Outsourcing & Suministros S.A.S. | D6: EPSON | E6: R_EPSON ERC09 | F6: R_EPSON ERC09 | G6: 5628 | H6: 1 | I6: R_EPSON ERC09C
A7: Alianza Estratégica Outsourcing & Suministros S.A.S.R_EPSON ERC27C | B7: C | C7: Alianza Estratégica Outsourcing & Suministros S.A.S. | D7: EPSON | E7: R_EPSON ERC27 | F7: R_EPSON ERC27 | G7: 5628 | H7: 1 | I7: R_EPSON ERC27C
A8: Alianza Estratégica Outsourcing & Suministros S.A.S.R_EPSON ERC30A | B8: A | C8: Alianza Estratégica Outsourcing & Suministros S.A.S. | D8: EPSON | E8: R_EPSON ERC30 | F8: R_EPSON ERC30 | G8: 5877 | H8: 1 | I8: R_EPSON ERC30A
A9: Alianza Estratégica Outsourcing & Suministros S.A.S.R_EPSON ERC34A | B9: A | C9: Alianza Estratégica Outsourcing & Suministros S.A.S. | D9: EPSON | E9: R_EPSON ERC34 | F9: R_EPSON ERC34 | G9: 5877 | H9: 1 | I9: R_EPSON ERC34A
A10: Alianza Estratégica Outsourcing & Suministros S.A.S.R_EPSON ERC30B | B10: B | C10: Alianza Estratégica Outsourcing & Suministros S.A.S. | D10: EPSON | E10: R_EPSON ERC30 | F10: R_EPSON ERC30 | G10: 5877 | H10: 1 | I10: R_EPSON ERC30B
A11: Alianza Estratégica Outsourcing & Suministros S.A.S.R_EPSON ERC34B | B11: B | C11: Alianza Estratégica Outsourcing & Suministros S.A.S. | D11: EPSON | E11: R_EPSON ERC34 | F11: R_EPSON ERC34 | G11: 5877 | H11: 1 | I11: R_EPSON ERC34B
A12: Alianza Estratégica Outsourcing & Suministros S.A.S.R_EPSON ERC30C | B12: C | C12: Alianza Estratégica Outsourcing & Suministros S.A.S. | D12: EPSON | E12: R_EPSON ERC30 | F12: R_EPSON ERC30 | G12: 6132 | H12: 1 | I12: R_EPSON ERC30C
A13: Alianza Estratégica Outsourcing & Suministros S.A.S.R_EPSON ERC34C | B13: C | C13: Alianza Estratégica Outsourcing & Suministros S.A.S. | D13: EPSON | E13: R_EPSON ERC34 | F13: R_EPSON ERC34 | G13: 6132 | H13: 1 | I13: R_EPSON ERC34C
A14: Alianza Estratégica Outsourcing & Suministros S.A.S.R_EPSON ERC23A | B14: A | C14: Alianza Estratégica Outsourcing & Suministros S.A.S. | D14: EPSON | E14: R_EPSON ERC23 | F14: R_EPSON ERC23 | G14: 6279 | H14: 1 | I14: R_EPSON ERC23A
A15: Alianza Estratégica Outsourcing & Suministros S.A.S.R_EPSON ERC23B | B15: B | C15: Alianza Estratégica Outsourcing & Suministros S.A.S. | D15: EPSON | E15: R_EPSON ERC23 | F15: R_EPSON ERC23 | G15: 6279 | H15: 1 | I15: R_EPSON ERC23B
A16: Alianza Estratégica Outsourcing & Suministros S.A.S.R_EPSON ERC23C | B16: C | C16: Alianza Estratégica Outsourcing & Suministros S.A.S. | D16: EPSON | E16: R_EPSON ERC23 | F16: R_EPSON ERC23 | G16: 6552 | H16: 1 | I16: R_EPSON ERC23C
A17: Alianza Estratégica Outsourcing & Suministros S.A.S.R_EPSON LX300A | B17: A | C17: Alianza Estratégica Outsourcing & Suministros S.A.S. | D17: EPSON | E17: R_EPSON LX300 | F17: R_EPSON LX300 | G17: 6360 | H17: 1 | I17: R_EPSON LX300A
A18: Alianza Estratégica Outsourcing & Suministros S.A.S.R_EPSON LX300B | B18: B | C18: Alianza Estratégica Outsourcing & Suministros S.A.S. | D18: EPSON | E18: R_EPSON LX300 | F18: R_EPSON LX300 | G18: 6360 | H18: 1 | I18: R_EPSON LX300B
A19: Alianza Estratégica Outsourcing & Suministros S.A.S.R_EPSON LX300C | B19: C | C19: Alianza Estratégica Outsourcing & Suministros S.A.S. | D19: EPSON | E19: R_EPSON LX300 | F19: R_EPSON LX300 | G19: 6636 | H19: 1 | I19: R_EPSON LX300C
A20: Alianza Estratégica Outsourcing & Suministros S.A.S.R_EPSON ERC39A | B20: A | C20: Alianza Estratégica Outsourcing & Suministros S.A.S. | D20: EPSON | E20: R_EPSON ERC39 | F20: R_EPSON ERC39 | G20: 6440 | H20: 1 | I20: R_EPSON ERC39A
A21: Alianza Estratégica Outsourcing & Suministros S.A.S.R_EPSON ERC39B | B21: B | C21: Alianza Estratégica Outsourcing & Suministros S.A.S. | D21: EPSON | E21: R_EPSON ERC39 | F21: R_EPSON ERC39 | G21: 6440 | H21: 1 | I21: R_EPSON ERC39B
A22: Alianza Estratégica Outsourcing & Suministros S.A.S.R_EPSON ERC39C | B22: C | C22: Alianza Estratégica Outsourcing & Suministros S.A.S. | D22: EPSON | E22: R_EPSON ERC39 | F22: R_EPSON ERC39 | G22: 6720 | H22: 1 | I22: R_EPSON ERC39C
A23: Alianza Estratégica Outsourcing & Suministros S.A.S.R_EPSON ERC03A | B23: A | C23: Alianza Estratégica Outsourcing & Suministros S.A.S. | D23: EPSON | E23: R_EPSON ERC03 | F23: R_EPSON ERC03 | G23: 6521 | H23: 1 | I23: R_EPSON ERC03A
A24: Alianza Estratégica Outsourcing & Suministros S.A.S.R_EPSON ERC03B | B24: B | C24: Alianza Estratégica Outsourcing & Suministros S.A.S. | D24: EPSON | E24: R_EPSON ERC03 | F24: R_EPSON ERC03 | G24: 6521 | H24: 1 | I24: R_EPSON ERC03B
A25: Alianza Estratégica Outsourcing & Suministros S.A.S.R_EPSON ERC03C | B25: C | C25: Alianza Estratégica Outsourcing & Suministros S.A.S. | D25: EPSON | E25: R_EPSON ERC03 | F25: R_EPSON ERC03 | G25: 6804 | H25: 1 | I25: R_EPSON ERC03C
A26: Alianza Estratégica Outsourcing & Suministros S.A.S.R_EPSON AP3250A | B26: A | C26: Alianza Estratégica Outsourcing & Suministros S.A.S. | D26: EPSON | E26: R_EPSON AP3250 | F26: R_EPSON AP3250 | G26: 6900 | H26: 1 | I26: R_EPSON AP3250A
A27: Alianza Estratégica Outsourcing & Suministros S.A.S.R_EPSON ERC31A | B27: A | C27: Alianza Estratégica Outsourcing & Suministros S.A.S. | D27: EPSON | E27: R_EPSON ERC31 | F27: R_EPSON ERC31 | G27: 6900 | H27: 1 | I27: R_EPSON ERC31A
A28: Alianza Estratégica Outsourcing & Suministros S.A.S.R_EPSON AP3250B | B28: B | C28: Alianza Estratégica Outsourcing & Suministros S.A.S. | D28: EPSON | E28: R_EPSON AP3250 | F28: R_EPSON AP3250 | G28: 6900 | H28: 1 | I28: R_EPSON AP3250B
A29: Alianza Estratégica Outsourcing & Suministros S.A.S.R_EPSON ERC31B | B29: B | C29: Alianza Estratégica Outsourcing & Suministros S.A.S. | D29: EPSON | E29: R_EPSON ERC31 | F29: R_EPSON ERC31 | G29: 6900 | H29: 1 | I29: R_EPSON ERC31B
A30: Alianza Estratégica Outsourcing & Suministros S.A.S.R_EPSON AP3250C | B30: C | C30: Alianza Estratégica Outsourcing & Suministros S.A.S. | D30: EPSON | E30: R_EPSON AP3250 | F30: R_EPSON AP3250 | G30: 7200 | H30: 1 | I30: R_EPSON AP3250C
A31: Alianza Estratégica Outsourcing & Suministros S.A.S.R_EPSON ERC31C | B31: C | C31: Alianza Estratégica Outsourcing & Suministros S.A.S. | D31: EPSON | E31: R_EPSON ERC31 | F31: R_EPSON ERC31 | G31: 7200 | H31: 1 | I31: R_EPSON ERC31C
A32: Alianza Estratégica Outsourcing & Suministros S.A.S.R_EPSON ERC19A | B32: A | C32: Alianza Estratégica Outsourcing & Suministros S.A.S. | D32: EPSON | E32: R_EPSON ERC19 | F32: R_EPSON ERC19 | G32: 6923 | H32: 1 | I32: R_EPSON ERC19A
A33: Alianza Estratégica Outsourcing & Suministros S.A.S.R_EPSON ERC32A | B33: A | C33: Alianza Estratégica Outsourcing & Suministros S.A.S. | D33: EPSON | E33: R_EPSON ERC32 | F33: R_EPSON ERC32 | G33: 6923 | H33: 1 | I33: R_EPSON ERC32A
A34: Alianza Estratégica Outsourcing & Suministros S.A.S.R_EPSON ERC19B | B34: B | C34: Alianza Estratégica Outsourcing & Suministros S.A.S. | D34: EPSON | E34: R_EPSON ERC19 | F34: R_EPSON ERC19 | G34: 6923 | H34: 1 | I34: R_EPSON ERC19B
A35: Alianza Estratégica Outsourcing & Suministros S.A.S.R_EPSON ERC32B | B35: B | C35: Alianza Estratégica Outsourcing & Suministros S.A.S. | D35: EPSON | E35: R_EPSON ERC32 | F35: R_EPSON ERC32 | G35: 6923 | H35: 1 | I35: R_EPSON ERC32B
A36: Alianza Estratégica Outsourcing & Suministros S.A.S.R_EPSON ERC19C | B36: C | C36: Alianza Estratégica Outsourcing & Suministros S.A.S. | D36: EPSON | E36: R_EPSON ERC19 | F36: R_EPSON ERC19 | G36: 7224 | H36: 1 | I36: R_EPSON ERC19C
A37: Alianza Estratégica Outsourcing & Suministros S.A.S.R_EPSON ERC32C | B37: C | C37: Alianza Estratégica Outsourcing & Suministros S.A.S. | D37: EPSON | E37: R_EPSON ERC32 | F37: R_EPSON ERC32 | G37: 7224 | H37: 1 | I37: R_EPSON ERC32C
A38: Alianza Estratégica Outsourcing & Suministros S.A.S.R_EPSON ERC22A | B38: A | C38: Alianza Estratégica Outsourcing & Suministros S.A.S. | D38: EPSON | E38: R_EPSON ERC22 | F38: R_EPSON ERC22 | G38: 7165 | H38: 1 | I38: R_EPSON ERC22A
A39: Alianza Estratégica Outsourcing & Suministros S.A.S.R_EPSON FX100A | B39: A | C39: Alianza Estratégica Outsourcing & Suministros S.A.S. | D39: EPSON | E39: R_EPSON FX100 | F39: R_EPSON FX100 | G39: 7165 | H39: 1 | I39: R_EPSON FX100A
A40: Alianza Estratégica Outsourcing & Suministros S.A.S.R_EPSON ERC22B | B40: B | C40: Alianza Estratégica Outsourcing & Suministros S.A.S. | D40: EPSON | E40: R_EPSON ERC22 | F40: R_EPSON ERC22 | G40: 7165 | H40: 1 | I40: R_EPSON ERC22B
A41: Alianza Estratégica Outsourcing & Suministros S.A.S.R_EPSON FX100B | B41: B | C41: Alianza Estratégica Outsourcing & Suministros S.A.S. | D41: EPSON | E41: R_EPSON FX100 | F41: R_EPSON FX100 | G41: 7165 | H41: 1 | I41: R_EPSON FX100B
A42: Alianza Estratégica Outsourcing & Suministros S.A.S.R_EPSON ERC22C | B42: C | C42: Alianza Estratégica Outsourcing & Suministros S.A.S. | D42: EPSON | E42: R_EPSON ERC22 | F42: R_EPSON ERC22 | G42: 7476 | H42: 1 | I42: R_EPSON ERC22C
A43: Alianza Estratégica Outsourcing & Suministros S.A.S.R_EPSON FX100C | B43: C | C43: Alianza Estratégica Outsourcing & Suministros S.A.S. | D43: EPSON | E43: R_EPSON FX100 | F43: R_EPSON FX100 | G43: 7476 | H43: 1 | I43: R_EPSON FX100C
A44: Alianza Estratégica Outsourcing & Suministros S.A.S.R_EPSON LQ2500A | B44: A | C44: Alianza Estratégica Outsourcing & Suministros S.A.S. | D44: EPSON | E44: R_EPSON LQ2500 | F44: R_EPSON LQ2500 | G44: 7648 | H44: 1 | I44: R_EPSON LQ2500A
A45: Alianza Estratégica Outsourcing & Suministros S.A.S.R_EPSON LQ2500B | B45: B | C45: Alianza Estratégica Outsourcing & Suministros S.A.S. | D45: EPSON | E45: R_EPSON LQ2500 | F45: R_EPSON LQ2500 | G45: 7648 | H45: 1 | I45: R_EPSON LQ2500B
A46: Alianza Estratégica Outsourcing & Suministros S.A.S.R_EPSON LQ2500C | B46: C | C46: Alianza Estratégica Outsourcing & Suministros S.A.S. | D46: EPSON | E46: R_EPSON LQ2500 | F46: R_EPSON LQ2500 | G46: 7980 | H46: 1 | I46: R_EPSON LQ2500C
A47: Alianza Estratégica Outsourcing & Suministros S.A.S.R_EPSON LX350A | B47: A | C47: Alianza Estratégica Outsourcing & Suministros S.A.S. | D47: EPSON | E47: R_EPSON LX350 | F47: R_EPSON LX350 | G47: 7970 | H47: 1 | I47: R_EPSON LX350A
A48: Alianza Estratégica Outsourcing & Suministros S.A.S.R_EPSON LQ1000A | B48: A | C48: Alianza Estratégica Outsourcing & Suministros S.A.S. | D48: EPSON | E48: R_EPSON LQ1000 | F48: R_EPSON LQ1000 | G48: 7970 | H48: 1 | I48: R_EPSON LQ1000A
A49: Alianza Estratégica Outsourcing & Suministros S.A.S.R_EPSON LX350B | B49: B | C49: Alianza Estratégica Outsourcing & Suministros S.A.S. | D49: EPSON | E49: R_EPSON LX350 | F49: R_EPSON LX350 | G49: 7970 | H49: 1 | I49: R_EPSON LX350B
A50: Alianza Estratégica Outsourcing & Suministros S.A.S.R_EPSON LQ1000B | B50: B | C50: Alianza Estratégica Outsourcing & Suministros S.A.S. | D50: EPSON | E50: R_EPSON LQ1000 | F50: R_EPSON LQ1000 | G50: 7970 | H50: 1 | I50: R_EPSON LQ1000B
A51: Alianza Estratégica Outsourcing & Suministros S.A.S.R_EPSON LX350C | B51: C | C51: Alianza Estratégica Outsourcing & Suministros S.A.S. | D51: EPSON | E51: R_EPSON LX350 | F51: R_EPSON LX350 | G51: 8316 | H51: 1 | I51: R_EPSON LX350C
A52: Alianza Estratégica Outsourcing & Suministros S.A.S.R_EPSON LQ1000C | B52: C | C52: Alianza Estratégica Outsourcing & Suministros S.A.S. | D52: EPSON | E52: R_EPSON LQ1000 | F52: R_EPSON LQ1000 | G52: 8316 | H52: 1 | I52: R_EPSON LQ1000C
A53: Alianza Estratégica Outsourcing & Suministros S.A.S.R_EPSON FX980A | B53: A | C53: Alianza Estratégica Outsourcing & Suministros S.A.S. | D53: EPSON | E53: R_EPSON FX980 | F53: R_EPSON FX980 | G53: 8050 | H53: 1 | I53: R_EPSON FX980A
A54: Alianza Estratégica Outsourcing & Suministros S.A.S.R_EPSON FX980B | B54: B | C54: Alianza Estratégica Outsourcing & Suministros S.A.S. | D54: EPSON | E54: R_EPSON FX980 | F54: R_EPSON FX980 | G54: 8050 | H54: 1 | I54: R_EPSON FX980B
A55: Alianza Estratégica Outsourcing & Suministros S.A.S.R_EPSON FX980C | B55: C | C55: Alianza Estratégica Outsourcing & Suministros S.A.S. | D55: EPSON | E55: R_EPSON FX980 | F55: R_EPSON FX980 | G55: 8400 | H55: 1 | I55: R_EPSON FX980C
A56: Alianza Estratégica Outsourcing & Suministros S.A.S.R_EPSON ERC37A | B56: A | C56: Alianza Estratégica Outsourcing & Suministros S.A.S. | D56: EPSON | E56: R_EPSON ERC37 | F56: R_EPSON ERC37 | G56: 8453 | H56: 1 | I56: R_EPSON ERC37A
A57: Alianza Estratégica Outsourcing & Suministros S.A.S.R_EPSON ERC37B | B57: B | C57: Alianza Estratégica Outsourcing & Suministros S.A.S. | D57: EPSON | E57: R_EPSON ERC37 | F57: R_EPSON ERC37 | G57: 8453 | H57: 1 | I57: R_EPSON ERC37B
A58: Alianza Estratégica Outsourcing & Suministros S.A.S.R_EPSON ERC37C | B58: C | C58: Alianza Estratégica Outsourcing & Suministros S.A.S. | D58: EPSON | E58: R_EPSON ERC37 | F58: R_EPSON ERC37 | G58: 8820 | H58: 1 | I58: R_EPSON ERC37C
A59: Alianza Estratégica Outsourcing & Suministros S.A.S.R_EPSON ERC18A | B59: A | C59: Alianza Estratégica Outsourcing & Suministros S.A.S. | D59: EPSON | E59: R_EPSON ERC18 | F59: R_EPSON ERC18 | G59: 8855 | H59: 1 | I59: R_EPSON ERC18A
A60: Alianza Estratégica Outsourcing & Suministros S.A.S.R_EPSON ERC18B | B60: B | C60: Alianza Estratégica Outsourcing & Suministros S.A.S. | D60: EPSON | E60: R_EPSON ERC18 | F60: R_EPSON ERC18 | G60: 8855 | H60: 1 | I60: R_EPSON ERC18B
A61: Alianza Estratégica Outsourcing & Suministros S.A.S.R_EPSON ERC18C | B61: C | C61: Alianza Estratégica Outsourcing & Suministros S.A.S. | D61: EPSON | E61: R_EPSON ERC18 | F61: R_EPSON ERC18 | G61: 9240 | H61: 1 | I61: R_EPSON ERC18C
A62: Alianza Estratégica Outsourcing & Suministros S.A.S.R_EPSON ERC35A | B62: A | C62: Alianza Estratégica Outsourcing & Suministros S.A.S. | D62: EPSON | E62: R_EPSON ERC35 | F62: R_EPSON ERC35 | G62: 9580 | H62: 1 | I62: R_EPSON ERC35A
A63: Alianza Estratégica Outsourcing & Suministros S.A.S.R_FUJITSU DPM-G9A | B63: A | C63: Alianza Estratégica Outsourcing & Suministros S.A.S. | D63: FUJITSU | E63: R_FUJITSU DPM-G9 | F63: R_FUJITSU DPM-G9 | G63: 9580 | H63: 1 | I63: R_FUJITSU DPM-G9A
A64: Alianza Estratégica Outsourcing & Suministros S.A.S.R_EPSON ERC35B | B64: B | C64: Alianza Estratégica Outsourcing & Suministros S.A.S. | D64: EPSON | E64: R_EPSON ERC35 | F64: R_EPSON ERC35 | G64: 9580 | H64: 1 | I64: R_EPSON ERC35B
A65: Alianza Estratégica Outsourcing & Suministros S.A.S.R_FUJITSU DPM-G9B | B65: B | C65: Alianza Estratégica Outsourcing & Suministros S.A.S. | D65: FUJITSU | E65: R_FUJITSU DPM-G9 | F65: R_FUJITSU DPM-G9 | G65: 9580 | H65: 1 | I65: R_FUJITSU DPM-G9B
A66: Alianza Estratégica Outsourcing & Suministros S.A.S.R_EPSON ERC35C | B66: C | C66: Alianza Estratégica Outsourcing & Suministros S.A.S. | D66: EPSON | E66: R_EPSON ERC35 | F66: R_EPSON ERC35 | G66: 9996 | H66: 1 | I66: R_EPSON ERC35C
A67: Alianza Estratégica Outsourcing & Suministros S.A.S.R_FUJITSU DPM-G9C | B67: C | C67: Alianza Estratégica Outsourcing & Suministros S.A.S. | D67: FUJITSU | E67: R_FUJITSU DPM-G9 | F67: R_FUJITSU DPM-G9 | G67: 9996 | H67: 1 | I67: R_FUJITSU DPM-G9C
A68: Alianza Estratégica Outsourcing & Suministros S.A.S.R_BROTHER AX - 10A | B68: A | C68: Alianza Estratégica Outsourcing & Suministros S.A.S. | D68: BROTHER | E68: R_BROTHER AX - 10 | F68: R_BROTHER AX - 10 | G68: 11109 | H68: 1 | I68: R_BROTHER AX - 10A
A69: Alianza Estratégica Outsourcing & Suministros S.A.S.R_BROTHER AX - 10B | B69: B | C69: Alianza Estratégica Outsourcing & Suministros S.A.S. | D69: BROTHER | E69: R_BROTHER AX - 10 | F69: R_BROTHER AX - 10 | G69: 11109 | H69: 1 | I69: R_BROTHER AX - 10B
A70: Alianza Estratégica Outsourcing & Suministros S.A.S.R_BROTHER AX - 10C | B70: C | C70: Alianza Estratégica Outsourcing & Suministros S.A.S. | D70: BROTHER | E70: R_BROTHER AX - 10 | F70: R_BROTHER AX - 10 | G70: 11592 | H70: 1 | I70: R_BROTHER AX - 10C
A71: Alianza Estratégica Outsourcing & Suministros S.A.S.R_FUJITSU DL700A | B71: A | C71: Alianza Estratégica Outsourcing & Suministros S.A.S. | D71: FUJITSU | E71: R_FUJITSU DL700 | F71: R_FUJITSU DL700 | G71: 11190 | H71: 1 | I71: R_FUJITSU DL700A
A72: Alianza Estratégica Outsourcing & Suministros S.A.S.R_FUJITSU DL700B | B72: B | C72: Alianza Estratégica Outsourcing & Suministros S.A.S. | D72: FUJITSU | E72: R_FUJITSU DL700 | F72: R_FUJITSU DL700 | G72: 11190 | H72: 1 | I72: R_FUJITSU DL700B
A73: Alianza Estratégica Outsourcing & Suministros S.A.S.R_FUJITSU DL700C | B73: C | C73: Alianza Estratégica Outsourcing & Suministros S.A.S. | D73: FUJITSU | E73: R_FUJITSU DL700 | F73: R_FUJITSU DL700 | G73: 11676 | H73: 1 | I73: R_FUJITSU DL700C
A74: Alianza Estratégica Outsourcing & Suministros S.A.S.R_FUJITSU DL3800A | B74: A | C74: Alianza Estratégica Outsourcing & Suministros S.A.S. | D74: FUJITSU | E74: R_FUJITSU DL3800 | F74: R_FUJITSU DL3800 | G74: 11673 | H74: 1 | I74: R_FUJITSU DL3800A
A75: Alianza Estratégica Outsourcing & Suministros S.A.S.R_FUJITSU DL3800B | B75: B | C75: Alianza Estratégica Outsourcing & Suministros S.A.S. | D75: FUJITSU | E75: R_FUJITSU DL3800 | F75: R_FUJITSU DL3800 | G75: 11673 | H75: 1 | I75: R_FUJITSU DL3800B
A76: Alianza Estratégica Outsourcing & Suministros S.A.S.R_FUJITSU DL3800C | B76: C | C76: Alianza Estratégica Outsourcing & Suministros S.A.S. | D76: FUJITSU | E76: R_FUJITSU DL3800 | F76: R_FUJITSU DL3800 | G76: 12180 | H76: 1 | I76: R_FUJITSU DL3800C
A77: Alianza Estratégica Outsourcing & Suministros S.A.S.R_EPSON LQ590A | B77: A | C77: Alianza Estratégica Outsourcing & Suministros S.A.S. | D77: EPSON | E77: R_EPSON LQ590 | F77: R_EPSON LQ590 | G77: 11995 | H77: 1 | I77: R_EPSON LQ590A
A78: Alianza Estratégica Outsourcing & Suministros S.A.S.R_EPSON LQ590B | B78: B | C78: Alianza Estratégica Outsourcing & Suministros S.A.S. | D78: EPSON | E78: R_EPSON LQ590 | F78: R_EPSON LQ590 | G78: 11995 | H78: 1 | I78: R_EPSON LQ590B
A79: Alianza Estratégica Outsourcing & Suministros S.A.S.R_EPSON LQ590C | B79: C | C79: Alianza Estratégica Outsourcing & Suministros S.A.S. | D79: EPSON | E79: R_EPSON LQ590 | F79: R_EPSON LQ590 | G79: 12516 | H79: 1 | I79: R_EPSON LQ590C
A80: Alianza Estratégica Outsourcing & Suministros S.A.S.R_PANASONIC KX-P 1090A | B80: A | C80: Alianza Estratégica Outsourcing & Suministros S.A.S. | D80: PANASONIC | E80: R_PANASONIC KX-P 1090 | F80: R_PANASONIC KX-P 1090 | G80: 13800 | H80: 1 | I80: R_PANASONIC KX-P 1090A
A81: Alianza Estratégica Outsourcing & Suministros S.A.S.R_PANASONIC KX-P 1090B | B81: B | C81: Alianza Estratégica Outsourcing & Suministros S.A.S. | D81: PANASONIC | E81: R_PANASONIC KX-P 1090 | F81: R_PANASONIC KX-P 1090 | G81: 13800 | H81: 1 | I81: R_PANASONIC KX-P 1090B
A82: Alianza Estratégica Outsourcing & Suministros S.A.S.R_PANASONIC KX-P 1090C | B82: C | C82: Alianza Estratégica Outsourcing & Suministros S.A.S. | D82: PANASONIC | E82: R_PANASONIC KX-P 1090 | F82: R_PANASONIC KX-P 1090 | G82: 14400 | H82: 1 | I82: R_PANASONIC KX-P 1090C
A83: Alianza Estratégica Outsourcing & Suministros S.A.S.R_BROTHER CE 60A | B83: A | C83: Alianza Estratégica Outsourcing & Suministros S.A.S. | D83: BROTHER | E83: R_BROTHER CE 60 | F83: R_BROTHER CE 60 | G83: 14329 | H83: 1 | I83: R_BROTHER CE 60A
A84: Alianza Estratégica Outsourcing & Suministros S.A.S.R_BROTHER CE 60B | B84: B | C84: Alianza Estratégica Outsourcing & Suministros S.A.S. | D84: BROTHER | E84: R_BROTHER CE 60 | F84: R_BROTHER CE 60 | G84: 14329 | H84: 1 | I84: R_BROTHER CE 60B
A85: Alianza Estratégica Outsourcing & Suministros S.A.S.R_BROTHER CE 60C | B85: C | C85: Alianza Estratégica Outsourcing & Suministros S.A.S. | D85: BROTHER | E85: R_BROTHER CE 60 | F85: R_BROTHER CE 60 | G85: 14952 | H85: 1 | I85: R_BROTHER CE 60C
A86: Alianza Estratégica Outsourcing & Suministros S.A.S.R_OKI 320A | B86: A | C86: Alianza Estratégica Outsourcing & Suministros S.A.S. | D86: OKI | E86: R_OKI 320 | F86: R_OKI 320 | G86: 17250 | H86: 1 | I86: R_OKI 320A
A87: Alianza Estratégica Outsourcing & Suministros S.A.S.R_OKI 320B | B87: B | C87: Alianza Estratégica Outsourcing & Suministros S.A.S. | D87: OKI | E87: R_OKI 320 | F87: R_OKI 320 | G87: 17250 | H87: 1 | I87: R_OKI 320B
A88: Alianza Estratégica Outsourcing & Suministros S.A.S.R_OKI 320C | B88: C | C88: Alianza Estratégica Outsourcing & Suministros S.A.S. | D88: OKI | E88: R_OKI 320 | F88: R_OKI 320 | G88: 18000 | H88: 1 | I88: R_OKI 320C
A89: Alianza Estratégica Outsourcing & Suministros S.A.S.R_LEXMARK 2380A | B89: A | C89: Alianza Estratégica Outsourcing & Suministros S.A.S. | D89: LEXMARK | E89: R_LEXMARK 2380 | F89: R_LEXMARK 2380 | G89: 20700 | H89: 1 | I89: R_LEXMARK 2380A
A90: Alianza Estratégica Outsourcing & Suministros S.A.S.R_OKI 590A | B90: A | C90: Alianza Estratégica Outsourcing & Suministros S.A.S. | D90: OKI | E90: R_OKI 590 | F90: R_OKI 590 | G90: 20700 | H90: 1 | I90: R_OKI 590A
A91: Alianza Estratégica Outsourcing & Suministros S.A.S.R_LEXMARK 2380B | B91: B | C91: Alianza Estratégica Outsourcing & Suministros S.A.S. | D91: LEXMARK | E91: R_LEXMARK 2380 | F91: R_LEXMARK 2380 | G91: 20700 | H91: 1 | I91: R_LEXMARK 2380B
A92: Alianza Estratégica Outsourcing & Suministros S.A.S.R_OKI 590B | B92: B | C92: Alianza Estratégica Outsourcing & Suministros S.A.S. | D92: OKI | E92: R_OKI 590 | F92: R_OKI 590 | G92: 20700 | H92: 1 | I92: R_OKI 590B
A93: Alianza Estratégica Outsourcing & Suministros S.A.S.R_LEXMARK 2380C | B93: C | C93: Alianza Estratégica Outsourcing & Suministros S.A.S. | D93: LEXMARK | E93: R_LEXMARK 2380 | F93: R_LEXMARK 2380 | G93: 21600 | H93: 1 | I93: R_LEXMARK 2380C
A94: Alianza Estratégica Outsourcing & Suministros S.A.S.R_OKI 590C | B94: C | C94: Alianza Estratégica Outsourcing & Suministros S.A.S. | D94: OKI | E94: R_OKI 590 | F94: R_OKI 590 | G94: 21600 | H94: 1 | I94: R_OKI 590C
A95: Alianza Estratégica Outsourcing & Suministros S.A.S.R_FUJITSU DL2400A | B95: A | C95: Alianza Estratégica Outsourcing & Suministros S.A.S. | D95: FUJITSU | E95: R_FUJITSU DL2400 | F95: R_FUJITSU DL2400 | G95: 23000 | H95: 1 | I95: R_FUJITSU DL2400A
A96: Alianza Estratégica Outsourcing & Suministros S.A.S.R_FUJITSU DL2400B | B96: B | C96: Alianza Estratégica Outsourcing & Suministros S.A.S. | D96: FUJITSU | E96: R_FUJITSU DL2400 | F96: R_FUJITSU DL2400 | G96: 23000 | H96: 1 | I96: R_FUJITSU DL2400B
A97: Alianza Estratégica Outsourcing & Suministros S.A.S.R_FUJITSU DL2400C | B97: C | C97: Alianza Estratégica Outsourcing & Suministros S.A.S. | D97: FUJITSU | E97: R_FUJITSU DL2400 | F97: R_FUJITSU DL2400 | G97: 24000 | H97: 1 | I97: R_FUJITSU DL2400C
A98: Alianza Estratégica Outsourcing & Suministros S.A.S.R_EPSON LQ2190A | B98: A | C98: Alianza Estratégica Outsourcing & Suministros S.A.S. | D98: EPSON | E98: R_EPSON LQ2190 | F98: R_EPSON LQ2190 | G98: 23345 | H98: 1 | I98: R_EPSON LQ2190A
A99: Alianza Estratégica Outsourcing & Suministros S.A.S.R_EPSON LQ2190B | B99: B | C99: Alianza Estratégica Outsourcing & Suministros S.A.S. | D99: EPSON | E99: R_EPSON LQ2190 | F99: R_EPSON LQ2190 | G99: 23345 | H99: 1 | I99: R_EPSON LQ2190B
A100: Alianza Estratégica Outsourcing & Suministros S.A.S.R_EPSON LQ2190C | B100: C | C100: Alianza Estratégica Outsourcing & Suministros S.A.S. | D100: EPSON | E100: R_EPSON LQ2190 | F100: R_EPSON LQ2190 | G100: 24360 | H100: 1 | I100: R_EPSON LQ2190C
A101: Alianza Estratégica Outsourcing & Suministros S.A.S.R_PANASONIC KX-P 1624A | B101: A | C101: Alianza Estratégica Outsourcing & Suministros S.A.S. | D101: PANASONIC | E101: R_PANASONIC KX-P 1624 | F101: R_PANASONIC KX-P 1624 | G101: 23575 | H101: 1 | I101: R_PANASONIC KX-P 1624A
A102: Alianza Estratégica Outsourcing & Suministros S.A.S.R_PANASONIC KX-P 1624B | B102: B | C102: Alianza Estratégica Outsourcing & Suministros S.A.S. | D102: PANASONIC | E102: R_PANASONIC KX-P 1624 | F102: R_PANASONIC KX-P 1624 | G102: 23575 | H102: 1 | I102: R_PANASONIC KX-P 1624B
A103: Alianza Estratégica Outsourcing & Suministros S.A.S.R_PANASONIC KX-P 1624C | B103: C | C103: Alianza Estratégica Outsourcing & Suministros S.A.S. | D103: PANASONIC | E103: R_PANASONIC KX-P 1624 | F103: R_PANASONIC KX-P 1624 | G103: 24600 | H103: 1 | I103: R_PANASONIC KX-P 1624C
A104: Alianza Estratégica Outsourcing & Suministros S.A.S.R_PANASONIC KX-P 160A | B104: A | C104: Alianza Estratégica Outsourcing & Suministros S.A.S. | D104: PANASONIC | E104: R_PANASONIC KX-P 160 | F104: R_PANASONIC KX-P 160 | G104: 24150 | H104: 1 | I104: R_PANASONIC KX-P 160A
A105: Alianza Estratégica Outsourcing & Suministros S.A.S.R_PANASONIC KX-P 160B | B105: B | C105: Alianza Estratégica Outsourcing & Suministros S.A.S. | D105: PANASONIC | E105: R_PANASONIC KX-P 160 | F105: R_PANASONIC KX-P 160 | G105: 24150 | H105: 1 | I105: R_PANASONIC KX-P 160B
A106: Alianza Estratégica Outsourcing & Suministros S.A.S.R_PANASONIC KX-P 160C | B106: C | C106: Alianza Estratégica Outsourcing & Suministros S.A.S. | D106: PANASONIC | E106: R_PANASONIC KX-P 160 | F106: R_PANASONIC KX-P 160 | G106: 25200 | H106: 1 | I106: R_PANASONIC KX-P 160C
A107: Alianza Estratégica Outsourcing & Suministros S.A.S.R_EPSON LQ2170A | B107: A | C107: Alianza Estratégica Outsourcing & Suministros S.A.S. | D107: EPSON | E107: R_EPSON LQ2170 | F107: R_EPSON LQ2170 | G107: 26968 | H107: 1 | I107: R_EPSON LQ2170A
A108: Alianza Estratégica Outsourcing & Suministros S.A.S.R_EPSON LQ2170B | B108: B | C108: Alianza Estratégica Outsourcing & Suministros S.A.S. | D108: EPSON | E108: R_EPSON LQ2170 | F108: R_EPSON LQ2170 | G108: 26968 | H108: 1 | I108: R_EPSON LQ2170B
A109: Alianza Estratégica Outsourcing & Suministros S.A.S.R_EPSON LQ2170C | B109: C | C109: Alianza Estratégica Outsourcing & Suministros S.A.S. | D109: EPSON | E109: R_EPSON LQ2170 | F109: R_EPSON LQ2170 | G109: 28140 | H109: 1 | I109: R_EPSON LQ2170C
A110: Alianza Estratégica Outsourcing & Suministros S.A.S.R_NCR 7156A | B110: A | C110: Alianza Estratégica Outsourcing & Suministros S.A.S. | D110: NCR | E110: R_NCR 7156 | F110: R_NCR 7156 | G110: 28750 | H110: 1 | I110: R_NCR 7156A
A111: Alianza Estratégica Outsourcing & Suministros S.A.S.R_NCR 7156B | B111: B | C111: Alianza Estratégica Outsourcing & Suministros S.A.S. | D111: NCR | E111: R_NCR 7156 | F111: R_NCR 7156 | G111: 28750 | H111: 1 | I111: R_NCR 7156B
A112: Alianza Estratégica Outsourcing & Suministros S.A.S.R_NCR 7156C | B112: C | C112: Alianza Estratégica Outsourcing & Suministros S.A.S. | D112: NCR | E112: R_NCR 7156 | F112: R_NCR 7156 | G112: 30000 | H112: 1 | I112: R_NCR 7156C
A113: Alianza Estratégica Outsourcing & Suministros S.A.S.R_OKI 393A | B113: A | C113: Alianza Estratégica Outsourcing & Suministros S.A.S. | D113: OKI | E113: R_OKI 393 | F113: R_OKI 393 | G113: 32200 | H113: 1 | I113: R_OKI 393A
A114: Alianza Estratégica Outsourcing & Suministros S.A.S.R_PANASONIC KX-P 3200A | B114: A | C114: Alianza Estratégica Outsourcing & Suministros S.A.S. | D114: PANASONIC | E114: R_PANASONIC KX-P 3200 | F114: R_PANASONIC KX-P 3200 | G114: 32200 | H114: 1 | I114: R_PANASONIC KX-P 3200A
A115: Alianza Estratégica Outsourcing & Suministros S.A.S.R_OKI 393B | B115: B | C115: Alianza Estratégica Outsourcing & Suministros S.A.S. | D115: OKI | E115: R_OKI 393 | F115: R_OKI 393 | G115: 32200 | H115: 1 | I115: R_OKI 393B
A116: Alianza Estratégica Outsourcing & Suministros S.A.S.R_PANASONIC KX-P 3200B | B116: B | C116: Alianza Estratégica Outsourcing & Suministros S.A.S. | D116: PANASONIC | E116: R_PANASONIC KX-P 3200 | F116: R_PANASONIC KX-P 3200 | G116: 32200 | H116: 1 | I116: R_PANASONIC KX-P 3200B
A117: Alianza Estratégica Outsourcing & Suministros S.A.S.R_OKI 393C | B117: C | C117: Alianza Estratégica Outsourcing & Suministros S.A.S. | D117: OKI | E117: R_OKI 393 | F117: R_OKI 393 | G117: 33600 | H117: 1 | I117: R_OKI 393C
A118: Alianza Estratégica Outsourcing & Suministros S.A.S.R_PANASONIC KX-P 3200C | B118: C | C118: Alianza Estratégica Outsourcing & Suministros S.A.S. | D118: PANASONIC | E118: R_PANASONIC KX-P 3200 | F118: R_PANASONIC KX-P 3200 | G118: 33600 | H118: 1 | I118: R_PANASONIC KX-P 3200C
A119: Alianza Estratégica Outsourcing & Suministros S.A.S.R_PANASONIC KX-P 3696A | B119: A | C119: Alianza Estratégica Outsourcing & Suministros S.A.S. | D119: PANASONIC | E119: R_PANASONIC KX-P 3696 | F119: R_PANASONIC KX-P 3696 | G119: 33350 | H119: 1 | I119: R_PANASONIC KX-P 3696A
A120: Alianza Estratégica Outsourcing & Suministros S.A.S.R_PANASONIC KX-P 3696B | B120: B | C120: Alianza Estratégica Outsourcing & Suministros S.A.S. | D120: PANASONIC | E120: R_PANASONIC KX-P 3696 | F120: R_PANASONIC KX-P 3696 | G120: 33350 | H120: 1 | I120: R_PANASONIC KX-P 3696B
A121: Alianza Estratégica Outsourcing & Suministros S.A.S.R_PANASONIC KX-P 3696C | B121: C | C121: Alianza Estratégica Outsourcing & Suministros S.A.S. | D121: PANASONIC | E121: R_PANASONIC KX-P 3696 | F121: R_PANASONIC KX-P 3696 | G121: 34800 | H121: 1 | I121: R_PANASONIC KX-P 3696C
A122: Alianza Estratégica Outsourcing & Suministros S.A.S.R_EPSON DFX9000A | B122: A | C122: Alianza Estratégica Outsourcing & Suministros S.A.S. | D122: EPSON | E122: R_EPSON DFX9000 | F122: R_EPSON DFX9000 | G122: 36800 | H122: 1 | I122: R_EPSON DFX9000A
A123: Alianza Estratégica Outsourcing & Suministros S.A.S.R_EPSON DFX5000A | B123: A | C123: Alianza Estratégica Outsourcing & Suministros S.A.S. | D123: EPSON | E123: R_EPSON DFX5000 | F123: R_EPSON DFX5000 | G123: 36800 | H123: 1 | I123: R_EPSON DFX5000A
A124: Alianza Estratégica Outsourcing & Suministros S.A.S.R_LEXMARK 4227A | B124: A | C124: Alianza Estratégica Outsourcing & Suministros S.A.S. | D124: LEXMARK | E124: R_LEXMARK 4227 | F124: R_LEXMARK 4227 | G124: 36800 | H124: 1 | I124: R_LEXMARK 4227A
A125: Alianza Estratégica Outsourcing & Suministros S.A.S.R_EPSON DFX9000B | B125: B | C125: Alianza Estratégica Outsourcing & Suministros S.A.S. | D125: EPSON | E125: R_EPSON DFX9000 | F125: R_EPSON DFX9000 | G125: 36800 | H125: 1 | I125: R_EPSON DFX9000B
A126: Alianza Estratégica Outsourcing & Suministros S.A.S.R_EPSON DFX5000B | B126: B | C126: Alianza Estratégica Outsourcing & Suministros S.A.S. | D126: EPSON | E126: R_EPSON DFX5000 | F126: R_EPSON DFX5000 | G126: 36800 | H126: 1 | I126: R_EPSON DFX5000B
A127: Alianza Estratégica Outsourcing & Suministros S.A.S.R_LEXMARK 4227B | B127: B | C127: Alianza Estratégica Outsourcing & Suministros S.A.S. | D127: LEXMARK | E127: R_LEXMARK 4227 | F127: R_LEXMARK 4227 | G127: 36800 | H127: 1 | I127: R_LEXMARK 4227B
A128: Alianza Estratégica Outsourcing & Suministros S.A.S.R_EPSON DFX9000C | B128: C | C128: Alianza Estratégica Outsourcing & Suministros S.A.S. | D128: EPSON | E128: R_EPSON DFX9000 | F128: R_EPSON DFX9000 | G128: 38400 | H128: 1 | I128: R_EPSON DFX9000C
A129: Alianza Estratégica Outsourcing & Suministros S.A.S.R_EPSON DFX5000C | B129: C | C129: Alianza Estratégica Outsourcing & Suministros S.A.S. | D129: EPSON | E129: R_EPSON DFX5000 | F129: R_EPSON DFX5000 | G129: 38400 | H129: 1 | I129: R_EPSON DFX5000C
A130: Alianza Estratégica Outsourcing & Suministros S.A.S.R_LEXMARK 4227C | B130: C | C130: Alianza Estratégica Outsourcing & Suministros S.A.S. | D130: LEXMARK | E130: R_LEXMARK 4227 | F130: R_LEXMARK 4227 | G130: 38400 | H130: 1 | I130: R_LEXMARK 4227C
A131: Alianza Estratégica Outsourcing & Suministros S.A.S.R_CANON FX-3A | B131: A | C131: Alianza Estratégica Outsourcing & Suministros S.A.S. | D131: CANON | E131: R_CANON FX-3 | F131: R_CANON FX-3 | G131: 80500 | H131: 1 | I131: R_CANON FX-3A
A132: Alianza Estratégica Outsourcing & Suministros S.A.S.R_CANON FX-3B | B132: B | C132: Alianza Estratégica Outsourcing & Suministros S.A.S. | D132: CANON | E132: R_CANON FX-3 | F132: R_CANON FX-3 | G132: 80500 | H132: 1 | I132: R_CANON FX-3B
A133: Alianza Estratégica Outsourcing & Suministros S.A.S.R_CANON FX-3C | B133: C | C133: Alianza Estratégica Outsourcing & Suministros S.A.S. | D133: CANON | E133: R_CANON FX-3 | F133: R_CANON FX-3 | G133: 84000 | H133: 1 | I133: R_CANON FX-3C
A134: Alianza Estratégica Outsourcing & Suministros S.A.S.R_KYOCERA TK17A | B134: A | C134: Alianza Estratégica Outsourcing & Suministros S.A.S. | D134: KYOCERA | E134: R_KYOCERA TK17 | F134: R_KYOCERA TK17 | G134: 89700 | H134: 1 | I134: R_KYOCERA TK17A
A135: Alianza Estratégica Outsourcing & Suministros S.A.S.R_KYOCERA TK17B | B135: B | C135: Alianza Estratégica Outsourcing & Suministros S.A.S. | D135: KYOCERA | E135: R_KYOCERA TK17 | F135: R_KYOCERA TK17 | G135: 89700 | H135: 1 | I135: R_KYOCERA TK17B
A136: Alianza Estratégica Outsourcing & Suministros S.A.S.R_KYOCERA TK17C | B136: C | C136: Alianza Estratégica Outsourcing & Suministros S.A.S. | D136: KYOCERA | E136: R_KYOCERA TK17 | F136: R_KYOCERA TK17 | G136: 93600 | H136: 1 | I136: R_KYOCERA TK17C
A137: Alianza Estratégica Outsourcing & Suministros S.A.S.R_KYOCERA TK18A | B137: A | C137: Alianza Estratégica Outsourcing & Suministros S.A.S. | D137: KYOCERA | E137: R_KYOCERA TK18 | F137: R_KYOCERA TK18 | G137: 90850 | H137: 1 | I137: R_KYOCERA TK18A
A138: Alianza Estratégica Outsourcing & Suministros S.A.S.R_KYOCERA TK18B | B138: B | C138: Alianza Estratégica Outsourcing & Suministros S.A.S. | D138: KYOCERA | E138: R_KYOCERA TK18 | F138: R_KYOCERA TK18 | G138: 90850 | H138: 1 | I138: R_KYOCERA TK18B
A139: Alianza Estratégica Outsourcing & Suministros S.A.S.R_KYOCERA TK18C | B139: C | C139: Alianza Estratégica Outsourcing & Suministros S.A.S. | D139: KYOCERA | E139: R_KYOCERA TK18 | F139: R_KYOCERA TK18 | G139: 94800 | H139: 1 | I139: R_KYOCERA TK18C
A140: Alianza Estratégica Outsourcing & Suministros S.A.S.R_CANON FX-2A | B140: A | C140: Alianza Estratégica Outsourcing & Suministros S.A.S. | D140: CANON | E140: R_CANON FX-2 | F140: R_CANON FX-2 | G140: 92000 | H140: 1 | I140: R_CANON FX-2A
A141: Alianza Estratégica Outsourcing & Suministros S.A.S.R_DELL DELL 1110A | B141: A | C141: Alianza Estratégica Outsourcing & Suministros S.A.S. | D141: DELL | E141: R_DELL DELL 1110 | F141: R_DELL DELL 1110 | G141: 92000 | H141: 1 | I141: R_DELL DELL 1110A
A142: Alianza Estratégica Outsourcing & Suministros S.A.S.R_SAMSUNG Mlt104LA | B142: A | C142: Alianza Estratégica Outsourcing & Suministros S.A.S. | D142: SAMSUNG | E142: R_SAMSUNG Mlt104L | F142: R_SAMSUNG Mlt104L | G142: 92000 | H142: 1 | I142: R_SAMSUNG Mlt104LA
A143: Alianza Estratégica Outsourcing & Suministros S.A.S.R_CANON FX-2B | B143: B | C143: Alianza Estratégica Outsourcing & Suministros S.A.S. | D143: CANON | E143: R_CANON FX-2 | F143: R_CANON FX-2 | G143: 92000 | H143: 1 | I143: R_CANON FX-2B
A144: Alianza Estratégica Outsourcing & Suministros S.A.S.R_DELL DELL 1110B | B144: B | C144: Alianza Estratégica Outsourcing & Suministros S.A.S. | D144: DELL | E144: R_DELL DELL 1110 | F144: R_DELL DELL 1110 | G144: 92000 | H144: 1 | I144: R_DELL DELL 1110B
A145: Alianza Estratégica Outsourcing & Suministros S.A.S.R_SAMSUNG Mlt104LB | B145: B | C145: Alianza Estratégica Outsourcing & Suministros S.A.S. | D145: SAMSUNG | E145: R_SAMSUNG Mlt104L | F145: R_SAMSUNG Mlt104L | G145: 92000 | H145: 1 | I145: R_SAMSUNG Mlt104LB
A146: Alianza Estratégica Outsourcing & Suministros S.A.S.R_CANON FX-2C | B146: C | C146: Alianza Estratégica Outsourcing & Suministros S.A.S. | D146: CANON | E146: R_CANON FX-2 | F146: R_CANON FX-2 | G146: 96000 | H146: 1 | I146: R_CANON FX-2C
A147: Alianza Estratégica Outsourcing & Suministros S.A.S.R_DELL DELL 1110C | B147: C | C147: Alianza Estratégica Outsourcing & Suministros S.A.S. | D147: DELL | E147: R_DELL DELL 1110 | F147: R_DELL DELL 1110 | G147: 96000 | H147: 1 | I147: R_DELL DELL 1110C
A148: Alianza Estratégica Outsourcing & Suministros S.A.S.R_SAMSUNG Mlt104LC | B148: C | C148: Alianza Estratégica Outsourcing & Suministros S.A.S. | D148: SAMSUNG | E148: R_SAMSUNG Mlt104L | F148: R_SAMSUNG Mlt104L | G148: 96000 | H148: 1 | I148: R_SAMSUNG Mlt104LC
A149: Alianza Estratégica Outsourcing & Suministros S.A.S.R_SAMSUNG Mlt108SA | B149: A | C149: Alianza Estratégica Outsourcing & Suministros S.A.S. | D149: SAMSUNG | E149: R_SAMSUNG Mlt108S | F149: R_SAMSUNG Mlt108S | G149: 94300 | H149: 1 | I149: R_SAMSUNG Mlt108SA
A150: Alianza Estratégica Outsourcing & Suministros S.A.S.R_SAMSUNG MLT-D1082SA | B150: A | C150: Alianza Estratégica Outsourcing & Suministros S.A.S. | D150: SAMSUNG | E150: R_SAMSUNG MLT-D1082S | F150: R_SAMSUNG MLT-D1082S | G150: 94300 | H150: 1 | I150: R_SAMSUNG MLT-D1082SA
A151: Alianza Estratégica Outsourcing & Suministros S.A.S.R_SAMSUNG Mlt108SB | B151: B | C151: Alianza Estratégica Outsourcing & Suministros S.A.S. | D151: SAMSUNG | E151: R_SAMSUNG Mlt108S | F151: R_SAMSUNG Mlt108S | G151: 94300 | H151: 1 | I151: R_SAMSUNG Mlt108SB
A152: Alianza Estratégica Outsourcing & Suministros S.A.S.R_SAMSUNG MLT-D1082SB | B152: B | C152: Alianza Estratégica Outsourcing & Suministros S.A.S. | D152: SAMSUNG | E152: R_SAMSUNG MLT-D1082S | F152: R_SAMSUNG MLT-D1082S | G152: 94300 | H152: 1 | I152: R_SAMSUNG MLT-D1082SB
A153: Alianza Estratégica Outsourcing & Suministros S.A.S.R_SAMSUNG Mlt108SC | B153: C | C153: Alianza Estratégica Outsourcing & Suministros S.A.S. | D153: SAMSUNG | E153: R_SAMSUNG Mlt108S | F153: R_SAMSUNG Mlt108S | G153: 98400 | H153: 1 | I153: R_SAMSUNG Mlt108SC
A154: Alianza Estratégica Outsourcing & Suministros S.A.S.R_SAMSUNG MLT-D1082SC | B154: C | C154: Alianza Estratégica Outsourcing & Suministros S.A.S. | D154: SAMSUNG | E154: R_SAMSUNG MLT-D1082S | F154: R_SAMSUNG MLT-D1082S | G154: 98400 | H154: 1 | I154: R_SAMSUNG MLT-D1082SC
A155: Alianza Estratégica Outsourcing & Suministros S.A.S.R_SAMSUNG ML-1610D2A | B155: A | C155: Alianza Estratégica Outsourcing & Suministros S.A.S. | D155: SAMSUNG | E155: R_SAMSUNG ML-1610D2 | F155: R_SAMSUNG ML-1610D2 | G155: 96600 | H155: 1 | I155: R_SAMSUNG ML-1610D2A
A156: Alianza Estratégica Outsourcing & Suministros S.A.S.R_SAMSUNG ML-1610D2B | B156: B | C156: Alianza Estratégica Outsourcing & Suministros S.A.S. | D156: SAMSUNG | E156: R_SAMSUNG ML-1610D2 | F156: R_SAMSUNG ML-1610D2 | G156: 96600 | H156: 1 | I156: R_SAMSUNG ML-1610D2B
A157: Alianza Estratégica Outsourcing & Suministros S.A.S.R_SAMSUNG ML-1610D2C | B157: C | C157: Alianza Estratégica Outsourcing & Suministros S.A.S. | D157: SAMSUNG | E157: R_SAMSUNG ML-1610D2 | F157: R_SAMSUNG ML-1610D2 | G157: 100800 | H157: 1 | I157: R_SAMSUNG ML-1610D2C
A158: Alianza Estratégica Outsourcing & Suministros S.A.S.R_LEXMARK 12A8302A | B158: A | C158: Alianza Estratégica Outsourcing & Suministros S.A.S. | D158: LEXMARK | E158: R_LEXMARK 12A8302 | F158: R_LEXMARK 12A8302 | G158: 97750 | H158: 1 | I158: R_LEXMARK 12A8302A
A159: Alianza Estratégica Outsourcing & Suministros S.A.S.R_LEXMARK 12A8325A | B159: A | C159: Alianza Estratégica Outsourcing & Suministros S.A.S. | D159: LEXMARK | E159: R_LEXMARK 12A8325 | F159: R_LEXMARK 12A8325 | G159: 97750 | H159: 1 | I159: R_LEXMARK 12A8325A
A160: Alianza Estratégica Outsourcing & Suministros S.A.S.R_SAMSUNG Mlt D101A | B160: A | C160: Alianza Estratégica Outsourcing & Suministros S.A.S. | D160: SAMSUNG | E160: R_SAMSUNG Mlt D101 | F160: R_SAMSUNG Mlt D101 | G160: 97750 | H160: 1 | I160: R_SAMSUNG Mlt D101A
A161: Alianza Estratégica Outsourcing & Suministros S.A.S.R_SAMSUNG Mlt103LA | B161: A | C161: Alianza Estratégica Outsourcing & Suministros S.A.S. | D161: SAMSUNG | E161: R_SAMSUNG Mlt103L | F161: R_SAMSUNG Mlt103L | G161: 97750 | H161: 1 | I161: R_SAMSUNG Mlt103LA
A162: Alianza Estratégica Outsourcing & Suministros S.A.S.R_SAMSUNG Mlt105LA | B162: A | C162: Alianza Estratégica Outsourcing & Suministros S.A.S. | D162: SAMSUNG | E162: R_SAMSUNG Mlt105L | F162: R_SAMSUNG Mlt105L | G162: 97750 | H162: 1 | I162: R_SAMSUNG Mlt105LA
A163: Alianza Estratégica Outsourcing & Suministros S.A.S.R_SAMSUNG Ml2010-1610A | B163: A | C163: Alianza Estratégica Outsourcing & Suministros S.A.S. | D163: SAMSUNG | E163: R_SAMSUNG Ml2010-1610 | F163: R_SAMSUNG Ml2010-1610 | G163: 97750 | H163: 1 | I163: R_SAMSUNG Ml2010-1610A
A164: Alianza Estratégica Outsourcing & Suministros S.A.S.R_SAMSUNG ML-1210D3A | B164: A | C164: Alianza Estratégica Outsourcing & Suministros S.A.S. | D164: SAMSUNG | E164: R_SAMSUNG ML-1210D3 | F164: R_SAMSUNG ML-1210D3 | G164: 97750 | H164: 1 | I164: R_SAMSUNG ML-1210D3A
A165: Alianza Estratégica Outsourcing & Suministros S.A.S.R_SAMSUNG ML-1710D3A | B165: A | C165: Alianza Estratégica Outsourcing & Suministros S.A.S. | D165: SAMSUNG | E165: R_SAMSUNG ML-1710D3 | F165: R_SAMSUNG ML-1710D3 | G165: 97750 | H165: 1 | I165: R_SAMSUNG ML-1710D3A
A166: Alianza Estratégica Outsourcing & Suministros S.A.S.R_SAMSUNG ML-2010D3A | B166: A | C166: Alianza Estratégica Outsourcing & Suministros S.A.S. | D166: SAMSUNG | E166: R_SAMSUNG ML-2010D3 | F166: R_SAMSUNG ML-2010D3 | G166: 97750 | H166: 1 | I166: R_SAMSUNG ML-2010D3A
A167: Alianza Estratégica Outsourcing & Suministros S.A.S.R_SAMSUNG MLT-105A | B167: A | C167: Alianza Estratégica Outsourcing & Suministros S.A.S. | D167: SAMSUNG | E167: R_SAMSUNG MLT-105 | F167: R_SAMSUNG MLT-105 | G167: 97750 | H167: 1 | I167: R_SAMSUNG MLT-105A
A168: Alianza Estratégica Outsourcing & Suministros S.A.S.R_SAMSUNG MLT-D101A | B168: A | C168: Alianza Estratégica Outsourcing & Suministros S.A.S. | D168: SAMSUNG | E168: R_SAMSUNG MLT-D101 | F168: R_SAMSUNG MLT-D101 | G168: 97750 | H168: 1 | I168: R_SAMSUNG MLT-D101A
A169: Alianza Estratégica Outsourcing & Suministros S.A.S.R_SAMSUNG MLT-109A | B169: A | C169: Alianza Estratégica Outsourcing & Suministros S.A.S. | D169: SAMSUNG | E169: R_SAMSUNG MLT-109 | F169: R_SAMSUNG MLT-109 | G169: 97750 | H169: 1 | I169: R_SAMSUNG MLT-109A
A170: Alianza Estratégica Outsourcing & Suministros S.A.S.R_SAMSUNG MLTD-104SA | B170: A | C170: Alianza Estratégica Outsourcing & Suministros S.A.S. | D170: SAMSUNG | E170: R_SAMSUNG MLTD-104S | F170: R_SAMSUNG MLTD-104S | G170: 97750 | H170: 1 | I170: R_SAMSUNG MLTD-104SA
A171: Alianza Estratégica Outsourcing & Suministros S.A.S.R_SAMSUNG SCX-4521D3A | B171: A | C171: Alianza Estratégica Outsourcing & Suministros S.A.S. | D171: SAMSUNG | E171: R_SAMSUNG SCX-4521D3 | F171: R_SAMSUNG SCX-4521D3 | G171: 97750 | H171: 1 | I171: R_SAMSUNG SCX-4521D3A
A172: Alianza Estratégica Outsourcing & Suministros S.A.S.R_SAMSUNG SCX-D4200AA | B172: A | C172: Alianza Estratégica Outsourcing & Suministros S.A.S. | D172: SAMSUNG | E172: R_SAMSUNG SCX-D4200A | F172: R_SAMSUNG SCX-D4200A | G172: 97750 | H172: 1 | I172: R_SAMSUNG SCX-D4200AA
A173: Alianza Estratégica Outsourcing & Suministros S.A.S.R_SAMSUNG MLT-D105SA | B173: A | C173: Alianza Estratégica Outsourcing & Suministros S.A.S. | D173: SAMSUNG | E173: R_SAMSUNG MLT-D105S | F173: R_SAMSUNG MLT-D105S | G173: 97750 | H173: 1 | I173: R_SAMSUNG MLT-D105SA
A174: Alianza Estratégica Outsourcing & Suministros S.A.S.R_SAMSUNG MLD-108SA | B174: A | C174: Alianza Estratégica Outsourcing & Suministros S.A.S. | D174: SAMSUNG | E174: R_SAMSUNG MLD-108S | F174: R_SAMSUNG MLD-108S | G174: 97750 | H174: 1 | I174: R_SAMSUNG MLD-108SA
A175: Alianza Estratégica Outsourcing & Suministros S.A.S.R_SAMSUNG MLT-D116A | B175: A | C175: Alianza Estratégica Outsourcing & Suministros S.A.S. | D175: SAMSUNG | E175: R_SAMSUNG MLT-D116 | F175: R_SAMSUNG MLT-D116 | G175: 97750 | H175: 1 | I175: R_SAMSUNG MLT-D116A
A176: Alianza Estratégica Outsourcing & Suministros S.A.S.R_SAMSUNG SCX4216D3A | B176: A | C176: Alianza Estratégica Outsourcing & Suministros S.A.S. | D176: SAMSUNG | E176: R_SAMSUNG SCX4216D3 | F176: R_SAMSUNG SCX4216D3 | G176: 97750 | H176: 1 | I176: R_SAMSUNG SCX4216D3A
A177: Alianza Estratégica Outsourcing & Suministros S.A.S.R_SAMSUNG MLT-D1095A | B177: A | C177: Alianza Estratégica Outsourcing & Suministros S.A.S. | D177: SAMSUNG | E177: R_SAMSUNG MLT-D1095 | F177: R_SAMSUNG MLT-D1095 | G177: 97750 | H177: 1 | I177: R_SAMSUNG MLT-D1095A
A178: Alianza Estratégica Outsourcing & Suministros S.A.S.R_SAMSUNG MLT-D119A | B178: A | C178: Alianza Estratégica Outsourcing & Suministros S.A.S. | D178: SAMSUNG | E178: R_SAMSUNG MLT-D119 | F178: R_SAMSUNG MLT-D119 | G178: 97750 | H178: 1 | I178: R_SAMSUNG MLT-D119A
A179: Alianza Estratégica Outsourcing & Suministros S.A.S.R_SAMSUNG SCX4623A | B179: A | C179: Alianza Estratégica Outsourcing & Suministros S.A.S. | D179: SAMSUNG | E179: R_SAMSUNG SCX4623 | F179: R_SAMSUNG SCX4623 | G179: 97750 | H179: 1 | I179: R_SAMSUNG SCX4623A
A180: Alianza Estratégica Outsourcing & Suministros S.A.S.R_SAMSUNG SCX4725A | B180: A | C180: Alianza Estratégica Outsourcing & Suministros S.A.S. | D180: SAMSUNG | E180: R_SAMSUNG SCX4725 | F180: R_SAMSUNG SCX4725 | G180: 97750 | H180: 1 | I180: R_SAMSUNG SCX4725A
A181: Alianza Estratégica Outsourcing & Suministros S.A.S.R_XEROX 106R01159A | B181: A | C181: Alianza Estratégica Outsourcing & Suministros S.A.S. | D181: XEROX | E181: R_XEROX 106R01159 | F181: R_XEROX 106R01159 | G181: 97750 | H181: 1 | I181: R_XEROX 106R01159A
A182: Alianza Estratégica Outsourcing & Suministros S.A.S.R_LEXMARK 12A8302B | B182: B | C182: Alianza Estratégica Outsourcing & Suministros S.A.S. | D182: LEXMARK | E182: R_LEXMARK 12A8302 | F182: R_LEXMARK 12A8302 | G182: 97750 | H182: 1 | I182: R_LEXMARK 12A8302B
A183: Alianza Estratégica Outsourcing & Suministros S.A.S.R_LEXMARK 12A8325B | B183: B | C183: Alianza Estratégica Outsourcing & Suministros S.A.S. | D183: LEXMARK | E183: R_LEXMARK 12A8325 | F183: R_LEXMARK 12A8325 | G183: 97750 | H183: 1 | I183: R_LEXMARK 12A8325B
A184: Alianza Estratégica Outsourcing & Suministros S.A.S.R_SAMSUNG Mlt D101B | B184: B | C184: Alianza Estratégica Outsourcing & Suministros S.A.S. | D184: SAMSUNG | E184: R_SAMSUNG Mlt D101 | F184: R_SAMSUNG Mlt D101 | G184: 97750 | H184: 1 | I184: R_SAMSUNG Mlt D101B
A185: Alianza Estratégica Outsourcing & Suministros S.A.S.R_SAMSUNG Mlt103LB | B185: B | C185: Alianza Estratégica Outsourcing & Suministros S.A.S. | D185: SAMSUNG | E185: R_SAMSUNG Mlt103L | F185: R_SAMSUNG Mlt103L | G185: 97750 | H185: 1 | I185: R_SAMSUNG Mlt103LB
A186: Alianza Estratégica Outsourcing & Suministros S.A.S.R_SAMSUNG Mlt105LB | B186: B | C186: Alianza Estratégica Outsourcing & Suministros S.A.S. | D186: SAMSUNG | E186: R_SAMSUNG Mlt105L | F186: R_SAMSUNG Mlt105L | G186: 97750 | H186: 1 | I186: R_SAMSUNG Mlt105LB
A187: Alianza Estratégica Outsourcing & Suministros S.A.S.R_SAMSUNG Ml2010-1610B | B187: B | C187: Alianza Estratégica Outsourcing & Suministros S.A.S. | D187: SAMSUNG | E187: R_SAMSUNG Ml2010-1610 | F187: R_SAMSUNG Ml2010-1610 | G187: 97750 | H187: 1 | I187: R_SAMSUNG Ml2010-1610B
A188: Alianza Estratégica Outsourcing & Suministros S.A.S.R_SAMSUNG ML-1210D3B | B188: B | C188: Alianza Estratégica Outsourcing & Suministros S.A.S. | D188: SAMSUNG | E188: R_SAMSUNG ML-1210D3 | F188: R_SAMSUNG ML-1210D3 | G188: 97750 | H188: 1 | I188: R_SAMSUNG ML-1210D3B
A189: Alianza Estratégica Outsourcing & Suministros S.A.S.R_SAMSUNG ML-1710D3B | B189: B | C189: Alianza Estratégica Outsourcing & Suministros S.A.S. | D189: SAMSUNG | E189: R_SAMSUNG ML-1710D3 | F189: R_SAMSUNG ML-1710D3 | G189: 97750 | H189: 1 | I189: R_SAMSUNG ML-1710D3B
A190: Alianza Estratégica Outsourcing & Suministros S.A.S.R_SAMSUNG ML-2010D3B | B190: B | C190: Alianza Estratégica Outsourcing & Suministros S.A.S. | D190: SAMSUNG | E190: R_SAMSUNG ML-2010D3 | F190: R_SAMSUNG ML-2010D3 | G190: 97750 | H190: 1 | I190: R_SAMSUNG ML-2010D3B
A191: Alianza Estratégica Outsourcing & Suministros S.A.S.R_SAMSUNG MLT-105B | B191: B | C191: Alianza Estratégica Outsourcing & Suministros S.A.S. | D191: SAMSUNG | E191: R_SAMSUNG MLT-105 | F191: R_SAMSUNG MLT-105 | G191: 97750 | H191: 1 | I191: R_SAMSUNG MLT-105B
A192: Alianza Estratégica Outsourcing & Suministros S.A.S.R_SAMSUNG MLT-D101B | B192: B | C192: Alianza Estratégica Outsourcing & Suministros S.A.S. | D192: SAMSUNG | E192: R_SAMSUNG MLT-D101 | F192: R_SAMSUNG MLT-D101 | G192: 97750 | H192: 1 | I192: R_SAMSUNG MLT-D101B
A193: Alianza Estratégica Outsourcing & Suministros S.A.S.R_SAMSUNG MLT-109B | B193: B | C193: Alianza Estratégica Outsourcing & Suministros S.A.S. | D193: SAMSUNG | E193: R_SAMSUNG MLT-109 | F193: R_SAMSUNG MLT-109 | G193: 97750 | H193: 1 | I193: R_SAMSUNG MLT-109B
A194: Alianza Estratégica Outsourcing & Suministros S.A.S.R_SAMSUNG MLTD-104SB | B194: B | C194: Alianza Estratégica Outsourcing & Suministros S.A.S. | D194: SAMSUNG | E194: R_SAMSUNG MLTD-104S | F194: R_SAMSUNG MLTD-104S | G194: 97750 | H194: 1 | I194: R_SAMSUNG MLTD-104SB
A195: Alianza Estratégica Outsourcing & Suministros S.A.S.R_SAMSUNG SCX-4521D3B | B195: B | C195: Alianza Estratégica Outsourcing & Suministros S.A.S. | D195: SAMSUNG | E195: R_SAMSUNG SCX-4521D3 | F195: R_SAMSUNG SCX-4521D3 | G195: 97750 | H195: 1 | I195: R_SAMSUNG SCX-4521D3B
A196: Alianza Estratégica Outsourcing & Suministros S.A.S.R_SAMSUNG SCX-D4200AB | B196: B | C196: Alianza Estratégica Outsourcing & Suministros S.A.S. | D196: SAMSUNG | E196: R_SAMSUNG SCX-D4200A | F196: R_SAMSUNG SCX-D4200A | G196: 97750 | H196: 1 | I196: R_SAMSUNG SCX-D4200AB
A197: Alianza Estratégica Outsourcing & Suministros S.A.S.R_SAMSUNG MLT-D105SB | B197: B | C197: Alianza Estratégica Outsourcing & Suministros S.A.S. | D197: SAMSUNG | E197: R_SAMSUNG MLT-D105S | F197: R_SAMSUNG MLT-D105S | G197: 97750 | H197: 1 | I197: R_SAMSUNG MLT-D105SB
A198: Alianza Estratégica Outsourcing & Suministros S.A.S.R_SAMSUNG MLD-108SB | B198: B | C198: Alianza Estratégica Outsourcing & Suministros S.A.S. | D198: SAMSUNG | E198: R_SAMSUNG MLD-108S | F198: R_SAMSUNG MLD-108S | G198: 97750 | H198: 1 | I198: R_SAMSUNG MLD-108SB
A199: Alianza Estratégica Outsourcing & Suministros S.A.S.R_SAMSUNG MLT-D116B | B199: B | C199: Alianza Estratégica Outsourcing & Suministros S.A.S. | D199: SAMSUNG | E199: R_SAMSUNG MLT-D116 | F199: R_SAMSUNG MLT-D116 | G199: 97750 | H199: 1 | I199: R_SAMSUNG MLT-D116B
A200: Alianza Estratégica Outsourcing & Suministros S.A.S.R_SAMSUNG SCX4216D3B | B200: B | C200: Alianza Estratégica Outsourcing & Suministros S.A.S. | D200: SAMSUNG | E200: R_SAMSUNG SCX4216D3 | F200: R_SAMSUNG SCX4216D3 | G200: 97750 | H200: 1 | I200: R_SAMSUNG SCX4216D3B
... 3293 more rows
